Workbook

Sheet TITLE
A50: WHO/UCN/TB/2021.8
A51: © WHO 2021. Some rights reserved. This work is available under the | K51: CC BY-NC-SA 3.0 IGO | O51: licence

Sheet Intro and instructions
A1: Tool for calculating budget for consumables for TB diagnostics, version 2.0
A3: This tool has been designed to facilitate systematic calculation of the quantities and costs of products for countries planning to order diagnostic products and laboratory supplies from the GDF catalogue. To use the tool, please follow the steps below
A5: Step 1: Select the tests or consumables for which you want a forecast. (Please use drop-down list to choose)
A6: LAM | B6: Yes | C6: <=Choose here
A7: Truenat | B7: Yes | C7: <=Choose here
A8: TB-LAMP | B8: Yes | C8: <=Choose here
A9: Xpert MTB/RIF Ultra | B9: Yes | C9: <=Choose here
A10: Ziehl-Neelsen microscopy | B10: Yes | C10: <=Choose here | N10: Yes | O10: No
A11: Light-emitting diode microscopy | B11: Yes | C11: <=Choose here
A12: Xpert MTB/XDR | B12: Yes | C12: <=Choose here
A13: LPA 1st line | B13: Yes | C13: <=Choose here
A14: LPA 2nd line | B14: Yes | C14: <=Choose here
A15: MAX MDR-TB assay | B15: Yes | C15: <=Choose here
A16: FluoroType MTBDR VER 2.0 | B16: Yes | C16: <=Choose here
A17: Cobas® MTB and MTB-RIF-INH | B17: Yes | C17: <=Choose here
A18: Abbott RT MTB and MTB RIF-INH | B18: Yes | C18: <=Choose here
A19: Processing and solid and liquid cultures | B19: Yes | C19: <=Choose here
A20: Mycobacteria Identification | B20: Yes | C20: <=Choose here
A21: Lowenstein-Jensen 1st-line DST | B21: Yes | C21: <=Choose here
A22: Lowenstein-Jensen 2nd-line DST | B22: Yes | C22: <=Choose here
A23: MGIT 1st-line DST | B23: Yes | C23: <=Choose here
A24: MGIT 2nd-line DST | B24: Yes | C24: <=Choose here
A25: Biosafety and cleaning | B25: Yes | C25: <=Choose here
A26: Maintenance and repair | B26: Yes | C26: <=Choose here
A28: Step 2 : Enter the year of interest
A32: Step 3 : Define the forecasting period (months)
A36: Step 4 : Compile the epidemiological information
A40: Step 5 : Use the consumption or the morbidity-based forecasting method for each selected diagnostic test.

Sheet Epidemiology
A1: Epidemiology: for calculation of morbidity-based forecasts
A2: Values in red should be entered or adjusted according to actual country data and practices, when possible.
A3: TB epidemiology
A4: Pulmonary, bacteriologically confirmed | B4: New cases: | C4: 0 | D4: Relapse cases: | E4: 0
A5: Pulmonary, clinicially diagnosed | B5: New cases: | C5: 0 | D5: Relapse cases: | E5: 0
A6: Extrapulmonary | B6: New cases: | C6: 0 | D6: Relapse cases: | E6: 0
A7: Total no. of new cases notified | C7: =SUM(C4:C6) -> 0 | D7: Total relapse cases notified: | E7: =SUM(E4:E6) -> 0
A8: Previously treated cases, excluding relapses | B8: 0
A9: Total no. of cases notified | B9: =SUM(C4:C6,E4:E6,B8) -> 0
A10: TB cases in children (%) | B10: 0 | D10: Adult TB cases (%): | E10: 0
A11: TB cases in HIV-positive people (%) | B11: 0 | D11: HIV-negative or HIV-unknown cases (%): | E11: 0
A12: Number of HIV-positive people in care | B12: 0
A13: Number of new HIV-positive notifications (annual) | B13: 0
A14: Anticipated number of RR/MDR-TB cases to be detected during the year | B14: 0
A15: General assumptions
A16: Percentage of relapse or previously treated with mono INH- R | B16: 0
A17: Ratio of people with signs and symptoms of TB who have a history of previous succesful treatment: notified relapse cases | B17: 0 | D17: Ratio of contacts per notified RR-TB case | E17: 0
A18: Ratio of people with signs and symptoms of TB: 1 bacteriologically confirmed (or smear-positive) notified case | B18: 0
A19: HIV assumptions
A20: Average number of times that clinical screening for TB is performed per person living with HIV (PLHIV) per year | B20: 0 | D20: % of PLHIV found to have signs and symptoms of TB when screened | E20: 0
D21: % of seriously ill PLHIV population or with CD4 < 200 found to have signs and symptoms of TB when screened | E21: 0
D22: % of PLHIV population that is seriously ill or with CD4 < 200 | E22: 0.15
D23: % of seriously ill PLHIV population or with CD4 < 100 found to have signs and symptoms of TB when screened | E23: 0.3
D24: % of PLHIV population that is seriously ill or with CD4 < 100 | E24: 0.1
A25: Child assumptions
A26: Ratio of children with signs and symptoms of TB: children notified with TB | B26: 0
A32: Step 4: Navigate to the sheets below, and use consumption-based or morbidity-based forecasting for each selected diagnostic test.

Sheet LAM
A1: LAM Two methods are proposed for calculating the expected number of tests to be performed during the period.
B2: Values in red should be entered or adjusted according to actual country data and practices,when possible.
B4: Method 1: Consumption-based forecasting The expected number of tests is based on the number of tests used on average per month. | E4: Method 2: Morbidity-based forecasting The estimated number of tests calculated is based on epidemiological data (notifications) and planned algorithms. The calculated sum is the target to be reached when algorithms are used according to the indicated coverage and assumptions.
B5: Average number of LAM tests performed per month | C5: 0 | E5: Patient population | F5: Coverage of testing | G5: Number of LAM tests for the period
B6: Number of LAM tests performed during the period | C6: =C5*Months -> 0 | E6: People living with HIV (PLHIV) with signs and symptoms of TB | F6: 0 | G6: =ROUND((Epidemiology!B12*F6*Epidemiology!B20*Epidemiology!E20),-2) -> 0
E7: PLHIV seriously ill or with CD4 < 200 | F7: 0 | G7: =ROUND((Epidemiology!B12+Epidemiology!B13)*F7*Epidemiology!B20*Epidemiology!E21,-2) -> 0
E8: PLHIV seriously ill or with CD4 < 100 | F8: 1 | G8: =ROUND((Epidemiology!B12+Epidemiology!B13)*F8*Epidemiology!B20*Epidemiology!E23*Epidemiology!E24,-2) -> 0
E9: Total number of LAM for the period | G9: =SUM(G6:G8) -> 0 | P9: =Epidemiology!E11*Epidemiology!E10*Epidemiology!C4 -> 0 | Q9: Adult/HIV+/Bac+
P13: =Epidemiology!C7*Epidemiology!B10 -> 0 | Q13: Children
B14: Quantities of LAM products to order
B15: Total number of LAM performed during the period (with forecasting method 1 or 2 or a value in between) | C15: 0
B16: Current stock | C16: 0
B17: Total number of LAM required during the period | C17: =C15 -> 0
B18: Total number of LAM to be ordered | C18: =C15-C16 -> 0
A20: GDF code | B20: ITEMS | C20: Unit / pack | D20: Need per test | E20: No. of packs to be ordered | F20: Unit cost (US$) | G20: Calculation details
A21: 106749 | B21: Determine TB LAM Ag tests | C21: 25 | D21: 1 | E21: =ROUNDUP((D21/C21*C18),0) -> 0 | F21: 92.5
A22: 106525 | B22: Sputum containers | C22: 1000 | D22: 1 | E22: =ROUNDUP((D22/C22*C18),0) -> 0 | F22: 83.3 | G22: For collecting urine
A23: 106388 | B23: Sterile pipette filter tips, 5–100 µL | C23: 960 | D23: 1 | E23: =ROUNDUP((D23/C23*C18),0) -> 0 | F23: 61 | G23: For delivering 60 μL and suitable for 1-channel pipette, varies from 20 to 200 µL
B25: Summary | C25: Cost (US$)
B26: Total cost of LAM products | C26: =SUMPRODUCT(E21:E23,F21:F23) -> 0
B27: Cost per sample tested | C27: =IF(C18=0,"",(C26/C18)) -> 

Sheet Truenat
B1: Truenat Two methods are proposed for calculating the expected number of tests to be performed during the period.
B2: Values in red should be entered or adjusted according to actual country data and practices,when possible.
B3: No. of tests performed last year | C3: 0
B5: Method 1: Consumption-based forecasting The expected number of tests is based on the average daily use per instrument module. | E5: Method 2: Morbidity-based forecasting The estimated number of tests calculated is based on epidemiological data (notifications) and planned algorithms. The calculated sum is the target to be reached when algorithms are implemented according to the indicated coverage and assumptions. The default coverage below is for an Truenat-for-all algorithm (100% coverage for all patient groups)
B6: Number of Truelab analysers (uno) | C6: 0 | E6: Patient population | F6: Coverage of testing | G6: Number of Truenat tests required for the period
B7: Number of Truelab analysers (duo) | C7: 0 | E7: People living with HIV (PLHIV) with signs and symptoms of TB | F7: 0 | G7: =ROUND((F7*Epidemiology!B12*Epidemiology!B20*Epidemiology!E20),-2) -> 0
B8: Number of Truelab analysers (quattro) | C8: 0 | E8: Children with signs and symptoms of TB | F8: 0 | G8: =ROUND(F8*Epidemiology!B9*Epidemiology!B10*Epidemiology!B26, -2) -> 0
B9: Total number of chip ports | C9: =(C6*1)+(C7*2)+(C8*4) -> 0 | E9: People at risk of drug-resistant TB | F9: 0 | G9: =ROUND(F9*(Epidemiology!E7*Epidemiology!B17)+Epidemiology!B8+(Epidemiology!B14*Epidemiology!E17), -2) -> 0 | AA9: Number of Truepep devices | AB9: 1 | AF9: Number of Truepep devices | AG9: 1 | AJ9: Number of Truepep devices | AK9: 2
B10: Number of working days per year | C10: 0 | E10: Previously untreated HIV-negative adults with signs and symptoms of TB | F10: 0 | G10: =ROUND(F10*Epidemiology!E11*Epidemiology!E10*Epidemiology!C4*Epidemiology!B18,-2) -> 0 | S10: =Epidemiology!B9*Epidemiology!B10 -> 0 | T10: Children | AA10: Number of Truelab analysers (uno) | AB10: 1 | AF10: Number of Truelab analysers (duo) | AG10: 1 | AJ10: Number of Truelab analysers (quattro) | AK10: 1
B11: Average number of chip ports used per day | C11: 0 | E11: New smear-positive TB cases receiving Truenat for rifampicin testing (excluding those who received it as the initial diagnostic test) | F11: 0 | G11: =ROUND(Epidemiology!C7-((Epidemiology!B9*Epidemiology!B10)+(Epidemiology!E7+Epidemiology!B8+Epidemiology!B14)+(Epidemiology!E11*Epidemiology!E10*Epidemiology!C4)+(Epidemiology!C7*Epidemiology!B10)),-2)*F11 -> 0 | S11: =Epidemiology!E7+Epidemiology!B8+Epidemiology!B14 -> 0 | T11: Relapse/PR/MDR | AB11: =IF(AB9=1,IF(AB10=1,(8),0),0) -> 8 | AG11: =IF(AG9=1,IF(AG10=1,(17),0),0) -> 17 | AK11: =IF(AK9=2,IF(AK10=1,(33),0),0) -> 33
B12: Number of Treunat tests required for the period | C12: =C9*C10*C11 -> 0 | E12: Total number of Truenat cartridges required for the period | G12: =SUM(G7:G11) -> 0 | S12: =Epidemiology!E11*Epidemiology!E10*Epidemiology!C4 -> 0 | T12: Adult/HIV+/Bac+
S16: =Epidemiology!C7*Epidemiology!B10 -> 0 | T16: Children
B17: Quantities of Truenat products to be ordered
B18: Number of Truenat tests required for the period (with forecasting method 1 or 2 or a value in between) | C18: 0
B19: Percentage of invalid, error or no result | C19: 0
B20: Current stock | C20: 0
B21: Total number of Truenat tests required for the period | C21: 0
B22: Total number of Truenat tests to be ordered | C22: =((C18*C19)+C18)-C20 -> 0
B23: Free Truenat MTB Rif | C23: =(C22/100)*20 -> 0
A26: GDF code | B26: Item | C26: Unit / pack | D26: No. of packs to be ordered | E26: Unit cost (US$) | F26: Comment
A27: 106697 | B27: Truenat MTB Plus | C27: 50 | D27: =ROUNDUP((C22/C27),0) -> 0 | E27: 450 | F27: Other unit packs available, 5 and 20
A28: 106700 | B28: Truenat MTB Rif | C28: 50 | D28: 0 | E28: 400 | F28: Additional Truenat MTB Rif testing - Other unit packs available, 5 and 20
B30: Summary | C30: Cost (US$)
B31: Total cost of Truenat products | C31: =SUMPRODUCT(D27:D28,E27:E28) -> 0

Sheet TB-LAMP
A1: TB-LAMP Two methods are proposed for calculating the expected number of tests to be performed during the period.
B2: Values in red should be entered or adjusted according to actual country data and practices, when possible.
B4: Method 1: Consumption-based forecasting The expected number of tests is based on number of tests performed last year. | E4: Method 2: Morbidity-based forecasting The estimated number of tests calculated is based on epidemiological data (notifications) and planned algorithms. The calculated sum is the target to be reached when algorithms are implemented according to the indicated coverage and assumptions.
B5: Average number of TB LAMP tests performed per month | C5: 0 | E5: Patient population | F5: Coverage of testing | G5: Number of TB-LAMP tests required for the period
B6: Number of TB LAMP tests required for the period | C6: =C5*Months -> 0 | E6: People with signs and symptoms of TB | F6: 0 | G6: =ROUND((Epidemiology!B12*Epidemiology!B20*Epidemiology!E20)+(Epidemiology!B9*Epidemiology!B10*Epidemiology!B26)+(Epidemiology!E7*Epidemiology!B17)+Epidemiology!B8+(Epidemiology!B14*Epidemiology!E17)+(Epidemiology!E11*Epidemiology!E10*Epidemiology!C4*Epidemiology!B18)+(Epidemiology!C7-((Epidemiology!B9*Epidemiology!B10)+(Epidemiology!E7+Epidemiology!B8+Epidemiology!B14)+(Epidemiology!E11*Epidemiology!E10*Epidemiology!C4)+(Epidemiology!C7*Epidemiology!B10))),-2)*F6 -> 0
B12: Number of batches used per day | C12: 0 | D12: Enter the appropriate number based on past consumption. The default number is based on maximum efficiency testing (14 specimens per batch and 5 testing cycles per day)
B13: Number of specimens per batch | C13: 0
B14: Number of controls per batch | C14: 0 | S14: =SUM(S7:S9) -> 0
B15: Number of TB LAMP tests required for the period (using forecasting method 1 or 2 or a value in between) | C15: 0
B16: Average size of a batch | C16: =C13+C14 -> 0
B17: Number of batches required for the period | C17: =IF(C13=0,0,(C15/C13)) -> 0
B18: Current stock | C18: 0
B19: Total number of TB-LAMP required for the period (specimens plus controls) | C19: =(C17*C16) -> 0
B20: Total number of TB-LAMP required to be ordered (specimens plus controls) | C20: =(IF(C18=0,(C17*C16),(C17*C16)-C18)) -> 0
A22: GDF code | B22: Item | C22: Unit / pack | D22: Need per test | E22: No. of packs to be ordered | F22: Unit cost (US$) | G22: Calculation details
A23: 106634 | B23: Loopamp MTBC Detection Kit (2 x 48 tests) | C23: 96 | D23: 1.14 | E23: =ROUNDUP((D23/C23*C20),0) -> 0 | F23: 219 | G23: A detection kit of 96 tests will provide the appropriate number of reagents for 6 cycles of 84 patient samples plus 6 negative controls and 6 positive controls.
A24: 106635 | B24: Loopamp PURE DNA Extraction Kit (90 tests) | C24: 90 | D24: 1.07 | E24: =ROUNDUP((D24/C24*C20),0) -> 0 | F24: 275 | G24: An extraction kit of 90 tests will provide the appropriate number of reagents for 6 cycles of 84 patient samples plus 6 negative controls and 6 positive controls.
A25: 106643 | B25: Pipette-60 set for TB LAMP (4 x 96 tests) | C25: 384 | D25: 1 | E25: =ROUNDUP((D25/C25*C20),0) -> 0 | F25: 42
B27: Summary | C27: Cost (US$)
B28: Total cost of TB-LAMP products | C28: =SUMPRODUCT(E23:E25,F23:F25) -> 0
B29: Cost per sample tested | C29: =IF(C20=0,"",(C28/C20)) ->  | D29: The cost per patient sample for reagents and consumables depends on the batch size of the cycle. For only maximum efficiency (14 specimens per batch and 5 testing cycles per day), the cost is US$ 6 per patient sample

Sheet Xpert MTB RIF Ultra
A1: Xpert MTB/RIF Two methods are proposed for calculating the expected number of tests to be performed during the period.
B2: Values in red should be entered or adjusted according to actual country data and practices, when possible.
B3: No. of tests performed last year | C3: 0
B5: Method 1: Consumption-based forecasting The expected number of tests is based on the average daily use per instrument module. | E5: Method 2: Morbidity-based forecasting The estimated number of tests calculated is based on epidemiological data (notifications) and planned algorithms. The calculated sum is the target to be reached when algorithms are implemented according to the indicated coverage and assumptions. The default coverage below is for an Xpert-for-all algorithm (100% coverage for all patient groups).
B6: Number of instrument modules in the country | C6: 0 | E6: Patient population | F6: Coverage of testing | G6: Number of Xpert MTB/RIF tests required for the period
B7: Number of working days per year | C7: 0 | E7: People living with HIV (PLHIV) with signs and symptoms of TB | F7: 0 | G7: =ROUND((F7*Epidemiology!B12*Epidemiology!B20*Epidemiology!E20),-2) -> 0
B8: Average number of Xpert MTB/RIF tests performed per module per day | C8: 0 | E8: Children with signs and symptoms of TB | F8: 0 | G8: =ROUND(F8*Epidemiology!B9*Epidemiology!B10*Epidemiology!B26, -2) -> 0
B9: Number of Xpert MTB/RIF Ultra tests required for the period | C9: =C6*C7*C8 -> 0 | E9: People at risk of drug-resistant TB | F9: 0 | G9: =ROUND(F9*(Epidemiology!E7*Epidemiology!B17)+Epidemiology!B8+(Epidemiology!B14*Epidemiology!E17), -2) -> 0
E10: Previously untreated HIV-negative adults with signs and symptoms of TB | F10: 0 | G10: =ROUND(F10*Epidemiology!E11*Epidemiology!E10*Epidemiology!C4*Epidemiology!B18,-2) -> 0 | S10: =Epidemiology!B9*Epidemiology!B10 -> 0 | T10: Children
E11: New smear-positive TB cases receiving Xpert for rifampicin testing purposes (excluding those receiving it as the initial diagnostic test) | F11: 0 | G11: =ROUND(Epidemiology!C7-((Epidemiology!B9*Epidemiology!B10)+(Epidemiology!E7+Epidemiology!B8+Epidemiology!B14)+(Epidemiology!E11*Epidemiology!E10*Epidemiology!C4)+(Epidemiology!C7*Epidemiology!B10)),-2)*F11 -> 0 | S11: =Epidemiology!E7+Epidemiology!B8+Epidemiology!B14 -> 0 | T11: Relapse/PR/MDR
E12: Total number of Xpert MTB/RIF Ultra cartridges required for the period | G12: =SUM(G7:G11) -> 0 | S12: =Epidemiology!E11*Epidemiology!E10*Epidemiology!C4 -> 0 | T12: Adult/HIV+/Bac+
S16: =Epidemiology!C7*Epidemiology!B10 -> 0 | T16: Children
B17: Quantities of Xpert MTB/RIF Ultra products to be ordered
B18: Number of Xpert MTB/RIF cartridges required for the period (with forecasting method 1 or 2 or a value in between) | C18: 0
B19: Percentage of invalid, error, no result | C19: 0
B20: Current stock | C20: 0
B21: Total number of Xpert MTB/RIF cartridges required for the period | C21: =((C18*C19)+C18) -> 0
B22: Total number of Xpert MTB/RIF cartridges to be ordered | C22: =((C18*C19)+C18)-C20 -> 0
A24: GDF code | B24: Item | C24: Units / pack | D24: No. of packs to be ordered | E24: Unit cost (US$) | F24: Calculation details
A25: CGXMTB-RIF-50 | B25: Xpert MTB/RIF cartridges | C25: 50 | D25: =ROUNDUP((C22/C25),0) -> 0 | E25: 499
A26: 106340 | B26: Sterile plastic centrifuge tubes 50 mL | C26: 500 | D26: 0 | E26: 45 | F26: If you use normal sputum containers, set "0" for No. of packs to be ordered
A27: 106525 | B27: Sputum containers, pack of 1000 | C27: 1000 | D27: =ROUNDUP(((C22*1.1)/C27),0) -> 0 | E27: 83.3
B29: Summary | C29: Cost (US$)
B30: Total cost of Xpert MTB Rif Ultra products | C30: =SUMPRODUCT(D25:D27,E25:E27) -> 0

Sheet ZN microscopy
A1: Smear microscopy with Ziehl-Neelsen stain (ZN) Two methods are proposed for calculating the expected number of tests to be performed during the period.
B2: Values in red should be entered or adjusted according to actual country data and practices, when possible.
B4: Method 1: Consumption-based forecasting The expected number of tests is based on number of tests performed last year
B5: Number of smears performed for diagnosis or treatment monitoring | C5: 0 | D5: Countries that are replacing microscopy with a rapid molecular test may anticipate fewer smears for diagnosis.
B6: Number of smears from culture | C6: ='Processing&solid-liquid culture'!F21*'Processing&solid-liquid culture'!F19 -> 0
B7: Current stock | C7: 0
B8: Number of ZN tests required for the period | C8: =SUM(C5:C6) -> 0
B9: Number of ZN tests to be ordered | C9: =SUM(C5:C6)-C7 -> 0
B12: Test procurement | C12: Kit | D12: <=Choose here
W15: Kit | X15: Separated consumables
A21: GDF code | B21: Items | C21: Unit | D21: Pack | E21: Need per test | F21: No. of packs | G21: Unit cost (US$) | H21: Calculation details
A22: 106522 | B22: ZN stain solution, 1 L (strong carbol fuchsin 1% solution for ZN staining): 6, ZN decolourization solution, 1 L (ready-made decolourization solution of ZN-stained slides – 3.0% HCl/alcohol): 6, ZN counterstaining solution, 1 L (methylene blue 0.1%, counterstaining solution for ZN stain): 6 , 50 x 20 microscope slides: 1, 100x filter papers: 1, 10x pencils: 1, 2x waterproof marker pens: 1, 500x plastic bags W 200 mm x L 300 mm: 1, 1000x wooden applicator sticks: 2, 400x pairs of nitrile gloves (100 small, 200 medium, 100 large): 1, 30 x 150 carton of paper towels: 1, lens-cleaning tissue - 100 tissues: 1, immersion oil 100 mL: 1, denatured alcohol 96% 0.5 L: 5 and stable chlorine disinfectant 50 tabs: 5. | C22: kit | D22: 1000 | E22: =D22*1/1000 -> 1 | F22: =IF(W15=C12,ROUNDUP((E22/D22)*C9,0),0) -> 0 | G22: 268 | H22: 1 kit for 1000 tests
B25: Summary | C25: Cost (US$)
B26: Total cost of microscopy | C26: =F22*G22 -> 0
B27: Cost per smear | C27: =IF(C8=0,"-",C26/C8) -> -
A31: GDF code | B31: Item | C31: Units / pack | D31: No. of packs | E31: Unit cost (US$) | F31: Budget | G31: Calculation details
A32: 106601 | B32: Basic fuchsine, 100 g (bottle) | C32: 100 | D32: =IF(X15=C12,ROUNDUP((C9*0.003)/C32,0),0) -> 0 | E32: 154.25 | F32: =D32*E32 -> 0 | G32: Carbol fuchsin: 5 mL per slide, includes +10%
A33: 106602 | B33: Methylene blue, 10 x 10 g (bottles) | C33: 100 | D33: =IF(X15=C12,ROUNDUP((C9*0.02)/C33,0),0) -> 0 | E33: 161.5 | F33: 0 | G33: Methylene blue: 5 mL per slide, includes +10%
A34: 106599 | B34: Phenol crystals, colourless, 500 g | C34: 500 | D34: =IF(X15=C12,ROUNDUP((C9*0.03)/C34,0),0) -> 0 | E34: 96.05 | F34: 0 | G34: includes +10%
A35: 106597 | B35: Ethanol, 99%, 1 L (bottle), for stain solutions | C35: 1000 | D35: =IF(X15=C12,ROUNDUP((C9*0.55)/C35,0),0) -> 0 | E35: 8.35 | F35: 0 | G35: includes +10%
A36: 106597 | B36: Ethanol, 99%, 1 L (bottle), for decolourization | C36: 1000 | D36: =IF(X15=C12,ROUNDUP((C9*7.2)/C36,0),0) -> 0 | E36: 8.35 | F36: 0 | G36: Decolourization: 7 mL per slide, includes +10%
A37: 106603 | B37: Hydrochloric acid, 1 L (bottle) | C37: 1000 | D37: =IF(X15=C12,ROUNDUP((C9*0.8)/C37,0),0) -> 0 | E37: 18.1 | F37: 0 | G37: Includes +10%
B38: Total no. of reagents | D38: =SUM(F32:F37) -> 0
B39: Reagent cost per smear | D39: =IF(C9=0,"-",D38/C9) -> -
A42: GDF code | B42: Item | C42: Units / pack | D42: No. of packs | E42: Unit cost (US$) | F42: Budget | G42: Calculation details
A43: 106655 | B43: Wooden applicator sticks, 150 mm | C43: 1000 | D43: =IF(X15=C12,ROUNDUP((C9*1.1)/C43,0),0) -> 0 | E43: 2.51 | F43: =D43*E43 -> 0 | G43: includes +10%
A44: 106609 | B44: Microscope slides, lime-soda-glass, pack of 1000 | C44: 1000 | D44: =IF(X15=C12,ROUNDUP((C9*1.1)/C44,0),0) -> 0 | E44: 10.4 | F44: 0 | G44: includes +10%
A45: 106627 | B45: Immersion oil, 100 mL | C45: 100 | D45: =IF(X15=C12,ROUNDUP((C9*0.11)/C45,0),0) -> 0 | E45: 9.24 | F45: 0 | G45: includes +10%
A46: 106656 | B46: Lens-cleaning tissue | C46: 150 | D46: =IF(X15=C12,ROUNDUP((C9*0.33)/C46,0),0) -> 0 | E46: 0.57 | F46: 0 | G46: includes +10%
A47: 106354 | B47: Round filter paper, 150 mm | C47: 100 | D47: =IF(X15=C12,ROUNDUP((C9*0.011)/C47,0),0) -> 0 | E47: 24 | F47: 0 | G47: includes +10%
A48: 106597 | B48: Ethanol, 99%, 1 L (bottle), for spirit lamps | C48: 1000 | D48: =IF(X15=C12,ROUNDUP((C9*0.001)/C48,0),0) -> 0 | E48: 8.35 | F48: 0
A49: 106355 | B49: Marker pen (water-resistant) | C49: 1 | D49: =IF(X15=C12,ROUNDUP((C9*0.001)/C49,0),0) -> 0 | E49: 2.05 | F49: 0
A50: 106525 | B50: Sputum containers, pack of 1000 | C50: 1000 | D50: =IF(X15=C12,ROUNDUP((C9*1.1)/C50,0),0) -> 0 | E50: 83.3 | F50: 0 | G50: includes +10%
B51: Total for reagents | D51: =SUMPRODUCT(D43:D50,E43:E50) -> 0
B52: Reagent cost per smear | D52: =IF(C9=0,"-",D51/C9) -> -
B55: Summary | C55: Cost (US$)
B56: Total cost of microscopy | C56: =D51+D38 -> 0
B57: Cost per smear | C57: =IF(C9=0,"-",C56/C9) -> -

Sheet LED microscopy
A1: Smear microscopy LED
B2: Values in red should be entered or adjusted according to actual country data and practices, when possible.
B4: Method 1: Consumption-based forecasting The expected number of tests is based on the number of tests perfromed last year
B5: Number of smears for diagnosis or treatment monitoring | C5: 0 | D5: Countries that are replacing microscopy with a rapid molecular test may anticipate fewer smears for diagnosis.
B6: Number of smears from culture | C6: 0
B7: Current stock | C7: 0
B8: Number of LED tests required for the period | C8: =SUM(C5:C6) -> 0
B9: Number of LED tests required for the period | C9: =SUM(C5:C6)-C7 -> 0
B12: Test procurement | C12: Kit | D12: <=Choose here
W15: Kit | X15: Separated consumables
A21: GDF code | B21: Item | C21: Unit | D21: Pack | E21: Need per test | F21: No. of packs | G21: Unit cost (US$) | H21: Calculation details
A22: 106523 | B22: Auramine stain solution, reagents (set of 3 components: 200 g - colourless phenol crystals C6H6O, 1 L - ethanol for stain solutions C2H6O and 5 g - auramine O C17H22ClN3 to produce auramine stain solution): 1 set, auramine decolourization solution, 1 L (ready-made decolourization solution 0.5% HCl/alcohol): 6, auramine counterstaining solution, 1 L (methylene blue 0.3%, counterstaining solution for auramine O stain) : 6, 50 x 20 microscope slides: 1, 100 x filter papers: 1, 10 x pencils: 1, 2 x waterproof marker pens: 1, 500 x plastic bags W 200 mm x L 300 mm: 1, 1000 x wooden applicator sticks: 1, 400 x pairs of nitrilegloves (100 small, 200 medium, 100 large): 1, 30 x 150 carton of paper towels: 1, lens-cleaning tissue - 100 tissues: 1, immersion oil 100 mL: 1, denatured alcohol 96% 0.5 L: 1, stable chlorine disinfectant 50 tablets: 5. | C22: kit | D22: 1000 | E22: =D22*1/1000 -> 1 | F22: =IF(W15=C12,ROUNDUP((E22/D22)*C9,0),0) -> 0 | G22: 200.5 | H22: 1 kit for 1000 tests
B25: Summary | C25: Cost (US$)
B26: Total cost of microscopy | C26: =F22*G22 -> 0
B27: Cost per smear | C27: =IF(C9=0,"-",(C26/C9)) -> -
A31: GDF code | B31: Item | C31: Units / pack | D31: No. of packs | E31: Unit cost (US$) | F31: Budget | G31: Calculation details
A32: 106602 | B32: Methylene blue, 10 x 10 g (bottles) | C32: 100 | D32: =IF(X15=C12,ROUNDUP((C9*0.02)/C32,0),0) -> 0 | E32: 161.5 | F32: =D32*E32 -> 0 | G32: Methylene blue: 5 mL per slide, includes +10%
A33: 106599 | B33: Phenol crystals colourless, 500 g | C33: 500 | D33: =IF(X15=C12,ROUNDUP((C9*0.03)/C33,0),0) -> 0 | E33: 96.05 | F33: =D33*E33 -> 0 | G33: includes +10%
A34: 106276 | B34: Auramine O, powder, 25 g | C34: 25 | D34: =IF(X15=C12,ROUNDUP((C9*0.003)/C34,0),0) -> 0 | E34: 38.4 | F34: 0 | G34: includes +10%
A35: 106597 | B35: Ethanol, 99%, 1 L (bottle), for decolourization | C35: 1000 | D35: =IF(X15=C12,ROUNDUP((C9*0.55)/C35,0),0) -> 0 | E35: 8.35 | F35: 0 | G35: Decolourization: 7 mL per slide, includes +10%
A36: 106603 | B36: Hydrochloric acid, 1 L (bottle) | C36: 1000 | D36: =IF(X15=C12,ROUNDUP((C9*0.8)/C36,0),0) -> 0 | E36: 18.1 | F36: =D36*E36 -> 0 | G36: includes +10%
B37: Total for reagents | D37: =SUM(F32:F36) -> 0
B38: Reagent cost per smear | D38: =IF(C9=0,"-",D37/C9) -> -
A41: GDF code | B41: Item | C41: Unit / pack | D41: No. of packs | E41: Unit cost (US$) | F41: Budget | G41: Calculation details
A42: 106655 | B42: Wooden applicator sticks, 150 mm | C42: 1000 | D42: =IF(X15=C12,ROUNDUP((C9*1.1)/C42,0),0) -> 0 | E42: 2.51 | F42: =D42*E42 -> 0 | G42: includes +10%
A43: 106609 | B43: Microscope slides, lime-soda-glass, pack of 1000 | C43: 1000 | D43: =IF(X15=C12,ROUNDUP((C9*1.1)/C43,0),0) -> 0 | E43: 10.4 | F43: 0 | G43: includes +10%
A44: 106627 | B44: Immersion oil, 100 mL | C44: 100 | D44: =IF(X15=C12,ROUNDUP((C9*0.11)/C44,0),0) -> 0 | E44: 9.24 | F44: 0 | G44: includes +10%
A45: 106656 | B45: Lens-cleaning tissue | C45: 150 | D45: =IF(X15=C12,ROUNDUP((C9*0.33)/C45,0),0) -> 0 | E45: 0.57 | F45: 0 | G45: includes +10%
A46: 106354 | B46: Round filter paper, 150 mm | C46: 100 | D46: =IF(X15=C12,ROUNDUP((C9*0.011)/C46,0),0) -> 0 | E46: 24 | F46: 0 | G46: includes +10%
A47: 106597 | B47: Ethanol, 99%, 1 L (bottle), for spirit lamps | C47: 1000 | D47: =IF(X15=C12,ROUNDUP((C9*0.001)/C47,0),0) -> 0 | E47: 8.35 | F47: 0
A48: 106355 | B48: Marker pen (water-resistant) | C48: 1 | D48: =IF(X15=C12,ROUNDUP((C9*0.001)/C48,0),0) -> 0 | E48: 2.05 | F48: 0
A49: 106525 | B49: Sputum containers, pack of 1000 | C49: 1000 | D49: =IF(X15=C12,ROUNDUP((C9*1.1)/C49,0),0) -> 0 | E49: 83.3 | F49: 0 | G49: includes +10%
B50: Total for reagents | D50: =SUMPRODUCT(D42:D49,E42:E49) -> 0
B51: Reagent cost per smear | D51: =IF(C9=0,"-",D50/C9) -> -
B54: Summary | C54: Costs (US$)
B55: Total cost of microscopy | C55: =D50+D37 -> 0
B56: Cost per smear | C56: =IF(C9=0,"-",(C55/C9)) -> -

Sheet Xpert MTB XDR
A1: Xpert MTB/XDR Two methods are proposed for calculating the expected number of tests to be performed during the period.
B2: Values in red should be entered or adjusted according to actual country data and practices, when possible.
B3: Method 1: Consumption-based forecasting The expected number of tests is based on the number of tests performed last year | E3: Method 2: Morbidity-based forecasting The estimated number of tests calculated is based on epidemiological data (notifications) and planned algorithms. The calculated sum is the target to be reached when algorithms are implemented according to the indicated coverage and assumptions.
B4: Average number of Xpert MTB/XDR tests performed per month | C4: 0 | E4: Patient population | F4: Coverage of testing | G4: Number of Xpert MTB/XDR required for the period
B5: Number of Xpert MTB/XDR tests required for the period | C5: =C4*Months -> 0 | E5: Anticipated number of RR/MDR-TB cases to be detected in the year | F5: 0 | G5: =Epidemiology!$B$14*F5 -> 0
E6: People with detected INH mono-resistance (to test for fluoroquinolone resistance) | F6: 0 | G6: =(Epidemiology!$E$7+Epidemiology!$B$8)*F6*Epidemiology!B16 -> 0
E7: Total number of Xpert MTB/XDR required for the period | G7: =SUM(G5:G6) -> 0
B12: Number of Xpert MTB/XDR cartridges required for the period (with forecasting method 1 or 2 or a value in between) | C12: 0
B13: Percentage of invalid, error, no result | C13: 0
B14: Current stock | C14: 0
B15: Total number of Xpert MTB/XDR cartridges required for the period | C15: =((C12*C13)+C12) -> 0
B16: Total number of Xpert MTB/XDR cartridges to be ordered | C16: =((C12*C13)+C12)-C14 -> 0
A18: GDF code | B18: Item | C18: Units / pack | D18: No. of packs to be ordered | E18: Unit cost (US$) | F18: Calculation details
B19: Xpert MTB/XDR cartridges | C19: 10 | D19: =ROUNDUP((C16/C19),0) -> 0 | E19: 198
A20: 106340 | B20: Sterile plastic centrifuge tubes, 50 mL | C20: 500 | D20: 0 | E20: 45 | F20: If you use normal sputum containers, set "0" on No. of packs to be ordered
A21: 106525 | B21: Sputum containers, pack of 1000 | C21: 1000 | D21: =ROUNDUP(((C16*1.1)/C21),0) -> 0 | E21: 83.3
C24: Summary | E24: Cost (US$)
C25: Total for Xpert MTB/XDR | E25: =SUMPRODUCT(D19:D21*E19:E21) -> 0
C26: Total per Xpert MTB/XDR | E26: =IF(C16=0,"-",(E25/C16)) -> -

Sheet LPA 1st line
A1: LPA 1st line Two methods are proposed for calculating the expected number of tests to be performed during the period.
B2: Values in red should be entered or adjusted according to actual country data and practices, when possible.
B3: Method 1: Consumption-based forecasting The expected number of tests is based on number of tests perfromed last year | E3: Method 2: Morbidity-based forecasting The estimated number of tests calculated is based on epidemiological data (notifications) and planned algorithms. The calculated sum is the target to be reached when algorithms are implemented according to the indicated coverage and assumptions.
B4: Average number of LPA 1st-line tests performed per month | C4: 0 | E4: Patient population | F4: Coverage of testing | G4: Number of LPA 1st-line tests required for the period
B5: Number of LPA 1st-line tests required for the period | C5: =C4*Months -> 0 | E5: New smear-positive TB cases receiving the test for rifampicin and isoniazid testing purposes (excluding those receiving it as the initial diagnostic test | F5: 0 | G5: =ROUND(Epidemiology!C7-((Epidemiology!B9*Epidemiology!B10)+(Epidemiology!E7+Epidemiology!B8+Epidemiology!B14)+(Epidemiology!E11*Epidemiology!E10*Epidemiology!C4)+(Epidemiology!C7*Epidemiology!B10)),-2)*F5 -> 0
E6: Total number of LPA 1st-line tests required for the period | G6: =SUM(G5:G5) -> 0
B11: LPA 1st-line test used | C11: Geno Type MTBDRplus | D11: <=Choose here
B13: Number of batches used per week | C13: 0 | E13: Enter the appropriate number based on past consumption. The default number is based on optimal use of the test
B14: Number of specimens per batch | C14: 0 | E14: Enter the appropriate number based on past consumption. The default number is based on optimal use of the test
B15: Number of controls per batch | C15: 0 | E15: Enter the appropriate number based on past consumption. The default number is based on optimal use of the test
B16: Number of LPA 1st-line tests for the period (with forecasting method 1 or 2 or a value in between) | C16: 0
B17: Average size of a batch | C17: =C14+C15 -> 0
B18: Number of batches required for the period | C18: =IF(C14=0,0,C16/C14) -> 0
B19: Number of tests to be performed (specimens plus controls) | C19: =IF(C17=0,0,C18*C17) -> 0
B20: Estimated repetitions (%) | C20: 0
B21: Number of extra tests per batch for pipetting error | C21: 1 | V21: Do not delete
B22: LPA equipment used in the laboratory | C22: GT-BLOT 48 | E22: <=Choose here | W22: GT-BLOT 48 | X22: TWINCUBATOR
B23: DNA extraction with or without Genolyse | C23: With Genolyse | E23: <=Choose here
B24: For DNA extraction | C24: Standard reaction tubes, 2 ml | E24: <=Choose here | W24: Standard reaction tubes, 2 ml | X24: Standard reaction tubes, 1,5ml
B25: Current stock | C25: 0
B26: Total number of tests to be performed during the period | C26: =ROUNDUP(C19+(C19*repet)+C21*C18,0) -> 0 | W26: MULTIBLOT NS-4800
B27: Total number of test to be ordered | C27: =IF(C25=0,(ROUNDUP(C19+(C19*repet)+C21*C18,0)),(ROUNDUP(C19+(C19*repet)+C21*C18,0))-C25) -> 0 | W27: Geno Type MTBDRplus
W28: Genoscholar NTM+MDRTB II
B29: GDF code | C29: Item | D29: Units / pack | E29: No. of packs | F29: Unit cost (US$) | G29: Calculation details | H29: Option
B30: 106682 | C30: Genoscholar NTM+MDRTB II | D30: 20 | E30: =IF(C11=W28,ROUNDUP(C27/unit_pack,0),0) -> 0 | F30: 320 | W30: With Genolyse | X30: Without Genolyse
B31: 106512 | C31: Geno Type MTBDRplus (96 tests/kit), Version 2.0 (30496A) | D31: 96 | E31: =IF(C11=W27,ROUNDUP(C27/unit_pack,0),0) -> 0 | F31: 720 | H31: Two methods : 1 vial per batch or molecular-grade water is aliquoted Choose from drop-down list
B32: 106477 | C32: GenoLyse (96 tests), Version 1.0 (51610) | D32: 96 | E32: =IF($C$23=$W$30,ROUNDUP(C27/D32,0),0) -> 0 | F32: 50
B33: 106254 | C33: Molecular grade water - 10 x 1.7 mL | D33: 17 | E33: =IF(H33=X33,ROUNDUP(C18*0.505/unit_pack,0),IF(C14*0.505<=1.8,ROUNDUP(C18/10,0),ROUNDUP(C14*0.505,0))) -> 0 | F33: 201.85 | G33: Volume required is 505 µL per batch - 1 vial per batch or aliquot Choose here => | H33: 1 vial per Batch | I33: <=Choose here | W33: 1 vial per Batch | X33: Aliquot
B34: 106385 | C34: PCR tubes, 0.2 mL with attached caps, sterile, DNAse- and RNAse-free, 1000 per pack | D34: 1000 | E34: =ROUNDUP((kit_ordered*D31*1.05)/unit_pack,0) -> 0 | F34: 45.8 | G34: 1 tube per test + 5% extra
B35: 106422 | C35: Microcentrifuge tubes, 2 mL | D35: 500 | E35: =IF(C24=W24,ROUNDUP(kit_ordered*D31*2/unit_pack,0),0) -> 0 | F35: 49.55 | G35: 2 tubes per test + 5% extra
B36: 106421 | C36: Microcentrifuge tubes, 1.5 mL | D36: =IF(B36=106350,1000,500) -> 500 | E36: =IF(C24=X24,ROUNDUP(kit_ordered*D31*2/unit_pack,0),0) -> 0 | F36: 91.95 | G36: 2 tubes per test + 5% extra | W36: Standard reaction tubes, 1.5 ml, | X36: Standard reaction tubes, 2 ml,
B37: 106383 | C37: Sterile cryovials, 2 mL, single handed | D37: 1000 | E37: =ROUNDUP(kit_ordered*D31/unit_pack,0) -> 0 | F37: 261.4 | G37: Cryo-vials are necessary for storage , 1 tube per test + 5% extra | Y37: =C27+(C27*5)/100 -> 0
B38: 106554 | C38: Sterile filter tips, 0.1–10 µL | D38: 960 | E38: =ROUNDUP((kit_ordered*D31*2.05)/unit_pack,0) -> 0 | F38: 115.7 | G38: 2 tips per tests + 5% extra to add supernatant to PCR tubes and n x 5 μL DNA
B39: 106389 | C39: Sterile filter tips, 20–200 µL | D39: 960 | E39: =ROUNDUP((kit_ordered*D31*(2+1)+C18*(3+IF($C$22=$W$22,0,2)))*1.05/unit_pack,0) -> 0 | F39: 61 | G39: 2 tips per test for DNA extraction, 2 tips per batch for amplification, 1 tip per batch to add DEN - 1 tip per test to add DNA/amplicon - if twincubator used, 2 tips for SUB/CONJ + 5% extra
B40: 106390 | C40: Sterile filter tips, 100–1000 µL | D40: 960 | E40: =ROUNDUP(kit_ordered*D31*1.05/unit_pack,0) -> 0 | F40: 88.5 | G40: 1 tip per batch for mastermix + 5% extra
B41: 106412 | C41: Long 1-mL tips with filter | D41: 800 | E41: =ROUNDUP((kit_ordered*D31*2+IF($C$22=$W$22,0,kit_ordered*D31*2+IF(H42=X42,0,C18*8)))*1.05/unit_pack,0) -> 0 | F41: 90 | G41: 2 tips to add/discard decontaminated specimen - only for twincubator: 2 tips per batch to add hybridization and STR + 8 tips per batch to add rinse (3), water (3), SUB(1) CONJ (1) | H41: Select below: whether you use Combitips or not
B42: 106398 | C42: Dispenser tips, 12.5 mL | D42: 100 | E42: =IF(AND(H42=X42,$C$22=$X$22),ROUNDUP(C18*8*1.05/unit_pack,0),0) -> 0 | F42: 50 | G42: Alternative to long 1-mL tips - 8 tips per batch to add RINS (3), WATER (3), SUB (1) CONJ (1) + 5% extra | H42: Combitips is used | I42: <=Choose here | X42: Combitips is used | Y42: No Combitips
B43: 106434 | C43: Non-sterile Pasteur pipettes, 3 mL | D43: 500 | E43: =ROUNDUP((kit_ordered*$D$31*(2)+C18*5)*1.05/unit_pack,0) -> 0 | F43: 9.9 | G43: 2 pipettes per sample to remove hybridization and STR and 5 pipettes par batch to remove RINS, WATER, SUB and CONJ + 5% extra
B44: 106556 | C44: Sterile plastic laboratory forceps | D44: 50 | E44: =ROUNDUP(C18*2/unit_pack,0) -> 0 | F44: 7.45 | G44: 2 per batch
B45: 106355 | C45: Permanent marker | D45: 1 | E45: =ROUNDUP(kit_ordered/3/unit_pack,0) -> 0 | F45: 2.05 | G45: 1 pen for 3 kits
B46: 106384 | C46: Sterile plastic centrifuge tubes, 15 mL | D46: 500 | E46: =ROUNDUP(C18*4/unit_pack,0) -> 0 | F46: 48.95 | G46: 4 tubes per batch (diluting CON and SUB + HYB + STR)
B47: 106340 | C47: Sterile plastic centrifuge tubes, 50 mL | D47: 500 | E47: =ROUNDUP(C18*IF($C$22=$W$22,5,3)/unit_pack,0) -> 0 | F47: 45 | G47: 3 tubes per batch - 5 tubes if GT Blot 48 (decontamination)
B48: 106444 | C48: Plastic bags, 30 L | D48: 200 | E48: =ROUNDUP(Months*22*4/unit_pack,0) -> 0 | F48: 98.6 | G48: 4 per working day
B49: 106415 | C49: Square filter paper, 580 mm | D49: 100 | E49: =ROUNDUP(Months*22*8/unit_pack,0) -> 0 | F49: 111.4 | G49: 8 per working day
B50: 106439 | C50: GT-Blot 48 reagent set | D50: 1 | E50: =IF($C$22=$W$22,ROUNDUP(kit_ordered/3/unit_pack,0),0) -> 0 | F50: 0 | G50: 1 kit for 3 LPA kit if GT BLOT-48
B51: 106438 | C51: GT-Blot 48 tray for 96 strips (black) | D51: 1 | E51: =IF($C$22=$W$22,ROUNDUP(C18/10*1.2/unit_pack,0),0) -> 0 | F51: 2.9 | G51: 1 tray for 10 batches + 20%
B52: 106755 | C52: Paper towels | D52: 200 | E52: =ROUNDUP(12*22*40/unit_pack,0) -> 53 | F52: 1.45 | G52: 40 per day
B53: 106333 | C53: Ethanol / Isopropanol - 5 L | D53: 5 | E53: =ROUNDUP(Months*4.33*1/unit_pack,0) -> 0 | F53: 32.15 | G53: 1 L per week
C55: Summary | E55: Cost (US$)
C56: Total for LPA 1st-line test, MTBDR plus V2 | E56: =SUMPRODUCT(E31:E53*F31:F53) -> 76.85
C57: Total per LPA 1st-line test, MTBDR plus V2 | E57: =IF(C27=0,"-",E56/C27) -> -

Sheet LPA 2nd line
B1: LPA 2nd line Two methods are proposed for calculating the expected number of tests to be performed during the period.
B2: Values in red should be entered or adjusted according to actual country data and practices, when possible.
B3: Method 1: Consumption-based forecasting The expected number of tests is based on the average daily use per instrument module. | E3: Method 2: Morbidity-based forecasting The estimated number of tests calculated is based on epidemiological data (notifications) and planned algorithms. The calculated sum is the target to be reached when algorithms are implemented according to the indicated coverage and assumptions.
B4: Average number of LPA 2nd-line tests performed per month | C4: 0 | E4: Patient population | F4: Coverage of testing | G4: Number of LPA 1st-line tests for the period
B5: Number of LPA 2nd-line tests required for the period | C5: =C4*Months -> 0 | E5: Anticipated number of RR/MDR-TB cases to be detected in the year | F5: 0 | G5: =Epidemiology!$B$14*F5 -> 0
E6: People with detected INH mono-resistance (to test for fluoroquinolone resistance) | F6: 0 | G6: =(Epidemiology!$E$7+Epidemiology!$B$8)*F6*Epidemiology!B16 -> 0
E7: Total number of LPA 2nd-line tests required for the period | G7: =SUM(G5:G6) -> 0
B13: Number of batches per week | C13: 0 | E13: Enter the appropriate number based on past consumption. The default number is based on optimal use of the test.
B14: Number of specimens in one batch | C14: 0 | E14: Enter the appropriate number based on past consumption. The default number is based on optimal use of the test.
B15: Number of controls per batch | C15: 0 | E15: Enter the appropriate number based on past consumption. The default number is based on optimal use of the test.
B16: Number of LPA 2nd-line tests required for the period (with forecasting method 1 or 2 or a value in between) | C16: 0
B17: Average number of specimens per batch | C17: =C14+C15 -> 0
B18: Number of batches for the period | C18: =IF(C14=0,0,C16/C14) -> 0
B19: Number of tests (specimens plus controls) | C19: =C18*C17 -> 0
B20: Estimated repetitions (%) | C20: 0
B21: Number of extra tests per batch for pipetting error | C21: 1 | W21: Do not delete
B22: LPA equipment used in the laboratory | C22: GT-BLOT 48 | E22: <=Choose here | X22: GT-BLOT 48 | Y22: TWINCUBATOR
B23: DNA extraction with or without Genolyse | C23: With Genolyse | E23: <=Choose here
B24: For DNA extraction | C24: Standard reaction tubes, 2 ml | E24: <=Choose here | X24: Standard reaction tubes, 2 ml | Y24: Standard reaction tubes, 1,5ml
B25: Current stock
B26: Total number of tests to be performed during the period | C26: =ROUNDUP(C19+(C19*repet)+C21*C18,0) -> 0 | X26: With Genolyse | Y26: Without Genolyse
B27: Total number of test to be ordered | C27: =IF(C25=0,(ROUNDUP(C19+(C19*repet)+C21*C18,0)),((ROUNDUP(C19+(C19*repet)+C21*C18,0))-C25)) -> 0
B29: GDF code | C29: Item | D29: Units / pack | E29: No. of packs | F29: Unit cost (US$) | G29: Calculation details | H29: Options
B30: 106513 | C30: Geno Type MTBDRsl (96 tests/kit), Version 2.0 (30496A) | D30: 96 | E30: =ROUNDUP(C27/unit_pack,0) -> 0 | F30: 720 | H30: Two methods : 1 vial per batch or molecular-grade water is aliquoted Choose from the drop-down list
B31: 106477 | C31: GenoLyse (96 tests), Version 1.0 (51610) | D31: 96 | E31: =IF($C$23=$X$26,ROUNDUP(C27/D31,0),0) -> 0 | F31: 50
B32: 106254 | C32: Molecular-grade water - 10 x 1.7 mL | D32: 17 | E32: =IF(H32=Y32,ROUNDUP(C18*0.505/unit_pack,0),IF(C14*0.505<=1.8,ROUNDUP(C18/10,0),ROUNDUP(C14*0.505,0))) -> 0 | F32: 201.85 | G32: Volume required is 505 µL per batch - 1 vial per batch or aliquot Choose here => | H32: Aliquot | I32: <=Choose here | X32: 1 vial per Batch | Y32: Aliquot
B33: 106385 | C33: PCR tubes, 0.2 mL with attached caps, sterile, DNAse- RNAse-free, 1000 per pack | D33: 1000 | E33: =ROUNDUP((kit_ordered*D30*1.05)/unit_pack,0) -> 0 | F33: 45.8 | G33: 1 tube per test + 5%
B34: 106422 | C34: Microcentrifuge tubes, 2 mL | D34: 500 | E34: =IF(C24=X24,ROUNDUP(kit_ordered*D30*2/unit_pack,0),0) -> 0 | F34: 49.55 | G34: 2 tubes per test + 5% extra
B35: 106421 | C35: Microcentrifuge tubes, 1.5 mL | D35: =IF(B35=106350,1000,500) -> 500 | E35: =IF(C24=Y24,ROUNDUP(kit_ordered*D30*2/unit_pack,0),0) -> 0 | F35: 91.95 | G35: 2 tubes per test + 5% extra | X35: Standard reaction tubes, 1.5 ml, | Y35: Standard reaction tubes, 2 ml,
B36: 106383 | C36: Sterile cryovials, 2 mL, single handed | D36: 1000 | E36: =IF(H36=Z36,0,ROUNDUP(kit_ordered*D30/unit_pack,0)) -> 0 | F36: 261.4 | G36: Cryo-vials are required for storage, 1 tube per test + 5% extra | Z36: =total_test+(total_test*5)/100 -> 0
B37: 106554 | C37: Sterile filter tips, 0.1–10 µL | D37: 960 | E37: =ROUNDUP(E35*D35/D37,0) -> 0 | F37: 115.7 | G37: 1 tip par vial
B38: 106389 | C38: Sterile filter tips, 20–200 µL | D38: 960 | E38: =ROUNDUP((kit_ordered*D30*2.05)/unit_pack,0) -> 0 | F38: 61 | G38: 2 tips per test + 5% extra to add supernatent to PCR tubes and n x 5 μL DNA
B39: 106390 | C39: Sterile filter tips, 100–1000 µL | D39: 960 | E39: =ROUNDUP((kit_ordered*D30*(2+1)+C18*(3+IF($C$22=$X$22,0,2)))*1.05/unit_pack,0) -> 0 | F39: 88.5 | G39: 2 tips per test for DNA extraction, 2 tips per batch for amplification, 1 tip per batch to add DEN, 1 tip per test to add DNA/amplicon; if using twincubator, 2 tips for SUB/CONJ + 5% extra
B40: 106412 | C40: Long 1-mL tips with filter | D40: 800 | E40: =ROUNDUP(kit_ordered*D30*1.05/unit_pack,0) -> 0 | F40: 90 | G40: 1 tip per batch for mastermix + 5% extra
B41: 106398 | C41: Dispenser tips, 12.5 mL | D41: 100 | E41: =ROUNDUP((kit_ordered*D30*2+IF($C$22=$X$22,0,kit_ordered*D30*2+IF(H42=Y42,0,C18*8)))*1.05/unit_pack,0) -> 0 | F41: 50 | G41: 2 tips to add or discard decontaminated specimen; only for twincubator: 2 tips per batch to add hybridization and STR + 8 tips per batch to add RINS (3), WATER (3), SUB (1) CONJ (1) | H41: Select below whether you use Combitips or not
B42: 106434 | C42: Non-sterile Pasteur pipettes, 3 mL | D42: 500 | E42: =IF(AND(H42=Y42,$C$22=$Y$22),ROUNDUP(C18*8*1.05/unit_pack,0),0) -> 0 | F42: 9.9 | G42: Alternative to long 1-mL tips - 8 tips per batch to add RINS (3), WATER (3), SUB (1) CONJ (1) + 5% extra | H42: No Combitips | Y42: Combitips is used | Z42: No Combitips
B43: 106556 | C43: Sterile plastic laboratory forceps | D43: 50 | E43: =ROUNDUP((kit_ordered*$D$30*(2)+C18*5)*1.05/unit_pack,0) -> 0 | F43: 7.45 | G43: 2 pipettes per sample to remove hybridization and STR, and 5 pipettes par batch to remove RINS, WATER, SUB, CONJ + 5% extra
B44: 106355 | C44: Permanent marker | D44: 1 | E44: =ROUNDUP(C18*2/unit_pack,0) -> 0 | F44: 2.05 | G44: 2 per batch
B45: 106384 | C45: Sterile plastic centrifuge tubes, 15 mL | D45: 500 | E45: =ROUNDUP(kit_ordered/3/unit_pack,0) -> 0 | F45: 48.95 | G45: 1 pen for 3 kits
B46: 106340 | C46: Sterile plastic centrifuge tubes, 50 mL | D46: 500 | E46: =ROUNDUP(C18*4/unit_pack,0) -> 0 | F46: 45 | G46: 4 tubes per batch (for diluting CON and SUB + HYB + STR)
B47: 106444 | C47: Plastic bags, 30 L | D47: 200 | E47: =ROUNDUP(C18*IF($C$22=$X$22,5,3)/unit_pack,0) -> 0 | F47: 98.6 | G47: 3 tubes per batch - 5 tubes if GT Blot 48 (decontamination)
B48: 106415 | C48: Square filter paper, 580 mm | D48: 100 | E48: =ROUNDUP(Months*22*4/unit_pack,0) -> 0 | F48: 111.4 | G48: 4 per working day
B49: 106439 | C49: GT-Blot 48 reagent set | D49: 1 | E49: =ROUNDUP(Months*22*8/unit_pack,0) -> 0 | F49: 0 | G49: 8 per working day
B50: 106438 | C50: GT-Blot 48 tray for 96 strips (black) | D50: 1 | E50: =IF($C$22=$X$22,ROUNDUP(kit_ordered/3/unit_pack,0),0) -> 0 | F50: 2.9 | G50: 1 kit for 3 LPA kits if GT BLOT-48
B51: 106755 | C51: Paper towels | D51: 200 | E51: =IF($C$22=$X$22,ROUNDUP(C18/10*1.2/unit_pack,0),0) -> 0 | F51: 1.45 | G51: 1 tray for 10 batches + 20%
B52: 106333 | C52: Ethanol / isopropanol, 5 L | D52: 5 | E52: =ROUNDUP(Months*4.33*1/unit_pack,0) -> 0 | F52: 32.15 | G52: 40 per day
C54: Summary | E54: Cost (US$)
C55: Total for LPA 1st line, MTBDRplus V2 | E55: =SUMPRODUCT(E30:E52*F30:F52) -> 0
C56: Total per LPA 1st Line, MTBDRplus V2 | E56: =IF(C27=0,"-",E55/C27) -> -

Sheet MAX MDR-TB assay
A1: MAX MDR-TB assay Two methods are proposed for calculating the expected number of tests to be performed during the period.
B2: Values in red should be entered or adjusted according to actual country data and practices, when possible.
B3: Method 1: Consumption-based forecasting The expected number of tests is based on the number of tests performed last year | E3: Method 2: Morbidity-based forecasting The estimated number of tests calculated is based on epidemiological data (notifications) and planned algorithms. The calculated sum is the target to be reached when algorithms are implemented according to the indicated coverage and assumptions.
B4: Average number of MAX MDR-TB tests performed per month | C4: 0 | E4: Patient population | F4: Coverage of testing | G4: Number of MAX MDR-TB tests required for the period
B5: Number of MAX MDR-TB tests required for the period | C5: =C4*Months -> 0 | E5: People living with HIV (PLHIV) with signs and symptoms of TB | F5: 0 | G5: =ROUND((F5*Epidemiology!B12*Epidemiology!B20*Epidemiology!E20),-2) -> 0
E6: Children with signs and symptoms of TB | F6: 0 | G6: =ROUND(F6*Epidemiology!B9*Epidemiology!B10*Epidemiology!B26, -2) -> 0
E7: People at risk of drug-resistant TB | F7: 0 | G7: =ROUND(F7*(Epidemiology!E7*Epidemiology!B17)+Epidemiology!B8+(Epidemiology!B14*Epidemiology!E17), -2) -> 0
E8: Previously untreated HIV-negative adults with signs and symptoms of TB | F8: 0 | G8: =ROUND(F8*Epidemiology!E11*Epidemiology!E10*Epidemiology!C4*Epidemiology!B18,-2) -> 0
E9: New smear-positive TB cases receiving Xpert for rifampicin testing purposes (excluding those receiving it as the initial diagnostic test) | F9: 0 | G9: =ROUND(Epidemiology!C7-((Epidemiology!B9*Epidemiology!B10)+(Epidemiology!E7+Epidemiology!B8+Epidemiology!B14)+(Epidemiology!E11*Epidemiology!E10*Epidemiology!C4)+(Epidemiology!C7*Epidemiology!B10)),-2)*F9 -> 0
E10: Total number of MAX MDR-TB kits required for the period | G10: =SUM(G5:G9) -> 0
B15: Number of specimens per batch | C15: 0
B16: Number of controls per batch | C16: 0
B17: Number of MAX MDR-TB tests required for the period (with forecasting method 1 or 2 or a value in between) | C17: 0
B18: Average size of a batch | C18: =C15+C16 -> 0
B19: Number of batches required for the period | C19: =IF(C15=0,"0",C17/C15) -> 0
B20: Number of tests (specimens plus controls) | C20: =IF(C18=0,"0",C19*C18) -> 0
B21: Estimated repetitions (%) | C21: 0
B22: Number of extra tests per batch for pipetting error | C22: 1 | U22: Do not delete
B23: Current stock | C23: 0
B24: Total number of tests to be performed during the period | C24: =ROUNDUP(C20+(C20*repet)+C22*C19,0) -> 0
B25: Total number of tests to be ordered | C25: =IF(C23=0,(ROUNDUP(C20+(C20*repet)+C22*C19,0)),(ROUNDUP(C20+(C20*repet)+C22*C19,0)-C23)) -> 0
B27: GDF code | C27: Item | D27: Units / pack | E27: No. of packs | F27: Unit cost (US$) | G27: Calculation details
C28: BD MAX MDR-TB kit | D28: 24 | E28: =ROUNDUP(C25/unit_pack,0) -> 0 | F28: 0 | G28: Enter unit cost based on current procurement mechanism
C29: BD MAX STR kit | D29: 24 | E29: =ROUNDUP(C25/unit_pack,0) -> 0 | F29: 0
B30: 106384 | C30: Sterile plastic centrifuge tubes, 15 mL | D30: 500 | E30: =ROUNDUP(kit_ordered*D28*1.05/unit_pack,0) -> 0 | F30: 48.95 | G30: 1 tube per test + 5%
B31: 106422 | C31: Microcentrifuge tubes, 2 mL | D31: 500 | E31: =ROUNDUP(C19*2*1.05/unit_pack,0) -> 0 | F31: 49.55 | G31: 2 tubes per batch + 5% extra
B32: 106554 | C32: Sterile filter tips, 0.1–10 µL | D32: 960 | E32: =ROUNDUP((kit_ordered*D28*4*1.05)/unit_pack,0) -> 0 | F32: 115.7 | G32: 4 tips per tests + 5% extra
B33: 106389 | C33: Sterile filter tips, 20–200 µL | D33: 960 | E33: =ROUNDUP((kit_ordered*D28*4*1.05)/unit_pack,0) -> 0 | F33: 61 | G33: 4 tips per test + 5% extra
B34: 106390 | C34: Sterile filter tips, 100–1000 µL | D34: 960 | E34: =ROUNDUP((kit_ordered*D28*4*1.05)/unit_pack,0) -> 0 | F34: 88.5 | G34: 4 tips per test + 5% extra
B35: 106444 | C35: Plastic bags, 30 L | D35: 200 | E35: =ROUNDUP(Months*22*4/unit_pack,0) -> 0 | F35: 98.6 | G35: 4 per working day
B36: 106415 | C36: Square filter paper, 580 mm | D36: 100 | E36: =ROUNDUP(Months*22*8/unit_pack,0) -> 0 | F36: 111.4 | G36: 8 per working day
B37: 106755 | C37: Paper towels | D37: 200 | E37: =ROUNDUP(12*22*40/unit_pack,0) -> 53 | F37: 1.45 | G37: 40 per day
B38: 106333 | C38: Ethanol / isopropanol, 5 L | D38: 5 | E38: =ROUNDUP(Months*4.33*1/unit_pack,0) -> 0 | F38: 32.15 | G38: 1 L per week
C41: Summary | E41: Cost (US$)
C42: Total for MAX MDR-TB tests | E42: =SUMPRODUCT(E28:E38*F28:F38) -> 76.85
C43: Total per MAX MDR-TB test | E43: =IF(total_test=0,"-",(E42/total_test)) -> -

Sheet FluoroType MTBDR VER 2.0
A1: FluoroType® MTBDR VER 2.0 assays Two methods are proposed for calculating the expected number of tests to be performed during the period.
B2: Values in red should be entered or adjusted according to actual country data and practices, when possible.
B3: Method 1: Consumption-based forecasting The expected number of tests is based on the number of tests perfromed last year. | E3: Method 2: Morbidity-based forecasting The estimated number of tests calculated is based on epidemiological data (notifications) and planned algorithms. The calculated sum is the target to be reached when algorithms are implemented according to the indicated coverage and assumptions.
B4: Average number of FluoroType® MTBDR VER 2.0 tests performed per month | C4: 0 | E4: Patient population | F4: Coverage of testing | G4: Number of FluoroType® MTBDR VER 2.0 required for the period
B5: Number of FluoroType® MTBDR VER 2.0 tests required for the period | C5: =C4*Months -> 0 | E5: People living with HIV (PLHIV) with signs and symptoms of TB | F5: 0 | G5: =ROUND((F5*Epidemiology!B12*Epidemiology!B20*Epidemiology!E20),-2) -> 0
E6: Children with signs and symptoms of TB | F6: 0 | G6: =ROUND(F6*Epidemiology!B9*Epidemiology!B10*Epidemiology!B26, -2) -> 0
E7: People at risk of drug-resistant TB | F7: 0 | G7: =ROUND(F7*(Epidemiology!E7*Epidemiology!B17)+Epidemiology!B8+(Epidemiology!B14*Epidemiology!E17), -2) -> 0
E8: Previously untreated HIV-negative adults with signs and symptoms of TB | F8: 0 | G8: =ROUND(F8*Epidemiology!E11*Epidemiology!E10*Epidemiology!C4*Epidemiology!B18,-2) -> 0
E9: New smear-positive TB cases receiving Xpert for rifampicin testing (excluding those receiving it as the initial diagnostic test) | F9: 0 | G9: =ROUND(Epidemiology!C7-((Epidemiology!B9*Epidemiology!B10)+(Epidemiology!E7+Epidemiology!B8+Epidemiology!B14)+(Epidemiology!E11*Epidemiology!E10*Epidemiology!C4)+(Epidemiology!C7*Epidemiology!B10)),-2)*F9 -> 0
E10: Total number of FluoroType® MTBDR VER 2.0 tests required for the period | G10: =SUM(G5:G9) -> 0
B15: Number of specimens per batch | C15: 0
B16: Number of controls per batch | C16: 0
B17: Number of FluoroType® MTBDR VER 2.0 tests required for the period (with forecasting method 1 or 2 or a value in between) | C17: 0
B18: Average number of specimens in a batch | C18: =C15+C16 -> 0
B19: Number of batches required for the period | C19: =IF(C15=0,"0",C17/C15) -> 0
B20: Number of tests (specimens plus controls) | C20: =C19*C18 -> 0
B21: Estimated repetitions (%) | C21: 0
B22: Number of extra tests per batch for pipetting error | C22: 1 | V22: Do not delete
B23: Current stock | C23: 0
B24: Total number of tests to be performed during the period | V24: FluoroLyse Extraciton Kit
B25: Total number of tests to be ordered | C25: =IF(C23=0,(ROUNDUP(C20+(C20*repet)+C22*C19,0)),(ROUNDUP(C20+(C20*repet)+C22*C19,0))-C23) -> 0
B26: For DNA extraction | C26: FluoroLyse Extraciton Kit | E26: <=Choose here | V26: GXT DNA/ RNA Extraction Kit
B29: GDF code | C29: Item | D29: Units / pack | E29: No. of packs | F29: Unit cost (US$) | G29: Calculation details | H29: Options
C30: FluoroType MTBDR assay | D30: 96 | E30: =ROUNDUP(C25/unit_pack,0) -> 0 | F30: 0 | G30: Enter unit cost based on current procurement mechanism
C31: GXT DNA/ RNA Extraction Kit | D31: 96 | E31: =IF($C$26=$V$26,ROUNDUP(C25/unit_pack,0),0) -> 0 | F31: 0
C32: FluoroLyse Extraciton Kit | D32: 96 | E32: =IF($C$26=$V$24,ROUNDUP(C25/unit_pack,0),0) -> 0 | F32: 0
B33: 106384 | C33: Sterile plastic centrifuge tubes, 15 mL | D33: 500 | E33: =ROUNDUP(kit_ordered*D30*1.05/unit_pack,0) -> 0 | F33: 48.95 | G33: 1 tube per test + 5%
B34: 106422 | C34: Microcentrifuge tubes, 2 mL | D34: 500 | E34: =ROUNDUP(C19*2*1.05/unit_pack,0) -> 0 | F34: 49.55 | G34: 2 tubes per batch + 5% extra
B35: 106554 | C35: Sterile filter tips, 0.1–10 µL | D35: 960 | E35: =ROUNDUP((kit_ordered*D30*4*1.05)/unit_pack,0) -> 0 | F35: 115.7 | G35: 4 tips per test + 5% extra
B36: 106389 | C36: Sterile filter tips, 20–200 µL | D36: 960 | E36: =ROUNDUP((kit_ordered*D30*4*1.05)/unit_pack,0) -> 0 | F36: 61 | G36: 4 tips per test + 5% extra
B37: 106390 | C37: Sterile filter tips, 100–1000 µL | D37: 960 | E37: =ROUNDUP((kit_ordered*D30*4*1.05)/unit_pack,0) -> 0 | F37: 88.5 | G37: 4 tips per test + 5% extra
B38: 106444 | C38: Plastic bags, 30 L | D38: 200 | E38: =ROUNDUP(Months*22*4/unit_pack,0) -> 0 | F38: 98.6 | G38: 4 per working day
B39: 106415 | C39: Square filter paper, 580 mm | D39: 100 | E39: =ROUNDUP(Months*22*8/unit_pack,0) -> 0 | F39: 111.4 | G39: 8 per working day
B40: 106755 | C40: Paper towels | D40: 200 | E40: =ROUNDUP(12*22*40/unit_pack,0) -> 53 | F40: 1.45 | G40: 40 per day
B41: 106333 | C41: Ethanol / isopropanol, 5 L | D41: 5 | E41: =ROUNDUP(Months*4.33*1/unit_pack,0) -> 0 | F41: 32.15 | G41: 1 L per week
C43: Summary | E43: Cost (US$)
C44: Total for FluoroType® MTBDR VER 2.0 | E44: =SUMPRODUCT(E30:E41*F30:F41) -> 76.85
C45: Total per FluoroType® MTBDR VER 2.0 | E45: =IF(C25=0,"-",E44/C25) -> -

Sheet Cobas MTB and MTB-RIF-INH
A1: Cobas® MTB and MTB-RIF/INH assays Two methods are proposed for calculating the expected number of tests to be performed during the period.
B2: Values in red should be entered or adjusted according to actual country data and practices, when possible.
B3: Method 1: Consumption-based forecasting The expected number of tests is based on number of tests perfromed last year | E3: Method 2: Morbidity-based forecasting The estimated number of tests calculated is based on epidemiological data (notifications) and planned algorithms. The calculated sum is the target to be reached when algorithms are implemented according to the indicated coverage and assumptions.
B4: Average number of Cobas® MTB tests performed per month | C4: 0 | E4: Patient population | F4: Coverage of testing | G4: Number of Cobas® MTB and MTB-RIF/INH tests performed during the period
B5: Average number of Cobas® MTB RIF/IINH tests performed per month | C5: 0 | E5: People living with HIV (PLHIV) with signs and symptoms of TB | F5: 0 | G5: =ROUND((F5*Epidemiology!B12*Epidemiology!B20*Epidemiology!E20),-2) -> 0
B6: Number of Cobas® MTB and MTB-RIF/INH tests performed during the period | C6: =(C4+C5)*Months -> 0 | E6: Children with signs and symptoms of TB | F6: 0 | G6: =ROUND(F6*Epidemiology!B9*Epidemiology!B10*Epidemiology!B26, -2) -> 0
E7: People at risk of drug-resistant TB | F7: 0 | G7: =ROUND(F7*(Epidemiology!E7*Epidemiology!B17)+Epidemiology!B8+(Epidemiology!B14*Epidemiology!E17), -2) -> 0
E8: Previously untreated HIV-negative adults with signs and symptoms of TB | F8: 0 | G8: =ROUND(F8*Epidemiology!E11*Epidemiology!E10*Epidemiology!C4*Epidemiology!B18,-2) -> 0
E9: New smear-positive TB cases receiving Xpert for rifampicin testing purposes (excluding those receiving it as the initial diagnostic test) | F9: 0 | G9: =ROUND(Epidemiology!C7-((Epidemiology!B9*Epidemiology!B10)+(Epidemiology!E7+Epidemiology!B8+Epidemiology!B14)+(Epidemiology!E11*Epidemiology!E10*Epidemiology!C4)+(Epidemiology!C7*Epidemiology!B10)),-2)*F9 -> 0
E10: Total number of Cobas® MTB and MTB-RIF/INH tests required for the period | G10: =SUM(G5:G9) -> 0
B15: Number of specimens per batch | C15: 0
B16: Number of controls per batch | C16: 0
B17: Number of Cobas® MTB and MTB-RIF/INH tests performed during the period (with forecasting method 1 or 2 or a value in between) | C17: 0
B18: Average number of specimens in a batch | C18: =C15+C16 -> 0
B19: Number of batches used during the period | C19: =IF(C15=0,"0",C17/C15) -> 0
B20: Number of tests performed (specimens plus controls) | C20: =C19*C18 -> 0
B21: Estimated repetitions (%) | C21: 0
B22: Number of extra tests per batch for pipetting error | C22: 1 | U22: Do not delete
B23: Current stock | C23: 0
B24: Total number of tests performed during the period | C24: =(ROUNDUP(C20+(C20*repet)+C22*C19,0)) -> 0
B25: Total number of tests to be ordered | C25: =(ROUNDUP(C20+(C20*repet)+C22*C19,0))-C23 -> 0
B27: GDF code | C27: Item | D27: Units / pack | E27: No. of packs | F27: Unit cost (US$) | G27: Calculation details
C28: Cobas® MTB | D28: 384 | E28: =ROUNDUP(C25/unit_pack,0) -> 0 | F28: 0 | G28: Enter unit cost in current procurement mechanism
C29: Cobas® MTB Positive Control Kit | D29: 16 | E29: =C19/D29 -> 0 | F29: 0
C30: Cobas® 6800/8800 Buffer Negative Control Kit | D30: 16 | E30: =C19/D30 -> 0 | F30: 0
C31: Cobas® Microbial Inactivation Solution | D31: 16 | E31: =(C25*3.2)/480 -> 0 | F31: 0 | G31: 1:4 per sample. Volume sample estimated 0.8 = 3.2 inactivation buffer. Enter unit cost in current procurement mechanism.
C32: Cobas® MTB-RIF/INH | D32: 72 | E32: 3 | F32: 0 | G32: Enter unit cost in current procurement mechanism
C33: Cobas® MTB-RIF/INH Positive Control Kit | D33: 16 | E33: =C19/D29 -> 0 | F33: 0
C34: Cobas® 6800/8800 Buffer Negative Control Kit | D34: 16 | E34: =C19/D30 -> 0 | F34: 0
C35: Cobas Microbial Inactivation Solution | D35: 16 | E35: =(C25*3.2)/480 -> 0 | F35: 0
B36: 106384 | C36: Sterile plastic centrifuge tubes, 15 mL | D36: 500 | E36: =ROUNDUP(kit_ordered*D28*1.05/unit_pack,0) -> 0 | F36: 48.95 | G36: 1 tube per test + 5%
B37: 106422 | C37: Microcentrifuge tubes, 2 mL | D37: 500 | E37: =ROUNDUP(C19*2*1.05/unit_pack,0) -> 0 | F37: 49.55 | G37: 2 tubes per batch + 5% extra
B38: 106554 | C38: Sterile filter tips, 0.1–10 µL | D38: 960 | E38: =ROUNDUP((kit_ordered*D28*4*1.05)/unit_pack,0) -> 0 | F38: 115.7 | G38: 4 tips per tests + 5% extra
B39: 106389 | C39: Sterile filter tips, 20–200 µL | D39: 960 | E39: =ROUNDUP((kit_ordered*D28*4*1.05)/unit_pack,0) -> 0 | F39: 61 | G39: 4 tips per test + 5% extra
B40: 106390 | C40: Sterile filter tips, 100–1000 µL | D40: 960 | E40: =ROUNDUP((kit_ordered*D28*4*1.05)/unit_pack,0) -> 0 | F40: 88.5 | G40: 4 tips per test + 5% extra
B41: 106444 | C41: Plastic bags, 30 L | D41: 200 | E41: =ROUNDUP(Months*22*4/unit_pack,0) -> 0 | F41: 98.6 | G41: 4 per working day
B42: 106415 | C42: Square filter paper, 580 mm | D42: 100 | E42: =ROUNDUP(Months*22*8/unit_pack,0) -> 0 | F42: 111.4 | G42: 8 per working day
B43: 106755 | C43: Paper towels | D43: 200 | E43: =ROUNDUP(12*22*40/unit_pack,0) -> 53 | F43: 1.45 | G43: 40 per day
B44: 106333 | C44: Ethanol / isopropanol, 5 L | D44: 5 | E44: =ROUNDUP(Months*4.33*1/unit_pack,0) -> 0 | F44: 32.15 | G44: 1 L per week
C46: Summary | E46: Cost (US$)
C47: Total for Cobas® MTB and MTB-RIF/INH | E47: =SUMPRODUCT(E28:E44*F28:F44) -> 76.85
C48: Total per Cobas® MTB and MTB-RIF/INH | E48: =IF(C25=0,"-",E47/C25) -> -

Sheet Abbott RT MTB and MTB RIF-INH
A1: Abbott Real Time MTB and MTB RIF/INH assays Two methods are proposed for calculating the expected number of tests to be performed during the period.
B2: Values in red should be entered or adjusted according to actual country data and practices, when possible.
B3: Method 1: Consumption-based forecasting The expected number of tests is based on the number of tests perfomed last year. | E3: Method 2: Morbidity-based forecasting The estimated number of tests calculated is based on epidemiological data (notifications) and planned algorithms. The calculated sum is the target to be reached when algorithms are implemented according to the indicated coverage and assumptions.
B4: Average number of Abott RT MTB tests performed per month | C4: 0 | E4: Patient population | F4: Coverage of testing | G4: Number of Abbott MTB and MTB RIF/INH required for the period
B5: Average number of Abott RT MTB RIF/IINH tests performed per month | C5: 0 | E5: People living with HIV (PLHIV) with signs and symptoms of TB | F5: 0 | G5: =ROUND((F5*Epidemiology!B12*Epidemiology!B20*Epidemiology!E20),-2) -> 0
B6: Number of Abbott MTB and MTB RIF/INH tests performed during the period | C6: =(C4+C5)*Months -> 0 | E6: Children with signs and symptoms of TB | F6: 0 | G6: =ROUND(F6*Epidemiology!B9*Epidemiology!B10*Epidemiology!B26, -2) -> 0
E7: People at risk of drug-resistant TB | F7: 0 | G7: =ROUND(F7*(Epidemiology!E7*Epidemiology!B17)+Epidemiology!B8+(Epidemiology!B14*Epidemiology!E17), -2) -> 0
E8: Previously untreated HIV-negative adults with signs and symptoms of TB | F8: 0 | G8: =ROUND(F8*Epidemiology!E11*Epidemiology!E10*Epidemiology!C4*Epidemiology!B18,-2) -> 0
E9: New smear-positive TB cases receiving Xpert for rifampicin testing purposes (excluding those receiving it as the initial diagnostic test) | F9: 0 | G9: =ROUND(Epidemiology!C7-((Epidemiology!B9*Epidemiology!B10)+(Epidemiology!E7+Epidemiology!B8+Epidemiology!B14)+(Epidemiology!E11*Epidemiology!E10*Epidemiology!C4)+(Epidemiology!C7*Epidemiology!B10)),-2)*F9 -> 0
E10: Total number of Abbott MTB and MTB RIF/INH tests required during the period | G10: =SUM(G5:G9) -> 0
B15: Number of specimens per batch | C15: 0
B16: Number of controls per batch | C16: 0
B17: Number of Abbott MTB and MTB RIF/INH tests performed during the period (with forecasting method 1 or 2 or a value in between) | C17: 0
B18: Average number of specimens in a batch | C18: =C15+C16 -> 0
B19: Number of batches during the period | C19: =IF(C15=0,0,C17/C15) -> 0
B20: Number of tests (specimens plus controls) | C20: =C19*C18 -> 0
B21: Estimated repetitions (%) | C21: 0
B22: Number of extra tests per batch for pipetting error | C22: 1 | U22: Do not delete
B23: Current stock | C23: 0
B24: Total number of tests to be performed during the period | C24: =ROUNDUP(C20+(C20*repet)+C22*C19,0) -> 0
B25: Total number of tests to be ordered | C25: =IF(C23=0,0,(ROUNDUP(C20+(C20*repet)+C22*C19,0))-C23) -> 0
B27: GDF code | C27: Item | D27: Unit / pack | E27: Qty of pack | F27: Unit cost (US$) | G27: Calculation details
C28: Inactivation reagent | G28: Enter init cost in current procurement mechanism
C29: Abbott Sample Preparation System DNA kit | D29: 192 | E29: =ROUNDUP(C25/unit_pack,0) -> 0
C30: Abbott Real Time MTB Amplification Reagent Kit | D30: 96 | E30: =ROUNDUP(C25/unit_pack,0) -> 0
C31: Abbott Real Time MTB Control Kit | D31: 8 | E31: =C19/D31 -> 0
C32: Abbott Real Time MTB RIF/INH Resistance Amplification Reagent Kit | D32: 24 | E32: =ROUNDUP(C25/unit_pack,0) -> 0
C33: Abbott Real Time MTB RIF/INH Resistance Control Kit | D33: 4 | E33: =ROUNDUP(C19/unit_pack,0) -> 0
C34: Abbott 96-Well Optical Reaction Plates | D34: 20 | E34: =ROUNDUP(C25/unit_pack,0) -> 0
C35: Abbott 96-Deep-Well Plates and plate holder | D35: 32 | E35: =ROUNDUP(C25/unit_pack,0) -> 0
B36: 106384 | C36: Sterile plastic centrifuge tubes, 15 mL | D36: 500 | E36: =ROUNDUP(kit_ordered*D30*1.05/unit_pack,0) -> 0 | F36: 48.95 | G36: 1 tube per test + 5%
B37: 106422 | C37: Microcentrifuge tubes, 2 mL | D37: 500 | E37: =ROUNDUP(C19*2*1.05/unit_pack,0) -> 0 | F37: 49.55 | G37: 2 tubes per batch + 5% extra
B38: 106554 | C38: Sterile filter tips, 0.1–10 µL | D38: 960 | E38: =ROUNDUP((kit_ordered*D30*4*1.05)/unit_pack,0) -> 0 | F38: 115.7 | G38: 4 tips per test + 5% extra
B39: 106389 | C39: Sterile filter tips, 20–200 µL | D39: 960 | E39: =ROUNDUP((kit_ordered*D30*4*1.05)/unit_pack,0) -> 0 | F39: 61 | G39: 4 tips per test + 5% extra
B40: 106390 | C40: Sterile filter tips, 100–1000 µL | D40: 960 | E40: =ROUNDUP((kit_ordered*D30*4*1.05)/unit_pack,0) -> 0 | F40: 88.5 | G40: 4 tips per test + 5% extra
B41: 106444 | C41: Plastic bags, 30 L | D41: 200 | E41: =ROUNDUP(Months*22*4/unit_pack,0) -> 0 | F41: 98.6 | G41: 4 per working day
B42: 106415 | C42: Square filter paper, 580 mm | D42: 100 | E42: =ROUNDUP(Months*22*8/unit_pack,0) -> 0 | F42: 111.4 | G42: 8 per working day
B43: 106755 | C43: Paper towels | D43: 200 | E43: =ROUNDUP(12*22*40/unit_pack,0) -> 53 | F43: 1.45 | G43: 40 per day
B44: 106333 | C44: Ethanol / isopropanol, 5 L | D44: 5 | E44: =ROUNDUP(Months*4.33*1/unit_pack,0) -> 0 | F44: 32.15 | G44: 1 L per week
C46: Summary | E46: Cost (US$)
C47: Total for Abbott MTB and MTB RIF/INH | E47: =SUMPRODUCT(E30:E44*F30:F44) -> 76.85
C48: Total per Abbott MTB and MTB RIF/INH test | E48: =IF(C25=0,"-",E47/C25) -> -

Sheet Processing&solid-liquid culture
A1: Processing and solid/liquid culture Two methods are proposed for calculating the expected number of tests to be performed during the period.
B2: Values in red should be entered or adjusted according to actual country data and practices, when possible.
B3: Method 1: Consumption-based forecasting The expected number of tests is based on the average daily use per instrument module. | E3: Method 2: Morbidity-based forecasting The estimated number of tests calculated is based on epidemiological data (notifications) and planned algorithms. The calculated sum is the target to be reached when algorithms are implemented according to the indicated coverage and assumptions.
B4: Average number of samples processed for culture per month | C4: 0 | E4: Patient population | F4: Coverage of testing | G4: Number of samples processed for culture during the period
B5: Number of samples processed for culture during the period | C5: =C4*Months -> 0 | E5: Anticipated cases of RR/MDR-TB detected in the year | F5: 0 | G5: =Epidemiology!$B$14*F5 -> 0
E6: People at risk of INH mono-resistance | F6: 0 | G6: =(Epidemiology!$E$7+Epidemiology!$B$8)*F6*Epidemiology!B16 -> 0
E7: Total number of samples processed for culture during the period | G7: =SUM(G5:G6) -> 0
B15: LJ, home-made or ready-made | C15: Ready | D15: <=Choose here | E15: MGIT culture | F15: YES | G15: <=Choose here
B16: Number of samples processed for culture during the period (with forecasting method 1 or 2 or a value in between) | C16: 0 | E16: Number of samples processed for culture during the period (with forecasting method 1 or 2 or a value in between) | F16: 0 | AE16: Do not delete
B17: Number of slants used per sample | C17: 0 | E17: Repetition rate | F17: 0 | AF17: Petroff | AG17: NALC/NaOH
B18: Repetition rate | C18: 0 | E18: Contamination rate | F18: 0
B19: Contamination rate | C19: 0 | E19: MTB-positive cultures (%) | F19: 0
B20: Average volume (mL) per specimen to be decontaminated | C20: 0 | E20: Current stock | F20: 0
E21: Total number of samples required for the period | F21: =F16*(1+F17+F18) -> 0 | AE21: No | AF21: Ready | AG21: Home made
B22: Current stock | C22: 0 | E22: Total number of reagents to be ordered | F22: =(IF(AE25=F15,(F16*(1+F17+F18)),0))-F20 -> 0
B23: Total number of samples processed during the period | C23: =C16*(1+C18+C19) -> 0 | AF23: Sterile universal dispenser tips, 10 mL | AG23: Sterile, DNA-/RNAse-free tips, 100 - 1000 µl
B24: Total number of reagents to ber ordered | C24: =IF(C22=0,C16*(1+C18+C19),((C16*(1+C18+C19)))-C22) -> 0
B25: Number of slants produced with standard batch | C25: =IF(C20=0,0,ROUNDUP(1620/C20,0)) -> 0 | AE25: YES | AF25: NO
B26: Number of batches used during the period | C26: =IF(C25=0,0,ROUNDUP(C24/C25,0)) -> 0
B30: Decontamination method | C30: Petroff | D30: <=Choose here
B33: Solid culture
C35: GDF code | D35: Item | E35: Units / pack | F35: No. of packs | G35: Unit cost (US$) | H35: Calculation details
B36: Loewenstein-Jensen medium, ready-made | C36: 106259 | D36: TB medium LJ, 500 g | E36: 1 | F36: =IF($C$15=$AF$21,ROUNDUP(0.0375*C26/E36,0),0) -> 0 | G36: 69.55 | H36: Ready mix LJ: 37.5 g per batch
C37: 106268 | D37: Glycerol 99.5, 1 L | E37: 1 | F37: =IF($C$15=$AF$21,ROUNDUP(0.0375*C26/E37,0),0) -> 0 | G37: 10.55 | H37: 12 mL per batch
B39: Lowenstein-Jensen medium made from components | C39: 106263 | D39: Potassium dihydrogen phosphate, MW: 136.09, 1 kg | E39: 1 | F39: =IF($C$15=$AG$21,ROUNDUP(0.0024*C26/E39,0),0) -> 0 | G39: 36.7 | H39: 2.4 g per batch
C40: 106264 | D40: Magnesium sulfate-heptahydrate • 7H2O, MW: 246.48. 500 g | E40: 0.5 | F40: =IF($C$15=$AG$21,ROUNDUP(0.00024*C26/E40,0),0) -> 0 | G40: 8.25 | H40: 0.24 g per batch
C41: 106265 | D41: L-Asparagine-monohydrate • H2O, MW: 150.13, 250 g | E41: 0.1 | F41: =IF($C$15=$AG$21,ROUNDUP(0.0036*C26/E41,0),0) -> 0 | G41: 21.6 | H41: 3.6 g per batch
C42: 106266 | D42: Tri-magnesium di-citrate nonahydrate • 9 H2O, 500 g | E42: 0.1 | F42: =IF($C$15=$AG$21,ROUNDUP(0.0006*C26/E42,0),0) -> 0 | G42: 52.5 | H42: 0.6 g per batch
C43: 106267 | D43: Malachite green oxalate, 100 g | E43: 0.1 | F43: =IF($C$15=$AG$21,ROUNDUP(0.0004*C26/E43,0),0) -> 0 | G43: 112.95 | H43: 0.4 g per batch
C44: 106268 | D44: Glycerol 99.5, 1 L | E44: 1 | F44: =IF($C$15=$AG$21,ROUNDUP(0.012*C26/E44,0),0) -> 0 | G44: 10.55 | H44: 12 mL per batch
D45: Total cost for solid culture | G45: =SUMPRODUCT(F36:F44*G36:G44) -> 0
B47: Liquid culture
B49: MGIT liquid culture | C49: 106026 | D49: BBL MGIT tubes for use in Bactec MGIT 960 (7mL) - 100 tubes/pack | E49: 100 | F49: =IF(AE25=F15,ROUNDUP(F16*(1+F17+F18)/E49,0),0) -> 0 | G49: 195 | H49: 1 tube per test
C50: 106027 | D50: BACTEC MGIT 960 Supplement Kit (100 tests, PANTA and OADC combined) | E50: 100 | F50: =IF(AE25=F15,ROUNDUP(F16*(1+F17+F18)/E50,0),0) -> 0 | G50: 70.8 | H50: 1 tube per test
C51: 106098 | D51: Lime-glass culture tubes, 12 mL, screw caps | E51: 100 | F51: =IF(AE25=F15,ROUNDUP(F16*(1+F17+F18)*0.1/E51,0),0) -> 0 | G51: 43.6 | H51: 10% exchange per year
C52: 106340 | D52: Sterile plastic centrifuge tubes, 50 mL | E52: 500 | F52: =IF(AE25=F15,ROUNDUP(F16*(1+F17+F18)/E52,0),0) -> 0 | G52: 45 | H52: Same when processing 0 or 1 tube per test
C53: 106394 | D53: Single-use plastic Pasteur-pipettes, sterile, individually packed | E53: 500 | F53: =IF(AE25=F15,ROUNDUP(F22*(1+F19+0.1)/E53,0),0) -> 0 | G53: 36.85 | H53: For inoculation + contaminated tube + postive tube + repeat rate + 10% extra
C54: 106714 | D54: Disposable loops, 10 µL | E54: 500 | F54: =IF(AE25=F15,ROUNDUP(F16*F19*0.3/E54,0),0) -> 0 | G54: 16.8 | H54: 1 per positive
C55: 106344 | D55: Sterile cryovials, 2 mL | E55: 1000 | F55: =IF(AE25=F15,ROUNDUP(F16*F19*0.3/E55,0),0) -> 0 | G55: 295.9 | H55: 30% of positive
C56: 106052 | D56: Cardboard storage box for sterile cryovials, 2 mL | E56: 1 | F56: =IF(AE25=F15,ROUNDUP(F16*F19*0.3/81/E56,0),0) -> 0 | G56: 2.15 | H56: 81 positioned in a box
C57: 106823 | D57: Plastic Petri dishes | E57: 480 | G57: 1.95 | H57: 1 Petri dish for 4 positive + 20% contatminated tubes
C58: 106390/106398 | D58: Sterile, DNA-/RNAse-free tips, 100 - 1000 µl | E58: 960 or 100 | G58: 88.5 | H58: Dispenser tips: 1 or 2 tips per working day depending on workload P1000 : 1 tip for 5 tubes
C59: 106407 | D59: Brain-heart infusion agar | E59: 0.5 | F59: =IF(AE25=F15,ROUNDUP(Months/12*1,0),0) -> 0 | G59: 84.65 | H59: 1 pack per year
C60: 106362 | D60: Plastic foil | E60: 1 | F60: =IF(AE25=F15,ROUNDUP(Months/12*2,0),0) -> 0 | G60: 70.4 | H60: 2 rolls per year
D61: Total cost for liquiid culture | G61: =SUMPRODUCT(F49:F60*G49:G60) -> 0
B63: Processing
C64: GDF code | D64: Item | E64: Units / pack | F64: No. of packs | G64: Unit cost (US$) | H64: Calculation details
B65: Phosphate buffer according to Soerensen, 1/15 M, pH 6.8 or adjustable between pH 5 and 8.2 | C65: 106278 | D65: Di-sodium hydrogen phosphate anhydrous, MW: 141.96, 1 kg | E65: 1 | F65: =ROUNDUP((IF(C23=0,F22,C23)*0.04*1.5*0.00474),0) -> 0 | G65: 27 | H65: 4.74 g for 1 L of final buffer + 50% extra. Calculation for an average of 40 mL of final mix per specimen
C66: 106263 | D66: Potassium dihydrogen phosphate MW: 136.09, 1 kg | E66: 1 | F66: =ROUNDUP((IF(C23=0,F22,C23)*0.04*1.5*0.00454),0) -> 0 | G66: 36.7 | H66: 4.54 g/L for 1 L of final buffer + 50% extra. Calculation for an average of 40 mL of final mix per specimen
B68: Petroff decontamination method | C68: 106281 | D68: Sodium hydroxide, MW 40.00, purity ≥ 98%, pellets, 1 kg | E68: 1 | F68: =IF($C$30=$AF$17,ROUNDUP(IF(C23=0,F22,C23)*(C20/1000)*0.04/E68,0),0) -> 0 | G68: 13.55 | H68: 40 g/L of specimen
B70: NALC/NaOH decontamination method | C70: 106283 | D70: N-Acetyl-L-cysteine, MW: 163.19, purity ≥ 99%, 100 g | E70: 0.1 | F70: =IF($C$30=$AG$17,ROUNDUP(IF(C23=0,F22,C23)*(C20/1000)*0.005/E70,0),0) -> 0 | G70: 180.5 | H70: 5 g/L of specimen
C71: 106284 | D71: Tri-sodium citrate dihydrate · 2H2O, MW: 294.10, 1 kg | E71: 1 | F71: =IF($C$30=$AG$17,ROUNDUP(IF(C23=0,F22,C23)*(C20/1000)*0.029/2/E71,0),0) -> 0 | G71: 55.35 | H71: 14.5 g/L of final buffer
C72: 106281 | D72: Sodium hydroxide, MW 40.00, purity ≥ 98%, pellets, 1 kg | E72: 1 | F72: =IF($C$30=$AG$17,ROUNDUP(IF(C23=0,F22,C23)*(C20/1000)*0.02/E72,0),0) -> 0 | G72: 13.55 | H72: 20 g/L of final buffer
B74: Consumables | C74: 106340 | D74: Sterile plastic centrifuge tubes, 50 mL | E74: 500 | F74: =ROUNDUP(IF(C23=0,F22,C23)*1.1/E74,0) -> 0 | G74: 45 | H74: 1 tube per sample + 10% extra
B75: Consumables | C75: 106434 | D75: Disposable Pasteur pipettes, graduated, non-sterile, 155 mm | E75: 500 | F75: =ROUNDUP(Months/12,0) -> 0 | G75: 9.9 | H75: 1 pack per year
D76: Total cost for culture processing | G76: =SUMPRODUCT(F65:F75*G65:G75) -> 0
D80: Summary | F80: Cost (US$)
D81: Total cost for solid culture | F81: =G45 -> 0
D82: Total cost for liquid culture | F82: =G61 -> 0
D83: Total cost for sample processing | F83: =G76 -> 0
D84: Cost for one LJ culture | F84: =IF(C24=0,"-",F81/C24) -> -
D85: Cost for one MGIT | F85: =IF(F22=0,"-",F82/F22) -> -
D86: Cost for sample processing per sample | F86: =IF(C24=0,"-",F83/C24) -> -

Sheet ID
A1: Rapid MTB identification The method below is used to calculate the expected number of tests to be performed during the period.
A2: Values in red should be entered or adjusted according to actual country data and practices, when possible.
B3: Method 1: Consumption-based forecasting The expected number of tests is based on the average daily use per instrument module.
B4: Average number of samples tested for rapid MTB identification per month | C4: 0
B5: Current stock | C5: 0
B6: Number of samples to be processed for rapid MTB identification during the period | C6: =(C4*Months) -> 0
B7: Number of reagents to be ordered to process samples | C7: =IF(C5=0,0,(C4*Months)-C5) -> 0
B13: Number of positive culture tested for rapid MTB identification | D13: =C7 -> 0 | U13: MPT64
B14: Rapid MTB identification test | D14: Capilia TB Neo | E14: <=Choose here | U14: Capilia TB Neo
B17: GDF code | C17: Item | D17: No. / pack | E17: No. of packs | F17: Unit cost (US$)
B18: 106414 | C18: Rapid test for detection of MPT 64 Antigen - SD Bioline TB Ag MPT64 | D18: 25 | E18: =IF($D$14=$U$13,ROUNDUP((D13/D18),0),0) -> 0 | F18: 35
B19: 106394 | C19: Single-use, sterile plastic Pasteur pipettes, individually packed | D19: 500 | E19: =IF($D$14=$U$13,ROUNDUP((D19/D19),0),0) -> 0 | F19: 36.85
B20: 106714 | C20: Disposable loops, 10 µL | D20: 500 | E20: =IF($D$14=$U$13,ROUNDUP((D13/D20),0),0) -> 0 | F20: 16.8
B21: 106344 | C21: Sterile cryovials, 2 mL | D21: 1000 | E21: =IF($D$14=$U$13,ROUNDUP((D13/D21),0),0) -> 0 | F21: 295.9
C23: Summary | E23: Cost
C24: Total for SD Bioline TB Ag MPT64 | E24: =SUMPRODUCT(E18:E21*F18:F21) -> 0
C25: Total per SD Bioline TB Ag MPT64 test | E25: =IF(D13=0,0,E24/D13) -> 0
B29: GDF code | C29: Item | D29: No. / pack | E29: No. of packs | F29: Unit cost (US$)
B30: 106611 | C30: Capilia TB-Neo - Rapid test for detection of MPT 64 antigen | D30: 100 | E30: =IF($D$14=$U$14,ROUNDUP((D13/D30),0),0) -> 0 | F30: 100
B31: 106612 | C31: Capilia TB-Neo Extraction buffer (1 x 20 mL) | D31: 20 | E31: =IF($D$14=$U$14,ROUNDUP((D13/D30),0),0) -> 0 | F31: 8
B32: 106394 | C32: Sterile Pasteur pipettes, 3 mL | D32: 500 | E32: =IF($D$14=$U$14,ROUNDUP((D13/D30),0),0) -> 0 | F32: 36.85
B33: 106714 | C33: Disposable loops, 10 µL | D33: 500 | E33: =IF($D$14=$U$14,ROUNDUP((D13/D30),0),0) -> 0 | F33: 16.8
B34: 106344 | C34: Sterile cryovials, 2 mL | D34: 1000 | E34: =IF($D$14=$U$14,ROUNDUP((D13/D30),0),0) -> 0 | F34: 295.9
C36: Summary | E36: Cost (US$)
C37: Total for Capilia TB-Neo | E37: =SUMPRODUCT(E30:E34*F30:F34) -> 0
C38: Total per Capilia TB-Neo test | E38: =IF(D13=0,"-",E37/D13) -> -

Sheet LJ 1st line DST
A2: LJ 1st line Two methods are proposed for calculating the expected number of tests to be performed during the period.
A3: Values in red should be entered or adjusted according to actual country data and practices,when possible.
B4: Method 1: Consumption-based forecasting The expected number of tests is based on the average daily use per instrument module. | E4: Method 2: Morbidity-based forecasting The estimated number of tests calculated is based on epidemiological data (notifications) and planned algorithms. The calculated sum is the target to be reached when algorithms are implemented according to the indicated coverage and assumptions.
B5: Average number of LJ 1st-line tests performed per month | C5: 0 | E5: Patient population | F5: Coverage of testing | G5: Number of LJ 1st-line tests required during the period
B6: Number of LJ 1st-line to be performed during the period | C6: =C5*Months -> 0 | E6: Anticipated number of RR/MDR-TB cases to be detected during the year (to test for INH resistance) | F6: 0 | G6: =Epidemiology!$B$14*F6 -> 0
E7: People at risk of INH mono-resistance | F7: 0 | G7: =(Epidemiology!$E$7+Epidemiology!$B$8)*F7*Epidemiology!B16 -> 0
E8: Total number of samples to be processed for culture during the period | G8: =SUM(G6:G7) -> 0
B15: Number of LJ 1st-line tests performed during the period (with forecasting method 1 or 2 or a value in between) | C15: 0
B16: Expected repeat rate for 1st DST on LJ (%) | C16: 0
B17: Current stock | C17: 0
B18: Total number of tests to be performed during the period | C18: =(C15+(C15*C16)/100) -> 0
B19: Total number of tests to be ordered | C19: =IF(C17=0,0,((C15+(C15*C16)/100))-C17) -> 0
E20: Please enter needs per test here according to laboratory SOP (default values should be modified)
A22: GDF code | B22: Item | C22: Unit | D22: Units / pack | E22: Needs per test | F22: No. of packs | G22: Unit cost (US$)
A23: 106268 | B23: Glycerol 99.5 | C23: ml | D23: 1000 | E23: 0 | F23: =ROUNDUP((E23/D23)*C19,0) -> 0 | G23: 10.55
A24: 106259 | B24: TB medium LJ, 500 g | C24: g | D24: 500 | E24: 0 | F24: =ROUNDUP((E24/D24)*C19,0) -> 0 | G24: 69.55
A25: 106308 | B25: Isoniazid (INH) - for laboratory use | C25: g | D25: 5 | E25: 0 | F25: =ROUNDUP((E25/D25)*C19,0) -> 0 | G25: 40.5
A26: 106309 | B26: Rifampicin (RMP) - for laboratory use | C26: g | D26: 1 | E26: 0 | F26: =ROUNDUP((E26/D26)*C19,0) -> 0 | G26: 131.6
A27: 106311 | B27: Dihydro-streptomycin (DHSM) - for laboratory use | C27: g | D27: 5 | E27: 0 | F27: =ROUNDUP((E27/D27)*C19,0) -> 0 | G27: 65.61
A28: 106310 | B28: Ethambutol - for laboratory use | C28: g | D28: 25 | E28: 0 | F28: =ROUNDUP((E28/D28)*C19,0) -> 0 | G28: 140.1
A29: 106394 | B29: Single-use, sterile, plastic Pasteur-pipettes, individually packed | C29: pcs | D29: 500 | E29: 0 | F29: =ROUNDUP((E29/D29)*C19,0) -> 0 | G29: 36.85
A30: 106344 | B30: Sterile cryovials, 2 mL | C30: pcs | D30: 1000 | E30: 0 | F30: =ROUNDUP((E30/D30)*C19,0) -> 0 | G30: 295.9
B33: Summary | C33: Cost (US$)
B34: Total for 1st DST on LJ | C34: =SUMPRODUCT(F23:F30*G23:G30) -> 0
B35: Cost per 1st DST LJ test | C35: =IF(C19=0,"-",C34/C19) -> -

Sheet LJ 2nd line DST
A1: LJ 2nd line Two methods are proposed for calculating the expected number of tests to be performed during the period.
A2: Values in red should be entered or adjusted according to actual country data and practices,when possible.
B3: Method 1: Consumption-based forecasting The expected number of tests is based on the average daily use per instrument module. | E3: Method 2: Morbidity-based forecasting The estimated number of tests calculated is based on epidemiological data (notifications) and planned algorithms. The calculated sum is the target to be reached when algorithms are implemented according to the indicated coverage and assumptions.
B4: Average number of LJ 2nd-line tests performed per month | C4: 0 | E4: Patient population | F4: Coverage of testing (%) | G4: Number of LJ 2nd-line tests performed during the period
B5: Total number of LJ 2nd-line to be performed during the period | C5: =C4*Months -> 0 | E5: Anticipated number of RR/MDR-TB cases to be detected during the year | F5: 0 | G5: =Epidemiology!$B$14*F5 -> 0
E6: People with detected INH mono-resistance (to test for fluoroquinolone resistance) | F6: 0 | G6: =(Epidemiology!$E$7+Epidemiology!$B$8)*F6*Epidemiology!B16 -> 0
E7: Total number of samples to be processed for culture during the period | G7: =SUM(G5:G6) -> 0
B12: Number of LJ 1st-line tests performed during the period (with forecasting method 1 or 2 or a value in between) | C12: 0
B13: Expected repeat rate for 1st DST on LJ (%) | C13: 0
B14: Current stock | C14: 0
B15: Total number of tests to be performed during the period | C15: =(C12+((C12*C13)/100)) -> 0
B16: Total number of tests to be ordered | C16: =IF(C14=0,0,((C12+((C12*C13)/100)))-C14) -> 0
E18: Please enter needs per test here according to laboratory SOP (default values should be modified)
A20: GDF code | B20: Item | C20: Unit | D20: Units/pack | E20: Needs per test | F20: No. of packs | G20: Unit cost (US$) | H20: Calculation details
A21: 106268 | B21: Glycerol 99.5 | C21: ml | D21: 1000 | E21: 0 | F21: =ROUNDUP((E21/D21)*C16,0) -> 0 | G21: 10.55
A22: 106259 | B22: TB medium LJ, 500 g | C22: g | D22: 500 | E22: 0 | F22: =ROUNDUP((E22/D22)*C16,0) -> 0 | G22: 69.55
A23: 106560 | B23: Levofloxacin (LFX)- for laboratory use | C23: g | D23: 1 | E23: 0 | F23: =ROUNDUP((E23/D23)*C16,0) -> 0 | G23: 43.75
A24: 106316 | B24: Ethionamide (ETH) - for laboratory use | C24: g | D24: 5 | E24: 0 | F24: =ROUNDUP((E24/D24)*C16,0) -> 0 | G24: 135.2
A25: 106317 | B25: Kanamycin (KAN) - for laboratory use | C25: g | D25: 5 | E25: 0 | F25: =ROUNDUP((E25/D25)*C16,0) -> 0 | G25: 171.4
A26: 106318 | B26: Amikacin (AMI) - for laboratory use | C26: g | D26: 5 | E26: 0 | F26: =ROUNDUP((E26/D26)*C16,0) -> 0 | G26: 90
A27: 106319 | B27: Capreomycin (CM) - for laboratory use | C27: g | D27: 1 | E27: 0 | F27: =ROUNDUP((E27/D27)*C16,0) -> 0 | G27: 274.6
A28: 106396 | B28: Dispenser tips, 5 mL | C28: pieces | D28: 100 | E28: 0 | F28: =ROUNDUP((E28/D28)*C15,0) -> 0 | G28: 50
A29: 106394 | B29: Single-use, sterile plastic Pasteur pipettes, individually packed | C29: pieces | D29: 500 | E29: 0 | F29: =ROUNDUP((E29/D29)*C16,0) -> 0 | G29: 36.85
A30: 106344 | B30: Sterile cryovials, 2 mL | C30: pieces | D30: 1000 | E30: 0 | F30: =ROUNDUP((E30/D30)*C16,0) -> 0 | G30: 295.9
B33: Summary | C33: Cost (US$)
B34: Total for 2nd DST on LJ | C34: =SUMPRODUCT(F21:F30,G21:G30) -> 0
B35: Cost per test 2nd DST on LJ | C35: =IF(C15=0,"-",C34/C16) -> -

Sheet MGIT 1st line DST
A1: MGIT 1st line Two methods are proposed for calculating the expected number of tests to be performed during the period.
B2: Values in red should be entered or adjusted according to actual country data and practices, when possible.
B3: Method 1: Consumption-based forecasting The expected number of tests is based on the average daily use per instrument module. | E3: Method 2: Morbidity-based forecasting The estimated number of tests calculated is based on epidemiological data (notifications) and planned algorithms. The calculated sum is the target to be reached when algorithms are implemented according to the indicated coverage and assumptions.
B4: Average number of MGIT DST performed per month | C4: 0 | E4: Patient population | F4: Coverage of testing (%) | G4: Number of MGIT DST used during the period
B5: Number of MGIT DST to be performed during the period | C5: =C4*Months -> 0 | E5: Anticipated number of RR/MDR-TB cases to be detected during the year (to test for INH resistance) | F5: 0 | G5: =Epidemiology!$B$14*F5 -> 0
E6: People at risk of INH mono-resistance | F6: 0 | G6: =(Epidemiology!$E$7+Epidemiology!$B$8)*F6*Epidemiology!B16 -> 0
E7: Total number of samples processed for MGIT DST during the period | G7: =SUM(G5:G6) -> 0
B11: SIRE
B12: Number of strains to be tested for SIRE during the period (with forecasting method 1 or 2 or a value in between) | C12: 0
B13: Expected repeat rate for SIRE (%) | C13: 0
B14: Current stock | C14: 0
B15: Total number of tests to be performed during the period, including repeats | C15: =C12*(1+C13) -> 0
B16: Total number of tests to be ordered | C16: =(C12*(1+C13)-C14) -> 0
B17: PZA
B18: Number of strains tested for PZA during the period (with forecasting method 1 or 2 or a value in between) | C18: 0
B19: Expected repeat rate for PZA (%) | C19: 0
B20: Current stock | C20: 0
B21: Total number of tests to be performed during the period, including repeats | C21: =(C18*(1+C19)) -> 0
B22: Total number of tests to be ordered | C22: =(C21)-C20 -> 0
C24: FL and PZA DST on MGIT
B25: GDF code | C25: Item | D25: Units / pack | E25: No. of packs | F25: Unit cost (US$) | G25: Calculation details
B26: 106028 | C26: BACTEC™ MGIT™ 960 SIRE kit, One kit is sufficient for 40 test | D26: 40 | E26: =ROUNDUP(C16/D26,0) -> 0 | F26: 72.7
B27: 106026 | C27: BBL MGIT tubes for use in Bactec MGIT 960 (7 mL) - 100 tubes/pack | D27: 100 | E27: =ROUNDUP(C16*5/D27,0) -> 0 | F27: 195 | G27: 5 tubes per test
B28: 106389 | C28: Sterile filter tips, 20–200 µL | D28: 960 | E28: =IF(C16=0,0,ROUNDUP((C16+2)/D28,0)) -> 0 | F28: 61 | G28: 1 tip per test for adding drug + 1 tip per test for diluting GC
B29: 106390 | C29: Sterile filter tips, 100–1000 µL | D29: 960 | E29: =IF(C16=0,0,ROUNDUP((C16+2)/D29,0)) -> 0 | F29: 88.5 | G29: 1 tip per test for supplementation + 1 tip per test for bacteria
B30: 106181 | C30: Sterile dispenser tips, 10 mL | D30: 100 | E30: =ROUNDUP(IF(C16>1000,2,1.2)*Months*22/D30,0) -> 0 | F30: 196.65 | G30: 1 or 2 tips per working day, depending on workload
C31: Total for DST SIRE | F31: =SUMPRODUCT(E26:E30*F26:F30) -> 0
B34: 106033 | C34: BACTEC™ MGIT™ PZA Kit | D34: 50 | E34: =ROUNDUP(C22/D34,0) -> 0 | F34: 90.6
B35: 106036 | C35: BACTEC™ MGIT™ PZA Tubes - 25 | D35: 25 | E35: =ROUNDUP((C18*(1+C19)*2)/D35,0) -> 0 | F35: 53.55 | G35: 2 tubes per PZA
B36: 106389 | C36: Sterile pipette filter tips, 1–200 µL | D36: 960 | E36: =ROUNDUP(C18*(1+C19)/D36,0) -> 0 | F36: 61 | G36: 1 tip per test
B37: 106390 | C37: Sterile filter tips, 100–1000 µL | D37: 960 | E37: =ROUNDUP(C18*(1+C19)/D37,0) -> 0 | F37: 88.5 | G37: 1 tip per test
C38: Total for DST SIRE | F38: =SUMPRODUCT(E34:E37*F34:F37) -> 0
C43: Summary | D43: Cost (US$)
C44: Total amount for DST SIRE | D44: =F31 -> 0
C45: Total amount for DST PZA | D45: =F38 -> 0
C46: Total cost of liquid 1st-line DST | D46: =SUM(D44:D45) -> 0

Sheet MGIT 2nd line DST
A1: MGIT 2nd line Two methods are proposed for calculating the expected number of tests to be performed during the period.
B2: Values in red should be entered or adjusted according to actual country data and practices, when possible.
B3: Method 1: Consumption-based forecasting The expected number of tests is based on the average daily use per instrument module. | E3: Method 2: Morbidity-based forecasting The estimated number of tests calculated is based on epidemiological data (notifications) and planned algorithms. The calculated sum is the target to be reached when algorithms are implemented according to the indicated coverage and assumptions.
B4: Average number of MGIT DST performed per month | C4: 0 | E4: Patient population | F4: Coverage of testing (%) | G4: Number of MGIT DST to be performed during the period
B5: Number of MGIT DST to be performed during the period | C5: =C4*Months -> 0 | E5: Anticipated number of RR/MDR-TB cases to be detected during the year | F5: 1 | G5: =Epidemiology!$B$14*F5 -> 0
E6: People with detected INH mono-resistance (to test for fluoroquinolone resistance) | F6: 1 | G6: =(Epidemiology!$E$7+Epidemiology!$B$8)*F6*Epidemiology!B16 -> 0
E7: Total number of samples to be processed for MGIT DST during the period | G7: =SUM(G5:G6) -> 0
B13: Drug formulas | C13: Lyophilized vials
B14: Number of strains tested for SLD during the period (with forecasting method 1 or 2 or a value in between) | C14: 0
B15: Expected repeat rate for SLD MGIT (%) | C15: 0
B16: Current stock | C16: 0
B17: Total number of tests to be performed during the period | C17: =(ROUNDUP(C14*(1+C15),0)) -> 0
B18: Total number of tests to be oredered | C18: =(ROUNDUP(C14*(1+C15),0))-C16 -> 0
T20: Lyophilized vials | U20: Pure drugs substances
E21: Please enter needs per test here according to laboratory SOP (default values should be modified)
A22: GDF code | B22: Item | C22: Unit | D22: No. / pack | E22: Needs per test | F22: No. of packs | G22: Unit cost (US$) | H22: Calculation details
A23: 106585 | B23: Moxifloxacin - lyophilized drug for laboratory use, 6-vial pack | C23: pack | D23: 1 | E23: 0 | F23: =IF(C13=T20,ROUNDUP((E23/D23)*$C$18,0),0) -> 0 | G23: 90
A24: 106586 | B24: Amikacin - lyophilized drug for laboratory use, 6-vial pack | C24: pack | D24: 1 | E24: 0 | F24: =IF(C13=T20,ROUNDUP((E24/D24)*$C$18,0),0) -> 0 | G24: 90
A25: 106584 | B25: Kanamycin – lyophilized drug for laboratory use, 6-vial pack | C25: pack | D25: 1 | E25: 0 | F25: =IF(C13=T20,ROUNDUP((E25/D25)*$C$18,0),0) -> 0 | G25: 90
A26: 106587 | B26: Capreomycin - lyophilized drug for laboratory use, 6-vial pack | C26: pack | D26: 1 | E26: 0 | F26: =IF(C13=T20,ROUNDUP((E26/D26)*$C$18,0),0) -> 0 | G26: 90
A27: 106582 | B27: BD BBL Middlebrook OADC Enrichment, 20 mL per tube, ''A'' size tube, BD BBL™ Middlebrook OADC Enrichment, 20 mL per tube, ''A'' size tube (10/sp) | C27: pack/mL | D27: 200 | E27: 0 | F27: =IF(C13=T20,ROUNDUP((E27/D27)*$C$18,0),0) -> 0 | G27: 65.8
A28: 106026 | B28: BBL MGIT Tubes for use in Bactec MGIT 960 (7 mL) - 100 tubes/pack | C28: box/tubes | D28: 100 | E28: 0 | F28: =IF(C13=T20,ROUNDUP((E28/D28)*$C$18,0),0) -> 0 | G28: 195
A29: 106412 | B29: Long 1-mL tips with filter | C29: box/pieces | D29: 800 | E29: 0 | F29: =IF(C13=T20,ROUNDUP((E29/D29)*$C$18,0),0) -> 0 | G29: 90
D30: Total number of DST 2nd-line tests required | G30: =SUMPRODUCT(F23:F29,G23:G29) -> 0
E33: Please enter needs per test here according to laboratory SOP (default values should be modified)
A34: GDF code | B34: Item | C34: Unit | D34: No. / pack | E34: Needs per test | F34: No. of packs | G34: Unit cost (US$) | H34: Calculation details
A35: 106315 | B35: Prothionamide (PTH) - for laboratory use | C35: g | D35: 2 | E35: 0 | F35: =IF($C$13=$U$20,ROUNDUP((E35/D35)*$C$18,0),0) -> 0 | G35: 165.9
A36: 106319 | B36: Capreomycin (CM) - for laboratory use | C36: g | D36: 1 | E36: 0 | F36: 0 | G36: 274.6
A37: 106560 | B37: Levofloxacin - for laboratory use | C37: g | D37: 1 | E37: 0 | F37: 0 | G37: 43.75
A38: 106653 | B38: Linezolid - for laboratory use | C38: mg | D38: 0 | E38: 0 | F38: 0 | G38: 516.95
A39: 106654 | B39: Clofazimine - for laboratory use | C39: g | D39: 0 | E39: 0 | F39: 0 | G39: 111.3
B40: Bedaquiline - for laboratory use | C40: g | D40: 0 | E40: 0 | F40: 0 | G40: 0
B41: Delamanid - for laboratory use | C41: g | D41: 0 | E41: 0 | F41: 0 | G41: 0
A42: 106623 | B42: BBL MGIT OADC Enrichment, 6 15-mL vials (90 mL) | C42: pack/mL | D42: 90 | E42: 0 | F42: 0 | G42: 55
A43: 106026 | B43: BBL MGIT tubes for use in Bactec MGIT 960 (7 mL) - 100 tubes/pack | C43: box/tubes | D43: 100 | E43: 0 | F43: 0 | G43: 195
A44: 106209 | B44: Serological pipette, 5 mL | C44: pack/pieces | D44: 200 | E44: 0 | F44: 0 | G44: 60.95
A45: 106550 | B45: Serological pipette 10 mL | C45: pack/pieces | D45: 200 | E45: 0 | F45: 0 | G45: 62.1
A46: 106344 | B46: Sterile cryovials, 2 mL | C46: pack/pieces | D46: 1000 | E46: 0 | F46: 0 | G46: 295.9
A47: 106388 | B47: Sterile pipette filter tips, 5–100 µL | C47: pack/pieces | D47: 960 | E47: 0 | F47: 0 | G47: 61
A48: 106352 | B48: Single-use syringes, sterile | C48: pack/pieces | D48: 80 | E48: 0 | F48: 0 | G48: 86.05
D49: Total number of DST 2nd-line tests required | G49: =SUMPRODUCT(F35:F48,G35:G48) -> 0
B56: BACTEC MGIT 960 Instrument capacity required to run tests for culture, 1st line DST and 2nd line DST
B58: Number of tests performed | D58: Total tests | E58: Maximum number of days for detection according to protocol | F58: Number of tubes per test according to protocol | G58: Period (days) | H58: Comments
B59: Total test culture (+%repeat+%cont) | D59: ='Processing&solid-liquid culture'!F21 -> 0 | E59: 42 | F59: 1 | G59: =365*(period/12) -> 
B60: Total test SIRE (+%repeat) | D60: ='MGIT 1st line DST'!C15 -> 0 | E60: 13 | F60: 5 | G60: =365*(period/12) ->  | H60: AST Carrier Set for 5 tubes
B61: Total test PZA (+%repeat) | D61: ='MGIT 1st line DST'!C21 -> 0 | E61: 21 | F61: 2 | G61: =365*(period/12) ->  | H61: AST Carrier Set for 2 tubes
B62: Total test 2nd-line drugs (+%repeat) with ready reagents | D62: =IF(C13=T20,C17,0) -> 0 | E62: 13 | F62: 8 | G62: =365*(period/12) ->  | H62: AST Carrier Set for 8 tubes
B63: Total test 2nd-line drugs (+%repeat) with powder reagents | D63: =IF($C$13=$U$20,C17,0) -> 0 | E63: 13 | F63: 8 | G63: =365*(period/12) ->  | H63: AST Carrier Set for 8 tubes
B65: Capacity used (number of tubes) | D65: Number of tubes
B66: Capacity used by tubes for culture | D66: =((D59*F59)/G59)*E59 -> 
B67: Capacity used by SIRE tubes | D67: =((D60*F60)/G60)*E60 -> 
B68: Capacity used by PZA tubes | D68: =((D61*F61)/G61)*E61 -> 
B69: Capacity used by 2nd-line drugs tubes | D69: =(((D62*F62)/G62)*E62) + (((D63*F63)/G63)*E63) -> 
B70: Total capacity used by tests in period | D70: =SUM(D66:D69) -> 
B72: Number of Bactec 960 systems needed to match the required capacity: | D72: =D70*1/960 -> 

Sheet Biosafety and cleaning
A1: Cleaning and biosafety
B3: Number of staff in the laboratory | C3: 1
B4: Number of staff in the BSL3 | C4: 1
B5: Number of biosafety cabinets | C5: 1
B7: Cleaning
B9: GDF code | C9: Family | D9: Item | E9: No. per pack | F9: Quantity | G9: Price (US$) | H9: Comment
B10: 106376 | C10: Consumables | D10: Cotton wool | E10: 1 | F10: =ROUNDUP(Months/2/E10,0) -> 0 | G10: 8.55 | H10: 1 roll per 2 months
B11: 106444 | C11: Consumables | D11: Plastic bags, biohazard waste, 30 L | E11: 200 | F11: =ROUNDUP(Months*110/E11,0) -> 0 | G11: 98.6 | H11: 3 per day for changing room + 1 per BSC
B12: 106348 | C12: Consumables | D12: Transparent polypropylene waste bag, 420 x 600 mm | E12: 1000 | F12: =ROUNDUP(Months*22*3/E12,0) -> 0 | G12: 107.05 | H12: 3 per day
B13: 106755 | C13: Consumables | D13: Paper towels, 200 | E13: 1 | F13: =ROUNDUP(Months/2/E13,0) -> 0 | G13: 1.45 | H13: 1 per 2 months
B14: 106359 | C14: Consumables | D14: Sterile indicator tape, autoclave | E14: 1 | F14: =ROUNDUP(Months/3*2/E14,0) -> 0 | G14: 2.15 | H14: 2 per quarter
B15: 106358 | C15: Consumables | D15: Sterile indicator tape, hot-air oven | E15: 1 | F15: =ROUNDUP(Months/3*2/E15,0) -> 0 | G15: 14.25 | H15: 2 per quarter
B16: 106377 | C16: Consumables | D16: Absorbent laboratory paper | E16: 50 | F16: =ROUNDUP(Months*22*BSC/E16,0) -> 0 | G16: 30.8 | H16: 2 per BSC per day | L16: =Months -> 0
B17: 106363 | C17: Consumables | D17: Tube brush | E17: 5 | F17: =ROUNDUP('Processing&solid-liquid culture'!F21/500/E17,0) -> 0 | G17: 8.95 | H17: For culture, 1 per 500 cultures
B18: 106371 | C18: Consumables | D18: Disinfectant for BSC surface | E18: 1 | F18: =ROUNDUP(Months/3*BSC/E18,0) -> 0 | G18: 35.2 | H18: 1 bottle per quarter per BSC
B19: 106294 | C19: Consumables | D19: Disinfectant for cleaning instrument | E19: 1 | F19: =ROUNDUP(Months/3*BSC/E19,0) -> 0 | G19: 46.55 | H19: 1 bottle per quarter per BSC
B20: 106370 | C20: Consumables | D20: Disinfectant for floors | E20: 1 | F20: =ROUNDUP(Months/3/E20,0) -> 0 | G20: 17 | H20: 1 per 2 months
B21: 106374 | C21: Consumables | D21: Disinfectant for hands, 1 L | E21: 1 | F21: =ROUNDUP(Months/0.5/E21,0) -> 0 | G21: 8.2 | H21: 2 per month
B22: 106333 | C22: Chemicals | D22: Ethanol / isopropanol, 5 L | E22: 1 | F22: =ROUNDUP(Months/1.5/E22,0) -> 0 | G22: 32.15 | H22: 2 bottles per quarter per BSC
B23: 106331 | C23: Chemicals | D23: Phenol, 1 kg | E23: 1 | F23: =ROUNDUP(Months*22*0.025/E23,0) -> 0 | G23: 63.2 | H23: 25 g per day
B24: 106373 | C24: Consumables | D24: Liquid soap | E24: 1 | F24: =ROUNDUP(Months/0.33/E24,0) -> 0 | G24: 3.9 | H24: 3 per month
B26: Biosafety | D26: For staff working in BSL3 laboratory only
B27: 106727 | C27: Consumables | D27: Hair cover | E27: 1000 | F27: =ROUNDUP(staff3*Months*22/E27,0) -> 0 | G27: 61.45 | H27: 1 per day per staff
B28: 106726 | C28: Consumables | D28: Shoe cover | E28: 2000 | F28: =ROUNDUP(staff3*Months*22*4/E28,0) -> 0 | G28: 213.25 | H28: 4 per day per staff
B29: 106725 | C29: Consumables | D29: Laboratory coat size L - disposable - sterile | E29: 60 | F29: =ROUNDUP(staff3*Months*4.33*0.66/E29,0) -> 0 | G29: 501.25 | H29: 0.66 per week per staff
B30: 106724 | C30: Consumables | D30: Laboratory coat size M - disposable - sterile | E30: 60 | F30: =ROUNDUP(staff3*Months*4.33*1.32/E30,0) -> 0 | G30: 501.25 | H30: 1.32 per week per staff
B31: 106723 | C31: Consumables | D31: Laboratory coat size S - disposable - sterile | E31: 60 | F31: =ROUNDUP(staff3*Months*4.33*0.33/E31,0) -> 0 | G31: 501.25 | H31: 0.66 per week per staff
B32: 106820 | C32: Consumables | D32: Latex gloves size L | E32: 100 | F32: =ROUNDUP(staff3*Months*22*10*0.33/E32,0) -> 0 | G32: 19.65 | H32: 10 per staff per day
B33: 106819 | C33: Consumables | D33: Latex gloves size M | E33: 100 | F33: =ROUNDUP(staff3*Months*22*10*0.66/E33,0) -> 0 | G33: 19.65 | H33: 10 per staff per day
B34: 106818 | C34: Consumables | D34: Latex gloves size S | E34: 100 | F34: =ROUNDUP(staff3*Months*22*10*0.33/E34,0) -> 0 | G34: 19.65 | H34: 10 per staff per day
B35: 106829 | C35: Consumables | D35: Disposable respirators FFP2 | E35: 20 | F35: =ROUNDUP(staff3*Months*4.33/E35,0) -> 0 | G35: 40.1 | H35: 2 per staff per week
B36: 106502 | C36: Consumables | D36: Surgical gown - cotton - L | E36: 1 | F36: =ROUNDUP(Months*4.33*BSC/E36,0) -> 0 | G36: 18.9 | H36: 1 per BSC per week
B37: 106501 | C37: Consumables | D37: Surgical gown - cotton - M | E37: 1 | F37: =ROUNDUP(Months*4.33*BSC/E37,0) -> 0 | G37: 18.9 | H37: 1 per BSC per week
B38: 106500 | C38: Consumables | D38: Surgical gown - cotton - S | E38: 1 | F38: =ROUNDUP(Months*4.33*BSC/E38,0) -> 0 | G38: 18.9 | H38: 1 per BSC per week
B39: 106094 | C39: Consumables | D39: First-aid kit for scientific laboratories | E39: 1 | F39: 0 | G39: 248.85 | H39: 1 per 3 years
D42: Summary | G42: Cost (US$)
D43: Cost for cleaning | G43: =SUMPRODUCT(F10:F24,G10:G24) -> 0
D44: Cost for biosafety | G44: =SUMPRODUCT(F27:F39,G27:G39) -> 0
D45: Total cost | G45: =G43+G44 -> 0

Sheet Maintenance & repair
A1: Maintenance and repair
C2: Exchange rate | D2: 1 | E2: 0
B4: Costs of equipment service and maintenance contracts
B5: Equipment | C5: No. of units | D5: Unit cost (US$) | E5: Service costs for 1 year (US$) | F5: Comments/Details
B6: Biosafety cabinets | C6: 0
B7: Service contract for 1 year | C7: 0 | D7: 0 | E7: =D7*C7 -> 0
B8: Spare parts | C8: 0 | D8: 0 | E8: =D8*C8 -> 0
B9: Travel and accommodation for technician | C9: 0 | D9: 0 | E9: =D9*C9 -> 0
B10: Sub-total | E10: =SUM(E7:E9) -> 0
B11: Twincubator (LPA) | C11: 0
B12: Service contract for 1 year | C12: 0 | D12: 0 | E12: 0
B13: Spare parts | C13: 0 | D13: 0 | E13: =D13*C13 -> 0
B14: Travel and accommodation for technician | C14: 0 | D14: 0 | E14: =D14*C14 -> 0
B15: Sub-total | E15: =SUM(E12:E14) -> 0
B17: Thermocycler | C17: 0
B18: Service contract for 1 year | C18: 0 | D18: 0 | E18: =D18*C18 -> 0
B19: Spare parts | C19: 0 | D19: 0 | E19: =D19*C19 -> 0
B20: Travel and accommodation for technician | C20: 0 | D20: 0 | E20: =D20*C20 -> 0
B21: Sub-total | E21: =SUM(E18:E20) -> 0
B23: Laminar flow (PCR workstation) | C23: 0
B24: Service contract for 1 year | C24: 0 | D24: 0 | E24: =D24*C24 -> 0
B25: Spare parts | C25: 0 | D25: 0 | E25: =D25*C25 -> 0
B26: Travel and accommodation for technician | C26: 0 | D26: 0 | E26: =D26*C26 -> 0
B27: Sub-total | E27: =SUM(E24:E26) -> 0
B29: Autoclave | C29: 0
B30: Service contract for 1 year | C30: 0 | D30: 0 | E30: =D30*C30 -> 0
B31: Spare parts | C31: 0 | D31: 0 | E31: =D31*C31 -> 0
B32: Travel and accommodation for technician | C32: 0 | D32: 0 | E32: =D32*C32 -> 0
B33: Sub-total | E33: =SUM(E30:E32) -> 0
B35: BD BACTEC™ MGIT™ 960 System | C35: 0
B36: Service contract for 1 year | C36: 0 | D36: 0 | E36: =D36*C36 -> 0 | F36: 1 visit per calendar year, 2 emergency calls
B37: Travel and accommodation for technician | C37: 0 | D37: 0 | E37: =D37*C37 -> 0 | F37: For emergency visits only (1/year)
B38: BD BBL™ air filters, rectangular, 2 packs (1 each year) | C38: 0 | D38: 0 | E38: =D38*C38 -> 0
B39: BD BBL™ Calibrator Kit (for 1 drawer) | C39: 0 | D39: 0 | E39: =D39*C39 -> 0
B40: Sub-total | E40: =SUM(E36:E39) -> 0
B43: BD MAX MDR-TB | C43: 0
C44: 0 | D44: 0 | E44: =D44*C44 -> 0
C45: 0 | D45: 0 | E45: =D45*C45 -> 0
B46: Sub-total | E46: =SUM(E44:E45) -> 0
B48: FluoroType MTBDR VER 2.0 | C48: 0
C49: 0 | D49: 0 | E49: =D49*C49 -> 0
C50: 0 | D50: 0 | E50: =D50*C50 -> 0
B51: Sub-total | E51: =SUM(E49:E50) -> 0
B53: Cobas®️ MTB and MTB-RIF-INH | C53: 0
C54: 0 | D54: 0 | E54: =D54*C54 -> 0
C55: 0 | D55: 0 | E55: =D55*C55 -> 0
B56: Sub-total | E56: =SUM(E54:E55) -> 0
B58: Abbott RT MTB and MTB RIF-INH | C58: 0
C59: 0 | D59: 0 | E59: =D59*C59 -> 0
C60: 0 | D60: 0 | E60: =D60*C60 -> 0
B61: Sub-total | E61: =SUM(E59:E60) -> 0
A63: GDF code | B63: GeneXpert 4-module | C63: 0 | D63: Unit cost (US$)* GDF catalogue prices
A64: WX04RG12 | B64: 1-year warranty extension | C64: 0 | D64: 2898 | E64: =D64*C64 -> 0 | F64: Warranty includes 1 Xpert Check kit for year 1; therefore, another kit must be ordered separately for year 2.
A65: WX04RG36 | B65: 3-year warranty extension | C65: 0 | D65: 7902 | E65: =D65*C65 -> 0 | F65: This warranty includes Xpert Check kits for years 1, 2, 3 and 4; therefore, another kit must be ordered separately for year 5.
A66: WX04UP36 | B66: 3-year warranty extension, ordered with system | C66: 0 | D66: 6840 | E66: =D66*C66 -> 0 | F66: This warranty includes Xpert Check kits for years 1, 2, 3 and 4; therefore, another kit must be ordered separately for year 5.
A67: XPERTCHECKCE-5 | B67: XpertCheck Calibration Pack for GeneXpert GX-IV 4-Module system | C67: 0 | D67: 450 | E67: 0 | F67: An XpertCheck pack should be ordered when ordering a new GeneXpert system without a 3-year warranty extension (WX04UP36). The packs will be used after year 1, during the initial free 2-year warranty.
A68: 700-4510 | B68: Dust filter for GeneXpert system | C68: 0 | D68: 350 | E68: 0 | F68: Additional filter required for dusty environments Product linked to all Xpert systems
A69: GXIV-Module | B69: Additional or replacement GeneXpert module | C69: 0 | D69: 3360 | E69: 0
A70: GX-SWAP-1 | B70: 1 module replacement | C70: 0 | D70: 900 | E70: 0
B71: Upgrade to 10-colour instrument | C71: 0 | D71: 0 | E71: =D71*C71 -> 0
B72: Travel and accommodation of technician | C72: 0 | D72: 0 | E72: =D72*C72 -> 0
B73: Sub-total | E73: =SUM(E64:E72) -> 0
A75: GDF code | B75: GeneXpert 2-module | C75: 0 | D75: Unit cost (US$)* GDF catalogue prices
A76: WX02RG12 | B76: 1-year warranty extension | C76: 0 | D76: 1896 | E76: =D76*C76 -> 0 | F76: This warranty includes 1 Xpert Check kit for year 1; therefore, another kit must be ordered separately for year 2.
A77: WX02RG36 | B77: 3-year warranty extension | C77: 0 | D77: 5184 | E77: =D77*C77 -> 0 | F77: This warranty includes the Xpert Check kits for year 1, 2, 3 and 4; therefore, another kit must be ordered separately for year 5.
A78: WX02UP36 | B78: 3-year warranty extension- ordered with System | C78: 0 | D78: 4500 | E78: =D78*C78 -> 0 | F78: This warranty includes the Xpert Check kits for year 1, 2, 3 and 4; therefore, another kit must be ordered separately for year 5.
A79: XPERTCHECKCE-5 | B79: XpertCheck Calibration Pack for GeneXpert GX-IV 4-Module system | C79: 0 | D79: 450 | E79: 0 | F79: An XpertCheck pack should be ordered when ordering a new GeneXpert system without a 3-year warranty extension (WX04UP36). The packs will be used after year 1, during the initial free 2-year warranty.
A80: 700-4510 | B80: Dust filter for GeneXpert system | C80: 0 | D80: 350 | E80: 0 | F80: Additional filter required for dusty environments Product linked to all Xpert systems
A81: GXIV-Module | B81: Additional or replacement GeneXpert Module | C81: 0 | D81: 3360 | E81: 0
A82: GX-SWAP-1 | B82: 1 Module replacement | C82: 0 | D82: 900 | E82: 0
B83: Upgrade to 10-colour instrument | C83: 0 | D83: 0 | E83: =D83*C83 -> 0
B84: Travel and accommodation of technician | C84: 0 | D84: 0 | E84: =D84*C84 -> 0
B85: Sub-total | E85: =SUM(E76:E84) -> 0
A87: GDF code | B87: GeneXpert 16-module | C87: 0 | D87: Unit cost (US$)* GDF catalogue prices | F87: This warranty includes 1 Xpert Check kit for year 1; therefore, another kit must be ordered separately for year 2.
A88: WV16RG12 | B88: 1-year warranty extension | C88: 0 | D88: 7800 | E88: =D88*C88 -> 0 | F88: This warranty includes the Xpert Check kits for year 1, 2, 3 and 4; therefore, another kit must be ordered separately for year 5.
A89: WX16RG36 | B89: 3-year warranty extension | C89: 0 | D89: 20898 | E89: =D89*C89 -> 0 | F89: This warranty includes the Xpert Check kits for year 1, 2, 3 and 4; therefore, another kit must be ordered separately for year 5.
A90: WX16UP36 | B90: 3-year warranty extensionmordered with system | C90: 0 | D90: 18504 | E90: =D90*C90 -> 0 | F90: An XpertCheck pack should be ordered when ordering a new GeneXpert system without a 3-year warranty extension (WX04UP36). The packs will be used after year 1, during the initial free 2-year warranty.
A91: XPERTCHECKCE-5 | B91: XpertCheck Calibration Pack for GeneXpert GX-IV 4-Module system | C91: 0 | D91: 450 | E91: 0 | F91: Additional filter required for dusty environments Product linked to all Xpert systems
A92: 700-4510 | B92: Dust filter for GeneXpert system | C92: 0 | D92: 350 | E92: 0
A93: GXIV-Module | B93: Additional or replacement GeneXpert module | C93: 0 | D93: 3360 | E93: 0
A94: GX-SWAP-1 | B94: 1 module replacement | C94: 0 | D94: 900 | E94: 0
B95: Upgrade to 10-colour instrument | C95: 0 | D95: 0 | E95: 0
B96: Travel and accommodation of technician | C96: 0 | D96: 0 | E96: =D96*C96 -> 0
B97: Sub-total | E97: =SUM(E88:E96) -> 0
A99: GDF code | B99: Truenat | C99: 0 | D99: Unit cost (US$)* GDF catalogue prices | F99: Comprehensive maintenance contract includes: - Remote assistance and visit from service engineer if necessary - Repair and replacement of parts. If a machine is not reparable on site, a stand-by machine will be provided. If the machine must be replaced, a free replacement will be provided at Molbio's cost - In-country travel and labour of company's local agent
A100: 106702 | B100: Truelab and Trueprep extended warranty for 1 year | C100: 0 | D100: 1220 | E100: =D100*C100 -> 0 | F100: Comprehensive maintenance contract includes: - Remote assistance and visit from service engineer if necessary - Repair and replacement of parts. If a machine is not reparable on site, a stand-by machine will be provided. If the machine must be replaced, a free replacement will be provided at Molbio's cost - In-country travel and labour of company's local agent - Calibration chips and material used as service items
A101: 106703 | B101: Truelab and Trueprep extended warranty for 2 years | C101: 0 | D101: 2240 | E101: =D101*C101 -> 0 | F101: Comprehensive maintenance contract includes: - Remote assistance and visit from service engineer if necessary - Repair and replacement of parts. If a machine is not reparable on site, a stand-by machine will be provided. If the machine must be replaced, a free replacement will be provided at Molbio's cost - In-country travel and labour of company's local agent
A102: 106704 | B102: Truelab and Trueprep extended warranty for 3 years | C102: 0 | D102: 3360 | E102: 0 | F102: Comprehensive maintenance contract includes: - Remote assistance and visit from service engineer if necessary - Repair and replacement of parts. If a machine is not reparable on site, a stand-by machine will be provided. If the machine must be replaced, a free replacement will be provided at Molbio's cost - In-country travel and labour of company's local agent
A103: 106705 | B103: Truelab and Trueprep extended warranty for 4 years | C103: 0 | D103: 4480 | E103: 0 | F103: Comprehensive maintenance contract includes: - Remote assistance and visit from service engineer if necessary - Repair and replacement of parts. If a machine is not reparable on site, a stand-by machine will be provided. If the machine must be replaced, a free replacement will be provided at Molbio's cost - In-country travel and labour of company's local agent
A104: 106706 | B104: Truelab and Trueprep extended warranty for 5 years | C104: 0 | D104: 5600 | E104: 0
B105: Sub-total | E105: =SUM(E100:E104) -> 0
A107: GDF code | B107: TB-LAMP | C107: 0 | D107: Unit cost (US$)* GDF catalogue prices | F107: • 1 year checking of on-site conditions • Extensive cleaning of working area, instrument surface, heating blocks and fluorescence reading unit according to maintenance checklist • Inspection and validation of UPS and power connections • Temperature check and verification that the incubation and reaction block reach the target temperature according to the maintenance checklist • Performance of maintenance test kit to assure the instrument is working properly according to operation qualification (OQ) • Necessary equipment and test kit to perform the OQ • Issue of OQ certificate
A108: 106639 | B108: TB-LAMP maintenance for 1 year | C108: 0 | D108: 1358.5 | E108: =D108*C108 -> 0 | F108: • Warranty extension for 1 year (on-site) if the maintenance is done before the first warranty period ends and a copy of the filled maintenance checklist is returned to HUMAN. • Extensive cleaning of working area, instrument surface, heating blocks and fluorescence reading unit according to maintenance checklist • Inspection and validation of UPS and power connections • Temperature check and verification that the incubation and reaction block are reaching the target temperature according to the maintenance checklist • Performance of maintenance test kit to ensure that the instrument is working properly according to operation qualification (OQ) • Necessary quipment and test kit to perform OQ • Issue of OQ certificate
A109: 106640 | B109: Maintenance with warranty extension for TB-LAMP | C109: 0 | D109: 1842.5 | E109: =D109*C109 -> 0
B110: Sub-total | E110: =SUM(E108:E109) -> 0
B113: LIS | C113: 0
B114: Service contract for 1 year | C114: 0 | D114: 0 | E114: =D114*C114 -> 0
B115: Travel and accommodation of technician | C115: 0 | D115: 0 | E115: =D115*C115 -> 0
B116: Sub-total | E116: =SUM(E93:E115) -> 0
B119: Ventilation system C/DST laboratory | C119: 0
B120: Service contract for 1 year | C120: 0 | D120: 0 | E120: =D120*C120 -> 0
B121: Spare parts | C121: 0 | D121: 0 | E121: =D121*C121 -> 0
B122: Travel and accommodation of technician | C122: 0 | D122: 0 | E122: =D122*C122 -> 0
B123: Sub-total | E123: =SUM(E120:E122) -> 0
B125: Total cost of maintenance (US$) | E125: =E10+E27+E33+E40+E46+E51+E56+E61+E73+E85+E97+E105+E110+E116+E123+E15+E21 -> 0
B129: Costs of equipment repair (with and without service contracts) | F129: Costs of repair (10% of value)
A130: GDF code | B130: Equipment | C130: No. of units | D130: Unit cost (US$)* GDF catalogue prices | E130: Value of equipment (US$) | F130: =E131*10% -> 0
A131: 106535 | B131: Binocular bright field microscope - ZN | C131: 0 | D131: 921.09 | E131: =C131*D131 -> 0 | F131: 0
A132: 106629 | B132: Reflecting mirror for bright field microscope - ZN | C132: 0 | D132: 12.82 | E132: 0 | F132: 0
A133: 106533 | B133: Microscope - battery supply unit | C133: 0 | D133: 94.11 | E133: 0 | F133: 0
A134: 106531 | B134: LED microscope (basic configuration) | C134: 0 | D134: 1503.8 | E134: 0 | F134: 0
A135: 106532 | B135: LED microscope - light mirror | C135: 0 | D135: 24 | E135: 0 | F135: 0
A136: 106475 | B136: Slide warmer | C136: 0 | D136: 1056.75 | E136: 0 | F136: 0
A137: 106709 | B137: UPS - 3000 VA - 2100 W with battery pack | C137: 0 | D137: 1933.5 | E137: 0 | F137: 0
A138: 106710 | B138: Battery pack set for UPS 3000 VA | C138: 0 | D138: 2364.8 | E138: 0 | F138: 0
A139: 106016 | B139: Printer for BACTEC | C139: 0 | D139: 532 | F139: 0
A140: 106248 | B140: Perforated stainless-steel shelf | C140: 0 | D140: 183 | F140: 0
A141: 106451 | B141: Densitometer | C141: 0 | D141: 699.05 | E141: 0 | F141: 0
A142: 106729 | B142: Compact orbital shaker (for BSC) | C142: 0 | D142: 853.6 | E142: 0 | F142: 0
A143: 106220 | B143: Overhead stirrer with universal adapter | C143: 0 | D143: 1891.55 | E143: 0 | F143: 0
A144: 106048 | B144: Microlitre centrifuge | C144: 0 | D144: 2034.75 | E144: 0 | F144: 0
A145: 106729 | B145: Digital orbital shaker | C145: 0 | D145: 853.6 | E145: 0 | F145: 0
A146: 106257 | B146: Universal oven, 32 L | C146: 0 | D146: 1306.55 | E146: 0 | F146: 0
A147: 106224 | B147: Refrigerated bench-top centrifuge | C147: 0 | D147: 6060.3 | E147: 0 | F147: 0
A148: 106225 | B148: 4-place swing-out rotor | C148: 0 | D148: 948.7 | E148: 0 | F148: 0
A149: 106226 | B149: Rotor buckets | C149: 0 | D149: 589.25 | E149: 0 | F149: 0
A150: 106227 | B150: Aerosol tight lids for rotor buckets | C150: 0 | D150: 174.2 | E150: 0 | F150: 0
A151: 106228 | B151: Reducing adapter for 50-mL tubes | C151: 0 | D151: 327.15 | E151: 0 | F151: 0
A152: 106229 | B152: Reducing adapter for 15- or 12-mL tubes | C152: 0 | D152: 327.15 | E152: 0 | F152: 0
A153: 106732 | B153: Thermoblock / thermo heater | C153: 0 | D153: 1489.45 | E153: 0 | F153: =E154*10% -> 0
A154: 106064 | B154: GT-Blot 48 | C154: 0 | D154: =14352*E2 -> 0 | E154: =C154*D154 -> 0 | F154: 0
A155: 106438 | B155: GT-Blot 48 tray for 96 strips (black) | C155: 0 | D155: =2.9*E2 -> 0 | E155: 0 | F155: 0
A156: 106613 | B156: GTQ-Cycler 96 | C156: 0 | D156: =4595*E2 -> 0 | E156: 0 | F156: 0
A157: 106707 | B157: UPS - 700 VA - 500 W with battery pack | C157: 0 | D157: 761.15 | E157: 0 | F157: 0
A158: 106708 | B158: Battery pack for UPS 700VA | C158: 0 | D158: 1749.3 | E158: 0 | F158: 0
A159: 106595 | B159: Voltage stabilizer 2000 W | C159: 0 | D159: 255.95 | E159: 0 | F159: 0
A160: 106099 | B160: Laboratory oven, 256 L | C160: 0 | D160: 3530.65 | E160: 0 | F160: 0
A161: 106100 | B161: Shelves for laboratory oven, 256 L | C161: 0 | D161: 111 | E161: 0 | F161: 0
A162: 106101 | B162: Laboratory washer-disinfecter | C162: 0 | D162: 7984.9 | E162: 0 | F162: 0
A163: 106102 | B163: Washer-disinfecter 1/2 insert | C163: 0 | D163: 2014.25 | E163: 0 | F163: 0
A164: 106103 | B164: 1/2 insert for baskets | C164: 0 | D164: 432 | E164: 0 | F164: 0
A165: 106104 | B165: Upper basket / injector for nozzles | C165: 0 | D165: 1537 | E165: 0 | F165: 0
A166: 106105 | B166: 1/4 insert, for test tubes 160 x 16 | C166: 0 | D166: 393 | E166: 0 | F166: 0
A167: 106138 | B167: Inspissator for coagulation of egg-based culture media | C167: 0 | D167: 4663.15 | E167: 0 | F167: 0
A168: 106127 | B168: Fully automatic water distiller | C168: 0 | D168: 1914.45 | E168: 0 | F168: 0
A169: 106137 | B169: Glassware stand | C169: 0 | D169: 48.35 | E169: 0 | F169: 0
A170: 106140 | B170: Laboratory floor-standing refrigerator, 141 L | C170: 0 | D170: 1539.4 | E170: 0 | F170: 0
A171: 106424 | B171: Laboratory freezer, 143 L | C171: 0 | D171: 1483.1 | E171: 0 | F171: 0
A172: 106142 | B172: Deep-freezer 70 L, –50 °C to –85 °C | C172: 0 | D172: 9940.1 | E172: 0 | F172: 0
A173: 106130 | B173: Benchtop pH meter | C173: 0 | D173: 458.25 | E173: 0 | F173: 0
A174: 106132 | B174: Magnetic stirrer with heating plate | C174: 0 | D174: 1224.55 | E174: 0 | F174: 0
A175: 106720 | B175: Magnetic bars, set of 18 | C175: 0 | D175: 86.35 | E175: 0 | F175: 0
A176: 106733 | B176: Laboratory blender | C176: 0 | D176: 1270.95 | E176: 0 | F176: 0
A177: 106734 | B177: Jar for laboratory blender | C177: 0 | D177: 189.95 | E177: 0 | F177: 0
A178: 106128 | B178: Electronic analytical balance for DST | C178: 0 | D178: 2007.8 | E178: 0 | F178: 0
A179: 106129 | B179: Electronic precision balance | C179: 0 | D179: 285.6 | E179: 0 | F179: 0
A180: 106142 | B180: Deep-freezer 70 L, –40 °C to –86 °C | C180: 0 | D180: 15422.4 | E180: 0 | F180: 0
A181: 106719 | B181: Stainless-steel rack for deep-freezer | C181: 0 | D181: 3764.25 | E181: 0 | F181: 0
A182: 106594 | B182: Cryo gloves | C182: 0 | D182: 143.4 | E182: 0 | F182: 0
A183: 106053 | B183: 1-channel pipette, variable from 1 to 10 µL | C183: 0 | D183: 204.25 | E183: 0 | F183: 0
A184: 106054 | B184: 1-channel pipette, variable from 20 to 20 µL | C184: 0 | D184: 204.25 | E184: 0 | F184: 0
A185: 106055 | B185: 1-channel pipette, variable from 10 to 100 µL | C185: 0 | D185: 204.25 | E185: 0 | F185: 0
A186: 106056 | B186: 1-channel pipette, variable from 20 to 200 µL | C186: 0 | D186: 204.25 | E186: 0
F194: =SUM(F130:F193) -> 0
B195: Total cost of maintenance (US$) | E195: =SUM(E131:E194) -> 0

Sheet Human resources (hidden)
C1: Human Resources
C4: Salary and Incentives
D5: No. of staff | E5: Annual contract amount per staff /year (USD) | F5: % contract | G5: Annual incentives per staff (USD) | H5: Total annual costs (USD)
C6: Head of laboratory | D6: 0 | E6: 0 | F6: 0 | G6: 0 | H6: =(D6*E6*F6)+(G6*D6) -> 0
C7: Laboratory doctors NRL | D7: 0 | E7: 0 | F7: 0 | G7: 0 | H7: =(D7*E7*F7)+(G7*D7) -> 0
C8: Laboratory technicians NRL | D8: 0 | E8: 0 | F8: 0 | G8: 0 | H8: 0
C9: Laboratory Clerk | D9: 0 | E9: 0 | F9: 0 | G9: 0 | H9: 0
C10: Nurse assistant/Cleaner | D10: 0 | E10: 0 | F10: 0 | G10: 0 | H10: 0
C11: Microscopy supervisor | D11: 0 | E11: 0 | F11: 0 | G11: 0 | H11: 0
C12: **Program officer (liason btw program & lab) | D12: 0 | E12: 0 | F12: 0 | G12: 0 | H12: 0
C13: Total Salary & Incentives | H13: =SUM(H6:H12) -> 0
C16: Training 1: Refresher traning microscopy for ZN and LED
C17: Number of sessions (per year) | D17: 0
C18: Length of session (average number of days per session) | D18: 0
C19: Number of participants (per session) | D19: 0
C20: Number of participants requiring per diems (per session) | D20: 0
C21: Number of national facilitators (average per course) | D21: 0
C22: Number of international facilitators (average per course) | D22: 0
C24: Costs for participants | E24: If no budget required for any of the mentioned activities, e.g. per diem for national facilitators, manualley enter "0"
C25: Total per diem | D25: =D17*D18*D20*#REF! -> 
C26: Total cost of transportation | D26: =D19*D17*#REF! -> 
C27: Total cost of hotel | D27: =D20*D18*D17*#REF! -> 
C28: Costs for national experts/facilitators
C29: Total per diem | D29: =D21*D17*D18*#REF! -> 
C30: Total cost of transportation | D30: =D17*D21*#REF! -> 
C31: Total cost of hotel | D31: =D21*D18*D17*#REF! -> 
C32: Costs for international experts/facilitators
C33: Total per diems | D33: =D22*D17*D18*#REF! -> 
C34: Total daily fee | D34: =D22*D18*D17*#REF! -> 
C35: Total travel costs | D35: =D22*D17*#REF! -> 
C36: Total transportation costs | D36: =D22*D17*#REF! -> 
C37: Additional costs
C38: Total cost of refresher and lunch | D38: =(D19+D21+D22)*D18*D17*#REF! -> 
C39: Total cost of room rental | D39: 0
C40: Total cost of stationary & training material (per sesssion) | D40: =D17*D19*#REF! -> 
C41: Other costs <specify> (typical per session) | D41: 0
C42: Total Training 1 | D42: =SUM(D25:D41) -> 
C44: Training 2: Training for GX user (refresher and for new people)
C45: Number of sessions (per year) | D45: 0
C46: Length of session (average number of days per session) | D46: 0
C47: Number of participants (per session) | D47: 0
C48: Number of participants requiring per diems (per session) | D48: 0
C49: Number of national facilitators (average per course) | D49: 0
C50: Number of international facilitators (average per course) | D50: 0
C52: Costs for participants | E52: If no budget required for any of the mentioned activities, e.g. per diem for national facilitators, manualley enter "0"
C53: Total per diem | D53: =D48*D46*D45*#REF! -> 
C54: Total cost of transportation | D54: =D47*D45*#REF! -> 
C55: Total cost of hotel | D55: =D48*D46*D45*#REF! -> 
C56: Costs for national experts/facilitators
C57: Total per diem | D57: =D49*D45*D46*#REF! -> 
C58: Total cost of transportation | D58: =D49*D45*#REF! -> 
C59: Total cost of hotel | D59: =D49*D46*D45*#REF! -> 
C60: Costs for international experts/facilitators
C61: Total per diems | D61: =D50*D45*D46*#REF! -> 
C62: Total daily fee | D62: =D50*D46*D45*#REF! -> 
C63: Total travel costs | D63: =D50*D45*#REF! -> 
C64: Total transportation costs | D64: =D50*D45*#REF! -> 
C65: Additional costs
C66: Total cost of refresher and lunch | D66: =(D47+D49+D50)*D46*D45*#REF! -> 
C67: Total cost of room rental | D67: 0
C68: Total cost of stationary & training material (per sesssion) | D68: =D45*D47*#REF! -> 
C69: Other costs <specify> (typical per session) | D69: 0
C70: Total Training 2 | D70: =SUM(D53:D69) -> 
C73: Training 3: TB-LAMP Training (refresher and for new people)
C74: Number of sessions (per year) | D74: 0
C75: Length of session (average number of days per session) | D75: 0
C76: Number of participants (per session) | D76: 0
C77: Number of participants requiring per diems (per session) | D77: 0
C78: Number of national facilitators (average per course) | D78: 0
C79: Number of international facilitators (average per course) | D79: 0
C81: Costs for participants | E81: If no budget required for any of the mentioned activities, e.g. per diem for national facilitators, manualley enter "0"
C82: Total per diem | D82: =D77*D75*D74*#REF! -> 
C83: Total cost of transportation | D83: =D76*D74*#REF! -> 
C84: Total cost of hotel | D84: =D77*D75*D74*#REF! -> 
C85: Costs for national experts/facilitators
C86: Total per diem | D86: =D78*D74*D75*#REF! -> 
C87: Total cost of transportation | D87: =D78*D74*#REF! -> 
C88: Total cost of hotel | D88: =D78*D75*D74*#REF! -> 
C89: Costs for international experts/facilitators
C90: Total per diems | D90: =D79*D74*D75*#REF! -> 
C91: Total daily fee | D91: =D79*D75*D74*#REF! -> 
C92: Total travel costs | D92: =D79*D74*#REF! -> 
C93: Total transportation costs | D93: =D79*D74*#REF! -> 
C94: Additional costs
C95: Total cost of refresher and lunch | D95: =(D76+D78+D79)*D75*D74*#REF! -> 
C96: Total cost of room rental | D96: 0
C97: Total cost of stationary & training material (per sesssion) | D97: =D74*D76*#REF! -> 
C98: Other costs <specify> (typical per session) | D98: 0
C99: Total Training 3 | D99: =SUM(D82:D98) -> 
C102: Training 4: LAM Training (refresher and for new people)
C103: Number of sessions (per year) | D103: 0
C104: Length of session (average number of days per session) | D104: 0
C105: Number of participants (per session) | D105: 0
C106: Number of participants requiring per diems (per session) | D106: 0
C107: Number of national facilitators (average per course) | D107: 0
C108: Number of international facilitators (average per course) | D108: 0
C110: Costs for participants | E110: If no budget required for any of the mentioned activities, e.g. per diem for national facilitators, manualley enter "0"
C111: Total per diem | D111: =D106*D104*D103*#REF! -> 
C112: Total cost of transportation | D112: =D105*D103*#REF! -> 
C113: Total cost of hotel | D113: =D106*D104*D103*#REF! -> 
C114: Costs for national experts/facilitators
C115: Total per diem | D115: =D107*D103*D104*#REF! -> 
C116: Total cost of transportation | D116: =D107*D103*#REF! -> 
C117: Total cost of hotel | D117: =D107*D104*D103*#REF! -> 
C118: Costs for international experts/facilitators
C119: Total per diems | D119: =D108*D103*D104*#REF! -> 
C120: Total daily fee | D120: =D108*D104*D103*#REF! -> 
C121: Total travel costs | D121: =D108*D103*#REF! -> 
C122: Total transportation costs | D122: =D108*D103*#REF! -> 
C123: Additional costs
C124: Total cost of refresher and lunch | D124: =(D105+D107+D108)*D104*D103*#REF! -> 
C125: Total cost of room rental | D125: 0
C126: Total cost of stationary & training material (per sesssion) | D126: =D103*D105*#REF! -> 
C127: Other costs <specify> (typical per session) | D127: 0
C128: Total Training 4 | D128: =SUM(D111:D127) -> 
C131: Training 5: LPA (1st and 2nd line drugs) Training (refresher and for new people)
C132: Number of sessions (per year) | D132: 0
C133: Length of session (average number of days per session) | D133: 0
C134: Number of participants (per session) | D134: 0
C135: Number of participants requiring per diems (per session) | D135: 0
C136: Number of national facilitators (average per course) | D136: 0
C137: Number of international facilitators (average per course) | D137: 0
C139: Costs for participants | E139: If no budget required for any of the mentioned activities, e.g. per diem for national facilitators, manualley enter "0"
C140: Total per diem | D140: =D135*D133*D132*#REF! -> 
C141: Total cost of transportation | D141: =D134*D132*#REF! -> 
C142: Total cost of hotel | D142: =D135*D133*D132*#REF! -> 
C143: Costs for national experts/facilitators
C144: Total per diem | D144: =D136*D132*D133*#REF! -> 
C145: Total cost of transportation | D145: =D136*D132*#REF! -> 
C146: Total cost of hotel | D146: =D136*D133*D132*#REF! -> 
C147: Costs for international experts/facilitators
C148: Total per diems | D148: =D137*D132*D133*#REF! -> 
C149: Total daily fee | D149: =D137*D133*D132*#REF! -> 
C150: Total travel costs | D150: =D137*D132*#REF! -> 
C151: Total transportation costs | D151: =D137*D132*#REF! -> 
C152: Additional costs
C153: Total cost of refresher and lunch | D153: =(D134+D136+D137)*D133*D132*#REF! -> 
C154: Total cost of room rental | D154: 0
C155: Total cost of stationary & training material (per sesssion) | D155: =D132*D134*#REF! -> 
C156: Other costs <specify> (typical per session) | D156: 0
C157: Total Training 5 | D157: =SUM(D140:D156) -> 
C160: Training 6: Culture/DST Training (refresher and for new people)
C161: Number of sessions (per year) | D161: 0
C162: Length of session (average number of days per session) | D162: 0
C163: Number of participants (per session) | D163: 0
C164: Number of participants requiring per diems (per session) | D164: 0
C165: Number of national facilitators (average per course) | D165: 0
C166: Number of international facilitators (average per course) | D166: 0
C168: Costs for participants | E168: If no budget required for any of the mentioned activities, e.g. per diem for national facilitators, manualley enter "0"
C169: Total per diem | D169: =D164*D162*D161*#REF! -> 
C170: Total cost of transportation | D170: =D163*D161*#REF! -> 
C171: Total cost of hotel | D171: =D164*D162*D161*#REF! -> 
C172: Costs for national experts/facilitators
C173: Total per diem | D173: =D165*D161*D162*#REF! -> 
C174: Total cost of transportation | D174: =D165*D161*#REF! -> 
C175: Total cost of hotel | D175: =D165*D162*D161*#REF! -> 
C176: Costs for international experts/facilitators
C177: Total per diems | D177: =D166*D161*D162*#REF! -> 
C178: Total daily fee | D178: =D166*D162*D161*#REF! -> 
C179: Total travel costs | D179: =D166*D161*#REF! -> 
C180: Total transportation costs | D180: =D166*D161*#REF! -> 
C181: Additional costs
C182: Total cost of refresher and lunch | D182: =(D163+D165+D166)*D162*D161*#REF! -> 
C183: Total cost of room rental | D183: 0
C184: Total cost of stationary & training material (per sesssion) | D184: =D161*D163*#REF! -> 
C185: Other costs <specify> (typical per session) | D185: 0
C186: Total Training 6 | D186: =SUM(D169:D185) -> 
C191: International Training <specify>
C192: Number of sessions (per year) | D192: 0
C193: Length of session (average number of days per session) | D193: 0
C194: Number of staff travelling for this training | D194: 0
C196: Costs for participants
C197: Total per diem | D197: =D194*D193*D192 -> 0
C198: Total cost of travel | D198: =D194*D192 -> 0
C199: Other costs <specify> registration costs | D199: 0
C200: Total costs international trainings | D200: =SUM(D197:D199) -> 0
C205: Summary | D205: Costs (USD)
C206: =C13 -> Total Salary & Incentives | D206: =H13 -> 0
C207: =C16 -> Training 1: Refresher traning microscopy for ZN and LED | D207: =D42 -> 
C208: =C44 -> Training 2: Training for GX user (refresher and for new people) | D208: =D186 -> 
C209: Training 3: TB-LAMP Training (refresher and for new people) | D209: =D99 -> 
C210: Training 4: LAM Training (refresher and for new people) | D210: =D128 -> 
C211: Training 5: LPA (1st and 2nd line drugs) Training (refresher and for new people) | D211: =D157 -> 
C212: =C160 -> Training 6: Culture/DST Training (refresher and for new people) | D212: =D186 -> 
C213: =C191 -> International Training <specify> | D213: =D200 -> 0
C214: Total HR Costs | D214: =SUM(D206:D213) -> 

Sheet QA (hidden)
C2: Quality Assurance: Supervision, rechecking & panel testing
C6: Supervision visits for AFB laboratories periphery
C7: Number of supervision visits in one year per facility | D7: 0
C8: Number of facilities to be supervised | D8: 0
C9: Length of supervision visit (average number of days) | D9: 0
C10: Number of national expert/facilitators (per supervision visit) | D10: 0
C11: Number of support staff (e.g., driver) (per supervision visit) | D11: 0
C12: Cost for fuel and lubricants (typical per visit) | D12: 0
C13: Costs for Supervision
C14: Total Cost for fuel and lubricants | D14: =D8*D7*D12 -> 0
C15: Total per diem national expert/facilitators | D15: =D7*D8*D9*D10*#REF! -> 
C16: Total per diem for support staff | D16: =D7*D8*D9*D11*#REF! -> 
C17: Total cost of hotel charges for staff | D17: =(D11+D10)*D8*D7*D9*#REF! -> 
C18: Other costs <specify> | D18: 0
C19: Total costs for Supervision | D19: =SUM(D14:D18) -> 
C21: Supervision visits for AFB laboratories regional
C22: Number of supervision visits in one year per facility | D22: 0
C23: Number of facilities to be supervised | D23: 0
C24: Length of supervision visit (average number of days) | D24: 0
C25: Number of national expert/facilitators (per supervision visit) | D25: 0
C26: Number of support staff (e.g., driver) (per supervision visit) | D26: 0
C27: Cost for fuel and lubricants (typical per visit) | D27: 0
C28: Costs for Supervision
C29: Total Cost for fuel and lubricants | D29: =D23*D22*D27 -> 0
C30: Total per diem national expert/facilitators | D30: =D23*D22*D24*#REF! -> 
C31: Total per diem for support staff | D31: =D22*D23*D26*D24*#REF! -> 
C32: Total cost of hotel charges for staff | D32: =(D26+D25)*D23*D22*D24*#REF! -> 
C33: Other costs <specify> | D33: 0
C34: Total costs for Supervision | D34: =SUM(D29:D33) -> 
C37: Supervision visits for culture/DST laboratories by NRL
C38: Number of supervision visits in one year per facility | D38: 0
C39: Number of facilities to be supervised | D39: 0
C40: Length of supervision visit (average number of days) | D40: 0
C41: Number of national expert/facilitators (per supervision visit) | D41: 0
C42: Number of support staff (e.g., driver) (per supervision visit) | D42: 0
C43: Cost for fuel and lubricants (typical per visit) | D43: 0
C45: Costs for Supervision
C46: Total Cost for fuel and lubricants | D46: =D39*D38*D43 -> 0
C47: Total per diem national expert/facilitators | D47: =D42*D40*D39*D41*#REF! -> 
C48: Total per diem for support staff | D48: =D43*D40*D39*D41*#REF! -> 
C49: Total cost of hotel charges for staff | D49: =(D43+D42)*D40*D39*D41*#REF! -> 
C50: Other costs <specify> | D50: 0
C51: Total costs for supervision by NRL | D51: =SUM(D46:D50) -> 
C54: Supervision visits for NRL(s) by SRL
C55: Number of supervision visits in one year per facility | D55: 0
C56: Number of facilities to be supervised | D56: 0
C57: Length of supervision visit (average number of days of travel) | D57: 0
C58: Number of days for visit and preparation | D58: 0
C59: Number of national expert/facilitators (per supervision visit) | D59: 0
C60: Number of international experts/facilitators (per supervision visit) | D60: 0
C62: Costs for national experts/facilitators
C63: Total per diem | D63: 0
C64: Total cost of transportation | D64: 0
C65: Total cost of hotel | D65: 0
C66: Costs for international experts/facilitators
C67: Total per diems | D67: =D60*D57*D56*D55*#REF! -> 
C68: Total daily fee | D68: =D60*D58*D56*D55*#REF! -> 
C69: Total travel costs | D69: =D60*D55*#REF! -> 
C70: Total transportation costs | D70: =D60*D55*D56*#REF! -> 
C71: Additional costs
C72: Other costs: Visa | D72: 0
C73: Total costs for supervision by SRL | D73: =SUM(D63:D70) -> 
C76: Re-checking samples (NRL --> SRL)
C77: Costs of sending slides | D77: 0
C78: Cost of sending samples of sputum | D78: 0
C79: Cost of sending samples of culture | D79: 0
C80: Cost of sending isolates from NRL to SRL (shipment costs) | D80: 0
C81: Transport containers/triple packaging | D81: 0
C82: Other costs <specify> | D82: 0
C83: Total costs for rechecking | D83: =SUM(D77:D82) -> 0
C86: Panel testing for GX test (NRL --> GX laboratories)
C87: Costs of sending PT panel | D87: 0
C88: Cost of sending samples of sputum | D88: 0
C89: Cost of sending samples of culture | D89: 0
C90: Cost of sending isolates from NRL to SRL (shipment costs) | D90: 0
C91: Transport containers/triple packaging | D91: 0
C92: Other costs <specify> | D92: 0
C93: Total costs for rechecking | D93: =SUM(D87:D92) -> 0
C96: Panel testing culture/DST laboratories (NRL --> Regional culture/DST laboratory)
C97: Costs of sending PT panel | D97: 0
C98: Cost of sending samples of sputum | D98: 0
C99: Cost of sending samples of culture | D99: 0
C100: Cost of sending isolates from NRL to SRL (shipment costs) | D100: 0
C101: Transport containers/triple packaging | D101: 0
C102: Other costs <specify> | D102: 0
C103: Total costs for rechecking | D103: 0
C105: Panel testing (SRL --> NRL)
C106: Costs of sending PT panel | D106: 0
C107: Cost of sending samples of sputum | D107: 0
C108: Cost of sending samples of culture | D108: 0
C109: Cost of sending isolates from SRL to NRL (shipment costs) | D109: 0
C110: Transport containers/triple packaging | D110: 0
C111: Other costs <specify> | D111: 0
C112: Total costs for panel testing | D112: =SUM(D106:D111) -> 0
C117: Summary | D117: Costs (USD)
C118: =C6 -> Supervision visits for AFB laboratories periphery | D118: =D19 -> 
C119: =C21 -> Supervision visits for AFB laboratories regional | D119: =D34 -> 
C120: =C37 -> Supervision visits for culture/DST laboratories by NRL | D120: =D51 -> 
C121: =C54 -> Supervision visits for NRL(s) by SRL | D121: =D73 -> 
C122: =C76 -> Re-checking samples (NRL --> SRL) | D122: =D83 -> 0
C123: =C86 -> Panel testing for GX test (NRL --> GX laboratories) | D123: =D93 -> 0
C124: =C96 -> Panel testing culture/DST laboratories (NRL --> Regional culture/DST laboratory) | D124: =D103 -> 0
C125: =C105 -> Panel testing (SRL --> NRL) | D125: =D112 -> 0
C126: Total Quality Assurance Costs | D126: =SUM(D118:D125) -> 

Sheet OPERATION (hidden)
B2: OPERATIONAL COSTS
B4: Sample transportation for diagnosis
B6: Sample transportation for diagnosis (lower level lab --> superior lab)
B7: Cost of sending samples of sputum to lower level lab --> superior lab | C7: 0
B8: Cost of sending isolates from NRL to SRL for testing (shipment) | C8: 0
B9: Transport containers/triple packaging | C9: 0
B10: Other costs <specify> | C10: 0
B11: Total costs for sample transportation | C11: =SUM(C7:C10) -> 0
B14: Shipment costs & import tax for international orders
B16: Import tax | C16: 0
B17: Custom clearance per order | C17: 0
B18: Number of orders / year | C18: 0
B20: Import tax for international orders | C20: Value of order (USD) | D20: Import tax amount (USD)
B21: Microscopy (LED, ZN) | C21: 0 | D21: =C21*C16 -> 0
B22: TB-LAMP | C22: 0 | D22: =C22*C16 -> 0
B23: LAM | C23: 0 | D23: =C23*C16 -> 0
B24: Processing | C24: 0 | D24: =C24*C16 -> 0
B25: Solid culture and DST | C25: 0 | D25: =C25*C16 -> 0
B26: LPA FL&SL | C26: 0 | D26: =C26*C16 -> 0
B27: Xpert MTB/RIF | C27: 0 | D27: =C27*C16 -> 0
B28: ID | C28: 0 | D28: =C28*C16 -> 0
B29: Liquid culture and DST | C29: 0 | D29: =C29*C16 -> 0
B30: Biosaftey and cleaning | C30: 0 | D30: =C30*C16 -> 0
B31: Maintenance (calibrators and spare parts) | C31: 0 | D31: =C31*C16 -> 0
B32: Total (import tax) | D32: =SUM(D24:D31) -> 0
B33: Total (custom clearance) | C33: =C17*C18 -> 0
B35: Shipment costs for international orders | C35: Costs USD
B36: Microscopy (LED, ZN) | C36: 0
B37: TB-LAMP | C37: 0
B38: LAM | C38: 0
B39: Processing | C39: 0
B40: Solid culture and DST | C40: 0
B41: LPA FL&SL | C41: 0
B42: Xpert MTB/RIF | C42: 0
B43: ID | C43: 0
B44: Liquid culture and DST | C44: 0
B45: Biosaftey and cleaning | C45: 0
B46: Maintenance (calibrators and spare parts) | C46: 0
B47: Total | C47: =SUM(C36:C46) -> 0
B50: Other costs per 12 months
B52: Other operational costs | C52: Costs USD
B53: Fuel generator | C53: 0
B54: Electricity | C54: 0
B55: Request forms | C55: 0
B56: Registers | C56: 0
B57: Telephone & Internet | C57: 0
B58: Water | C58: 0
B59: Other | C59: 0
B60: Total | C60: =SUM(C53:C59) -> 0
B63: Sub total | C63: =C11+D32+C33+C47+C60 -> 0

Sheet BUDGET SUMMARY
A1: Annual budget overview
C4: Area | H4: Budget Source
C5: Reagents and consumables | D5: Cost (US$) | F5: Total no. of tests | G5: Cost per test | H5: previous
C6: ZN microscopy if consumables are procured in kit | D6: =IF('Intro and instructions'!B10="Yes",'ZN microscopy'!C26,0) -> 0 | F6: ='ZN microscopy'!C8 -> 0 | G6: =IF(F6=0,0,D6/F6) -> 0 | H6: TB CARE I
C7: ZN microscopy if consumables are procured separately | D7: =IF('Intro and instructions'!B10="Yes",'ZN microscopy'!C56,0) -> 0 | F7: ='ZN microscopy'!C8 -> 0 | G7: =IF(F7=0,0,D7/F7) -> 0
C8: LED microscopy if consumables are procured in kit | D8: =IF('Intro and instructions'!B11="Yes",'LED microscopy'!C26,0) -> 0 | F8: ='LED microscopy'!C8 -> 0 | G8: 0
C9: LED microscopy if consumables are procured separately | D9: =IF('Intro and instructions'!B11="Yes",'LED microscopy'!C55,0) -> 0 | F9: ='LED microscopy'!C8 -> 0 | G9: 0
C10: TB-LAMP | D10: =IF('Intro and instructions'!B8="Yes",'TB-LAMP'!C28,0) -> 0 | F10: ='TB-LAMP'!C19 -> 0 | G10: 0
C11: Truenat | D11: =IF('Intro and instructions'!B7="Yes",Truenat!C31,0) -> 0 | F11: =Truenat!C21 -> 0 | G11: 0
C12: Xpert MTB/RIF Ultra | D12: =IF('Intro and instructions'!B9="Yes",'Xpert MTB RIF Ultra'!C30,0) -> 0 | F12: ='Xpert MTB RIF Ultra'!C21 -> 0 | G12: 0
C13: LAM | D13: =IF('Intro and instructions'!B6="Yes",LAM!C26,0) -> 0 | F13: =LAM!C15 -> 0 | G13: 0
C14: LPA 1st line | D14: =IF('Intro and instructions'!B13="Yes",'LPA 1st line'!E56,0) -> 76.85 | F14: ='LPA 1st line'!C27 -> 0 | G14: 0
C15: LPA 2nd line | D15: =IF('Intro and instructions'!B14="Yes",'LPA 2nd line'!E55,0) -> 0 | F15: ='LPA 2nd line'!C27 -> 0 | G15: 0
C16: MAX MDR-TB assay | D16: =IF('Intro and instructions'!B15="Yes",'MAX MDR-TB assay'!E42,0) -> 76.85 | F16: ='FluoroType MTBDR VER 2.0'!total_test -> 0 | G16: 0
C17: FluoroType MTBDR Ver 2.0 | D17: =IF('Intro and instructions'!B16="Yes",'FluoroType MTBDR VER 2.0'!E44,0) -> 76.85 | F17: ='FluoroType MTBDR VER 2.0'!total_test -> 0 | G17: 0
C18: Cobas® MTB and MTB-RIF-INH | D18: =IF('Intro and instructions'!B17="Yes",'Cobas MTB and MTB-RIF-INH'!E47,0) -> 76.85 | F18: ='Cobas MTB and MTB-RIF-INH'!total_test -> 0 | G18: 0
C19: Abbott RT MTB and MTB RIF-INH | D19: =IF('Intro and instructions'!B18="Yes",'Abbott RT MTB and MTB RIF-INH'!E47,0) -> 76.85 | F19: ='Abbott RT MTB and MTB RIF-INH'!total_test -> 0 | G19: 0
C20: Sample processing | D20: =IF('Intro and instructions'!B19="Yes",'Processing&solid-liquid culture'!F83,0) -> 0 | F20: =IF('Processing&solid-liquid culture'!C23=0,'Processing&solid-liquid culture'!F21,'Processing&solid-liquid culture'!C23) -> 0 | G20: 0
C21: Solid culture | D21: =IF('Intro and instructions'!B19="Yes",'Processing&solid-liquid culture'!F81,0) -> 0 | F21: ='Processing&solid-liquid culture'!C23 -> 0 | G21: 0
C22: Liquid culture | D22: =IF('Intro and instructions'!B19="Yes",'Processing&solid-liquid culture'!F21,0) -> 0 | F22: ='Processing&solid-liquid culture'!F82 -> 0 | G22: 0 | H22: FIND
C23: Culture identification | D23: =IF('Intro and instructions'!B20="Yes",SUM(ID!E37,ID!E24),0) -> 0 | F23: =ID!D13 -> 0 | G23: 0
C24: FL DST on LJ | D24: =IF('Intro and instructions'!B21="Yes",'LJ 1st line DST'!C34,0) -> 0 | F24: ='LJ 1st line DST'!C18 -> 0 | G24: 0 | H24: FIND
C25: SL DST on LJ | D25: =IF('Intro and instructions'!B22="Yes",'LJ 2nd line DST'!C34,0) -> 0 | F25: ='LJ 2nd line DST'!C15 -> 0 | G25: 0 | H25: FIND
C26: FL DST on MGIT | D26: =IF('Intro and instructions'!B23="Yes",'MGIT 1st line DST'!D44,0) -> 0 | F26: ='MGIT 1st line DST'!C15 -> 0 | G26: 0 | H26: TB CARE I
C27: PZA DST on MGIT | D27: =IF('Intro and instructions'!B23="Yes",'MGIT 1st line DST'!D45,0) -> 0 | F27: ='MGIT 1st line DST'!C21 -> 0 | G27: 0
C28: Liquid 2nd-line DST on MGIT when using ready-made lyophilized reagents | D28: =IF('Intro and instructions'!B24="Yes",'MGIT 2nd line DST'!G30,0) -> 0 | F28: ='MGIT 2nd line DST'!C17 -> 0 | G28: 0
C29: Liquid 2nd-line DST on MGIT when using pure drug powder reagents | D29: =IF('Intro and instructions'!B24="Yes",'MGIT 2nd line DST'!G49,0) -> 0 | F29: ='MGIT 2nd line DST'!C17 -> 0 | G29: 0
C30: Sub-total | D30: =SUM(D6:D28) -> 384.25
C32: Cleaning and biosafety | D32: Cost (US$) | H32: previous
C33: Biosafety | D33: =IF('Intro and instructions'!B25="Yes",'Biosafety and cleaning'!G44,0) -> 0 | H33: FIND
C34: Cleaning | D34: =IF('Intro and instructions'!B25="Yes",'Biosafety and cleaning'!G43,0) -> 0 | H34: FIND
C35: Sub-total | D35: =D33+D34 -> 0
C37: Maintenance and repair | D37: Cost (US$) | H37: previous
C38: ='Maintenance & repair'!B6 -> Biosafety cabinets | D38: =IF('Intro and instructions'!B26="Yes",'Maintenance & repair'!E10,0) -> 0
C39: ='Maintenance & repair'!B11 -> Twincubator (LPA) | D39: =IF('Intro and instructions'!B26="Yes",'Maintenance & repair'!E15,0) -> 0
C40: ='Maintenance & repair'!B17 -> Thermocycler | D40: =IF('Intro and instructions'!B26="Yes",'Maintenance & repair'!E21,0) -> 0
C41: ='Maintenance & repair'!B23 -> Laminar flow (PCR workstation) | D41: =IF('Intro and instructions'!B26="Yes",'Maintenance & repair'!E27,0) -> 0
C42: ='Maintenance & repair'!B29 -> Autoclave | D42: =IF('Intro and instructions'!B26="Yes",'Maintenance & repair'!E33,0) -> 0
C43: ='Maintenance & repair'!B35 -> BD BACTEC™ MGIT™ 960 System | D43: =IF('Intro and instructions'!B26="Yes",'Maintenance & repair'!E40,0) -> 0
C44: MAX MDR-TB assay | D44: =IF('Intro and instructions'!B26="Yes",'Maintenance & repair'!E46,0) -> 0
C45: FluoroType MTBDR VER 2.0 | D45: =IF('Intro and instructions'!B26="Yes",'Maintenance & repair'!E51,0) -> 0
C46: Cobas® MTB and MTB-RIF-INH | D46: =IF('Intro and instructions'!B26="Yes",'Maintenance & repair'!E56,0) -> 0
C47: Abott RT MTB and MTB RIF-INH | D47: =IF('Intro and instructions'!B26="Yes",'Maintenance & repair'!E61,0) -> 0
C48: ='Maintenance & repair'!B63 -> GeneXpert 4-module | D48: =IF('Intro and instructions'!B26="Yes",'Maintenance & repair'!E73,0) -> 0
C49: ='Maintenance & repair'!B75 -> GeneXpert 2-module | D49: =IF('Intro and instructions'!B26="Yes",'Maintenance & repair'!E85,0) -> 0
C50: ='Maintenance & repair'!B87 -> GeneXpert 16-module | D50: =IF('Intro and instructions'!B26="Yes",'Maintenance & repair'!E97,0) -> 0
C51: Truenat | D51: =IF('Intro and instructions'!B26="Yes",'Maintenance & repair'!E105,0) -> 0
C52: ='Maintenance & repair'!B107 -> TB-LAMP | D52: =IF('Intro and instructions'!B26="Yes",'Maintenance & repair'!E110,0) -> 0
C53: ='Maintenance & repair'!B113 -> LIS | D53: =IF('Intro and instructions'!B26="Yes",'Maintenance & repair'!E116,0) -> 0
C54: ='Maintenance & repair'!B119 -> Ventilation system C/DST laboratory | D54: =IF('Intro and instructions'!B26="Yes",'Maintenance & repair'!E123,0) -> 0
C55: Repair and other equipment | D55: =IF('Intro and instructions'!B26="Yes",'Maintenance & repair'!F194,0) -> 0 | H55: PFH
C56: Sub-total | D56: =SUM(D38:D55) -> 0
C59: Total annual budget | D59: =SUM(D30,D35,D56) -> 384.25

Sheet LAB ITEM SUMMARY
A1: Overview of laboratory items
C4: Area | F4: Budget Source
B5: GDF code | C5: Reagents & consumables | D5: Qty | F5: previous
B6: ZN microscopy | F6: TB CARE I
B7: ='ZN microscopy'!A22 -> 106522 | C7: ZN Kit | D7: ='ZN microscopy'!F22 -> 0
B8: ='ZN microscopy'!A32 -> 106601 | C8: ='ZN microscopy'!B32 -> Basic fuchsine, 100 g (bottle) | D8: ='ZN microscopy'!D32 -> 0
B9: ='ZN microscopy'!A33 -> 106602 | C9: ='ZN microscopy'!B33 -> Methylene blue, 10 x 10 g (bottles) | D9: ='ZN microscopy'!D33 -> 0
B10: ='ZN microscopy'!A34 -> 106599 | C10: ='ZN microscopy'!B34 -> Phenol crystals, colourless, 500 g | D10: ='ZN microscopy'!D34 -> 0
B11: ='ZN microscopy'!A35 -> 106597 | C11: ='ZN microscopy'!B35 -> Ethanol, 99%, 1 L (bottle), for stain solutions | D11: ='ZN microscopy'!D35 -> 0
B12: ='ZN microscopy'!A36 -> 106597 | C12: ='ZN microscopy'!B36 -> Ethanol, 99%, 1 L (bottle), for decolourization | D12: ='ZN microscopy'!D36 -> 0
B13: ='ZN microscopy'!A37 -> 106603 | C13: ='ZN microscopy'!B37 -> Hydrochloric acid, 1 L (bottle) | D13: ='ZN microscopy'!D37 -> 0
B14: ='ZN microscopy'!A43 -> 106655 | C14: ='ZN microscopy'!B43 -> Wooden applicator sticks, 150 mm | D14: ='ZN microscopy'!D43 -> 0
B15: ='ZN microscopy'!A44 -> 106609 | C15: ='ZN microscopy'!B44 -> Microscope slides, lime-soda-glass, pack of 1000 | D15: ='ZN microscopy'!D44 -> 0
B16: ='ZN microscopy'!A45 -> 106627 | C16: ='ZN microscopy'!B45 -> Immersion oil, 100 mL | D16: ='ZN microscopy'!D45 -> 0
B17: ='ZN microscopy'!A46 -> 106656 | C17: ='ZN microscopy'!B46 -> Lens-cleaning tissue | D17: ='ZN microscopy'!D46 -> 0
B18: ='ZN microscopy'!A47 -> 106354 | C18: ='ZN microscopy'!B47 -> Round filter paper, 150 mm | D18: ='ZN microscopy'!D47 -> 0
B19: ='ZN microscopy'!A48 -> 106597 | C19: ='ZN microscopy'!B48 -> Ethanol, 99%, 1 L (bottle), for spirit lamps | D19: ='ZN microscopy'!D48 -> 0
B20: ='ZN microscopy'!A49 -> 106355 | C20: ='ZN microscopy'!B49 -> Marker pen (water-resistant) | D20: ='ZN microscopy'!D49 -> 0
B21: ='ZN microscopy'!A50 -> 106525 | C21: ='ZN microscopy'!B50 -> Sputum containers, pack of 1000 | D21: ='ZN microscopy'!D50 -> 0
B22: LED microscopy if consumables are procured in kit
B23: ='LED microscopy'!A22 -> 106523 | C23: LED kit | D23: ='LED microscopy'!F22 -> 0
B24: ='LED microscopy'!A32 -> 106602 | C24: ='LED microscopy'!B32 -> Methylene blue, 10 x 10 g (bottles) | D24: ='LED microscopy'!D32 -> 0
B25: ='LED microscopy'!A33 -> 106599 | C25: ='LED microscopy'!B33 -> Phenol crystals colourless, 500 g | D25: ='LED microscopy'!D33 -> 0
B26: ='LED microscopy'!A34 -> 106276 | C26: ='LED microscopy'!B34 -> Auramine O, powder, 25 g | D26: ='LED microscopy'!D34 -> 0
B27: ='LED microscopy'!A35 -> 106597 | C27: ='LED microscopy'!B35 -> Ethanol, 99%, 1 L (bottle), for decolourization | D27: ='LED microscopy'!D35 -> 0
B28: ='LED microscopy'!A36 -> 106603 | C28: ='LED microscopy'!B36 -> Hydrochloric acid, 1 L (bottle) | D28: ='LED microscopy'!D36 -> 0
B29: ='LED microscopy'!A42 -> 106655 | C29: ='LED microscopy'!B42 -> Wooden applicator sticks, 150 mm | D29: ='LED microscopy'!D42 -> 0
B30: ='LED microscopy'!A43 -> 106609 | C30: ='LED microscopy'!B43 -> Microscope slides, lime-soda-glass, pack of 1000 | D30: ='LED microscopy'!D43 -> 0
B31: ='LED microscopy'!A44 -> 106627 | C31: ='LED microscopy'!B44 -> Immersion oil, 100 mL | D31: ='LED microscopy'!D44 -> 0
B32: ='LED microscopy'!A45 -> 106656 | C32: ='LED microscopy'!B45 -> Lens-cleaning tissue | D32: ='LED microscopy'!D45 -> 0
B33: ='LED microscopy'!A46 -> 106354 | C33: ='LED microscopy'!B46 -> Round filter paper, 150 mm | D33: ='LED microscopy'!D46 -> 0
B34: ='LED microscopy'!A47 -> 106597 | C34: ='LED microscopy'!B47 -> Ethanol, 99%, 1 L (bottle), for spirit lamps | D34: ='LED microscopy'!D47 -> 0
B35: ='LED microscopy'!A48 -> 106355 | C35: ='LED microscopy'!B48 -> Marker pen (water-resistant) | D35: ='LED microscopy'!D48 -> 0
B36: ='LED microscopy'!A49 -> 106525 | C36: ='LED microscopy'!B49 -> Sputum containers, pack of 1000 | D36: ='LED microscopy'!D49 -> 0
B37: TB-LAMP
B38: ='TB-LAMP'!A23 -> 106634 | C38: ='TB-LAMP'!B23 -> Loopamp MTBC Detection Kit (2 x 48 tests) | D38: ='TB-LAMP'!E23 -> 0
B39: ='TB-LAMP'!A24 -> 106635 | C39: ='TB-LAMP'!B24 -> Loopamp PURE DNA Extraction Kit (90 tests) | D39: ='TB-LAMP'!E24 -> 0
B40: ='TB-LAMP'!A25 -> 106643 | C40: ='TB-LAMP'!B25 -> Pipette-60 set for TB LAMP (4 x 96 tests) | D40: ='TB-LAMP'!E25 -> 0
B41: Truenat
B42: =Truenat!A27 -> 106697 | C42: =Truenat!B27 -> Truenat MTB Plus | D42: =Truenat!D27 -> 0
B43: =Truenat!A28 -> 106700 | C43: =Truenat!B28 -> Truenat MTB Rif | D43: =Truenat!D28 -> 0
B44: Xpert MTB/RIF Ultra
B45: ='Xpert MTB RIF Ultra'!A25 -> CGXMTB-RIF-50 | C45: ='Xpert MTB RIF Ultra'!B25 -> Xpert MTB/RIF cartridges | D45: ='Xpert MTB RIF Ultra'!D25 -> 0
B46: ='Xpert MTB RIF Ultra'!A26 -> 106340 | C46: ='Xpert MTB RIF Ultra'!B26 -> Sterile plastic centrifuge tubes 50 mL | D46: ='Xpert MTB RIF Ultra'!D26 -> 0
B47: ='Xpert MTB RIF Ultra'!A27 -> 106525 | C47: ='Xpert MTB RIF Ultra'!B27 -> Sputum containers, pack of 1000 | D47: ='Xpert MTB RIF Ultra'!D27 -> 0
B48: LAM
B49: =LAM!A21 -> 106749 | C49: =LAM!B21 -> Determine TB LAM Ag tests | D49: =LAM!E21 -> 0
B50: =LAM!A22 -> 106525 | C50: =LAM!B22 -> Sputum containers | D50: =LAM!E22 -> 0
B51: =LAM!A23 -> 106388 | C51: =LAM!B23 -> Sterile pipette filter tips, 5–100 µL | D51: =LAM!E23 -> 0
B52: LPA 1st line
B53: ='LPA 1st line'!B30 -> 106682 | C53: ='LPA 1st line'!C30 -> Genoscholar NTM+MDRTB II | D53: ='LPA 1st line'!E30 -> 0
B54: ='LPA 1st line'!B31 -> 106512 | C54: ='LPA 1st line'!C31 -> Geno Type MTBDRplus (96 tests/kit), Version 2.0 (30496A) | D54: ='LPA 1st line'!E31 -> 0
B55: ='LPA 1st line'!B32 -> 106477 | C55: ='LPA 1st line'!C32 -> GenoLyse (96 tests), Version 1.0 (51610) | D55: ='LPA 1st line'!E32 -> 0
B56: ='LPA 1st line'!B33 -> 106254 | C56: ='LPA 1st line'!C33 -> Molecular grade water - 10 x 1.7 mL | D56: ='LPA 1st line'!E33 -> 0
B57: ='LPA 1st line'!B34 -> 106385 | C57: ='LPA 1st line'!C34 -> PCR tubes, 0.2 mL with attached caps, sterile, DNAse- and RNAse-free, 1000 per pack | D57: ='LPA 1st line'!E34 -> 0
B58: ='LPA 1st line'!B35 -> 106422 | C58: ='LPA 1st line'!C35 -> Microcentrifuge tubes, 2 mL | D58: ='LPA 1st line'!E35 -> 0
B59: ='LPA 1st line'!B36 -> 106421 | C59: ='LPA 1st line'!C36 -> Microcentrifuge tubes, 1.5 mL | D59: ='LPA 1st line'!E36 -> 0
B60: ='LPA 1st line'!B37 -> 106383 | C60: ='LPA 1st line'!C37 -> Sterile cryovials, 2 mL, single handed | D60: ='LPA 1st line'!E37 -> 0
B61: ='LPA 1st line'!B38 -> 106554 | C61: ='LPA 1st line'!C38 -> Sterile filter tips, 0.1–10 µL | D61: ='LPA 1st line'!E38 -> 0
B62: ='LPA 1st line'!B39 -> 106389 | C62: ='LPA 1st line'!C39 -> Sterile filter tips, 20–200 µL | D62: ='LPA 1st line'!E39 -> 0
B63: ='LPA 1st line'!B40 -> 106390 | C63: ='LPA 1st line'!C40 -> Sterile filter tips, 100–1000 µL | D63: ='LPA 1st line'!E40 -> 0
B64: ='LPA 1st line'!B41 -> 106412 | C64: ='LPA 1st line'!C41 -> Long 1-mL tips with filter | D64: ='LPA 1st line'!E41 -> 0
B65: ='LPA 1st line'!B42 -> 106398 | C65: ='LPA 1st line'!C42 -> Dispenser tips, 12.5 mL | D65: ='LPA 1st line'!E42 -> 0
B66: ='LPA 1st line'!B43 -> 106434 | C66: ='LPA 1st line'!C43 -> Non-sterile Pasteur pipettes, 3 mL | D66: ='LPA 1st line'!E43 -> 0
B67: ='LPA 1st line'!B44 -> 106556 | C67: ='LPA 1st line'!C44 -> Sterile plastic laboratory forceps | D67: ='LPA 1st line'!E44 -> 0
B68: ='LPA 1st line'!B45 -> 106355 | C68: ='LPA 1st line'!C45 -> Permanent marker | D68: ='LPA 1st line'!E45 -> 0
B69: ='LPA 1st line'!B46 -> 106384 | C69: ='LPA 1st line'!C46 -> Sterile plastic centrifuge tubes, 15 mL | D69: ='LPA 1st line'!E46 -> 0
B70: ='LPA 1st line'!B47 -> 106340 | C70: ='LPA 1st line'!C47 -> Sterile plastic centrifuge tubes, 50 mL | D70: ='LPA 1st line'!E47 -> 0
B71: ='LPA 1st line'!B48 -> 106444 | C71: ='LPA 1st line'!C48 -> Plastic bags, 30 L | D71: ='LPA 1st line'!E48 -> 0
B72: ='LPA 1st line'!B49 -> 106415 | C72: ='LPA 1st line'!C49 -> Square filter paper, 580 mm | D72: ='LPA 1st line'!E49 -> 0
B73: ='LPA 1st line'!B50 -> 106439 | C73: ='LPA 1st line'!C50 -> GT-Blot 48 reagent set | D73: ='LPA 1st line'!E50 -> 0
B74: ='LPA 1st line'!B51 -> 106438 | C74: ='LPA 1st line'!C51 -> GT-Blot 48 tray for 96 strips (black) | D74: ='LPA 1st line'!E51 -> 0
B75: ='LPA 1st line'!B52 -> 106755 | C75: ='LPA 1st line'!C52 -> Paper towels | D75: ='LPA 1st line'!E52 -> 53
B76: ='LPA 1st line'!B53 -> 106333 | C76: ='LPA 1st line'!C53 -> Ethanol / Isopropanol - 5 L | D76: ='LPA 1st line'!E53 -> 0
B77: LPA 2nd line
B78: ='LPA 2nd line'!B30 -> 106513 | C78: ='LPA 2nd line'!C30 -> Geno Type MTBDRsl (96 tests/kit), Version 2.0 (30496A) | D78: ='LPA 2nd line'!kit_ordered -> 0
B79: ='LPA 2nd line'!B31 -> 106477 | C79: ='LPA 2nd line'!C31 -> GenoLyse (96 tests), Version 1.0 (51610) | D79: ='LPA 2nd line'!kit_ordered -> 0
B80: ='LPA 2nd line'!B32 -> 106254 | C80: ='LPA 2nd line'!C32 -> Molecular-grade water - 10 x 1.7 mL | D80: ='LPA 2nd line'!kit_ordered -> 0
B81: ='LPA 2nd line'!B33 -> 106385 | C81: ='LPA 2nd line'!C33 -> PCR tubes, 0.2 mL with attached caps, sterile, DNAse- RNAse-free, 1000 per pack | D81: ='LPA 2nd line'!kit_ordered -> 0
B82: ='LPA 2nd line'!B34 -> 106422 | C82: ='LPA 2nd line'!C34 -> Microcentrifuge tubes, 2 mL | D82: ='LPA 2nd line'!kit_ordered -> 0
B83: ='LPA 2nd line'!B35 -> 106421 | C83: ='LPA 2nd line'!C35 -> Microcentrifuge tubes, 1.5 mL | D83: ='LPA 2nd line'!kit_ordered -> 0
B84: ='LPA 2nd line'!B36 -> 106383 | C84: ='LPA 2nd line'!C36 -> Sterile cryovials, 2 mL, single handed | D84: ='LPA 2nd line'!kit_ordered -> 0
B85: ='LPA 2nd line'!B37 -> 106554 | C85: ='LPA 2nd line'!C37 -> Sterile filter tips, 0.1–10 µL | D85: ='LPA 2nd line'!kit_ordered -> 0
B86: ='LPA 2nd line'!B38 -> 106389 | C86: ='LPA 2nd line'!C38 -> Sterile filter tips, 20–200 µL | D86: ='LPA 2nd line'!kit_ordered -> 0
B87: ='LPA 2nd line'!B39 -> 106390 | C87: ='LPA 2nd line'!C39 -> Sterile filter tips, 100–1000 µL | D87: ='LPA 2nd line'!kit_ordered -> 0
B88: ='LPA 2nd line'!B40 -> 106412 | C88: ='LPA 2nd line'!C40 -> Long 1-mL tips with filter | D88: ='LPA 2nd line'!kit_ordered -> 0
B89: ='LPA 2nd line'!B41 -> 106398 | C89: ='LPA 2nd line'!C41 -> Dispenser tips, 12.5 mL | D89: ='LPA 2nd line'!kit_ordered -> 0
B90: ='LPA 2nd line'!B42 -> 106434 | C90: ='LPA 2nd line'!C42 -> Non-sterile Pasteur pipettes, 3 mL | D90: ='LPA 2nd line'!kit_ordered -> 0
B91: ='LPA 2nd line'!B43 -> 106556 | C91: ='LPA 2nd line'!C43 -> Sterile plastic laboratory forceps | D91: ='LPA 2nd line'!kit_ordered -> 0
B92: ='LPA 2nd line'!B44 -> 106355 | C92: ='LPA 2nd line'!C44 -> Permanent marker | D92: ='LPA 2nd line'!kit_ordered -> 0
B93: ='LPA 2nd line'!B45 -> 106384 | C93: ='LPA 2nd line'!C45 -> Sterile plastic centrifuge tubes, 15 mL | D93: ='LPA 2nd line'!kit_ordered -> 0
B94: ='LPA 2nd line'!B46 -> 106340 | C94: ='LPA 2nd line'!C46 -> Sterile plastic centrifuge tubes, 50 mL | D94: ='LPA 2nd line'!kit_ordered -> 0
B95: ='LPA 2nd line'!B47 -> 106444 | C95: ='LPA 2nd line'!C47 -> Plastic bags, 30 L | D95: ='LPA 2nd line'!kit_ordered -> 0
B96: ='LPA 2nd line'!B48 -> 106415 | C96: ='LPA 2nd line'!C48 -> Square filter paper, 580 mm | D96: ='LPA 2nd line'!kit_ordered -> 0
B97: ='LPA 2nd line'!B49 -> 106439 | C97: ='LPA 2nd line'!C49 -> GT-Blot 48 reagent set | D97: ='LPA 2nd line'!kit_ordered -> 0
B98: ='LPA 2nd line'!B50 -> 106438 | C98: ='LPA 2nd line'!C50 -> GT-Blot 48 tray for 96 strips (black) | D98: ='LPA 2nd line'!kit_ordered -> 0
B99: ='LPA 2nd line'!B51 -> 106755 | C99: ='LPA 2nd line'!C51 -> Paper towels | D99: ='LPA 2nd line'!kit_ordered -> 0
B100: ='LPA 2nd line'!B52 -> 106333 | C100: ='LPA 2nd line'!C52 -> Ethanol / isopropanol, 5 L | D100: ='LPA 2nd line'!kit_ordered -> 0
B101: MAX MDR-TB assay
B102: ='MAX MDR-TB assay'!B28 -> 0 | C102: ='MAX MDR-TB assay'!C28 -> BD MAX MDR-TB kit | D102: ='MAX MDR-TB assay'!kit_ordered -> 0
B103: ='MAX MDR-TB assay'!B29 -> 0 | C103: ='MAX MDR-TB assay'!C29 -> BD MAX STR kit | D103: ='MAX MDR-TB assay'!kit_ordered -> 0
B104: ='MAX MDR-TB assay'!B30 -> 106384 | C104: ='MAX MDR-TB assay'!C30 -> Sterile plastic centrifuge tubes, 15 mL | D104: ='MAX MDR-TB assay'!kit_ordered -> 0
B105: ='MAX MDR-TB assay'!B31 -> 106422 | C105: ='MAX MDR-TB assay'!C31 -> Microcentrifuge tubes, 2 mL | D105: ='MAX MDR-TB assay'!kit_ordered -> 0
B106: ='MAX MDR-TB assay'!B32 -> 106554 | C106: ='MAX MDR-TB assay'!C32 -> Sterile filter tips, 0.1–10 µL | D106: ='MAX MDR-TB assay'!kit_ordered -> 0
B107: ='MAX MDR-TB assay'!B33 -> 106389 | C107: ='MAX MDR-TB assay'!C33 -> Sterile filter tips, 20–200 µL | D107: ='MAX MDR-TB assay'!kit_ordered -> 0
B108: ='MAX MDR-TB assay'!B34 -> 106390 | C108: ='MAX MDR-TB assay'!C34 -> Sterile filter tips, 100–1000 µL | D108: ='MAX MDR-TB assay'!kit_ordered -> 0
B109: ='MAX MDR-TB assay'!B35 -> 106444 | C109: ='MAX MDR-TB assay'!C35 -> Plastic bags, 30 L | D109: ='MAX MDR-TB assay'!kit_ordered -> 0
B110: ='MAX MDR-TB assay'!B36 -> 106415 | C110: ='MAX MDR-TB assay'!C36 -> Square filter paper, 580 mm | D110: ='MAX MDR-TB assay'!kit_ordered -> 0
B111: ='MAX MDR-TB assay'!B37 -> 106755 | C111: ='MAX MDR-TB assay'!C37 -> Paper towels | D111: ='MAX MDR-TB assay'!kit_ordered -> 0
B112: ='MAX MDR-TB assay'!B38 -> 106333 | C112: ='MAX MDR-TB assay'!C38 -> Ethanol / isopropanol, 5 L | D112: ='MAX MDR-TB assay'!kit_ordered -> 0
B113: FluoroType MTBDR Ver 2.0
B114: ='FluoroType MTBDR VER 2.0'!B30 -> 0 | C114: ='FluoroType MTBDR VER 2.0'!C30 -> FluoroType MTBDR assay | D114: ='FluoroType MTBDR VER 2.0'!kit_ordered -> 0
B115: ='FluoroType MTBDR VER 2.0'!B31 -> 0 | C115: ='FluoroType MTBDR VER 2.0'!C31 -> GXT DNA/ RNA Extraction Kit | D115: ='FluoroType MTBDR VER 2.0'!kit_ordered -> 0
B116: ='FluoroType MTBDR VER 2.0'!B32 -> 0 | C116: ='FluoroType MTBDR VER 2.0'!C32 -> FluoroLyse Extraciton Kit | D116: ='FluoroType MTBDR VER 2.0'!kit_ordered -> 0
B117: ='FluoroType MTBDR VER 2.0'!B33 -> 106384 | C117: ='FluoroType MTBDR VER 2.0'!C33 -> Sterile plastic centrifuge tubes, 15 mL | D117: ='FluoroType MTBDR VER 2.0'!kit_ordered -> 0
B118: ='FluoroType MTBDR VER 2.0'!B34 -> 106422 | C118: ='FluoroType MTBDR VER 2.0'!C34 -> Microcentrifuge tubes, 2 mL | D118: ='FluoroType MTBDR VER 2.0'!kit_ordered -> 0
B119: ='FluoroType MTBDR VER 2.0'!B35 -> 106554 | C119: ='FluoroType MTBDR VER 2.0'!C35 -> Sterile filter tips, 0.1–10 µL | D119: ='FluoroType MTBDR VER 2.0'!kit_ordered -> 0
B120: ='FluoroType MTBDR VER 2.0'!B36 -> 106389 | C120: ='FluoroType MTBDR VER 2.0'!C36 -> Sterile filter tips, 20–200 µL | D120: ='FluoroType MTBDR VER 2.0'!kit_ordered -> 0
B121: ='FluoroType MTBDR VER 2.0'!B37 -> 106390 | C121: ='FluoroType MTBDR VER 2.0'!C37 -> Sterile filter tips, 100–1000 µL | D121: ='FluoroType MTBDR VER 2.0'!kit_ordered -> 0
B122: ='FluoroType MTBDR VER 2.0'!B38 -> 106444 | C122: ='FluoroType MTBDR VER 2.0'!C38 -> Plastic bags, 30 L | D122: ='FluoroType MTBDR VER 2.0'!kit_ordered -> 0
B123: ='FluoroType MTBDR VER 2.0'!B39 -> 106415 | C123: ='FluoroType MTBDR VER 2.0'!C39 -> Square filter paper, 580 mm | D123: ='FluoroType MTBDR VER 2.0'!kit_ordered -> 0
B124: ='FluoroType MTBDR VER 2.0'!B40 -> 106755 | C124: ='FluoroType MTBDR VER 2.0'!C40 -> Paper towels | D124: ='FluoroType MTBDR VER 2.0'!kit_ordered -> 0
B125: ='FluoroType MTBDR VER 2.0'!B41 -> 106333 | C125: ='FluoroType MTBDR VER 2.0'!C41 -> Ethanol / isopropanol, 5 L | D125: ='FluoroType MTBDR VER 2.0'!kit_ordered -> 0
B126: Cobas MTB and MTB-RIF-INH
B127: ='Cobas MTB and MTB-RIF-INH'!B28 -> 0 | C127: ='Cobas MTB and MTB-RIF-INH'!C28 -> Cobas® MTB | D127: ='Cobas MTB and MTB-RIF-INH'!kit_ordered -> 0
B128: ='Cobas MTB and MTB-RIF-INH'!B29 -> 0 | C128: ='Cobas MTB and MTB-RIF-INH'!C29 -> Cobas® MTB Positive Control Kit | D128: ='Cobas MTB and MTB-RIF-INH'!kit_ordered -> 0
B129: ='Cobas MTB and MTB-RIF-INH'!B30 -> 0 | C129: ='Cobas MTB and MTB-RIF-INH'!C30 -> Cobas® 6800/8800 Buffer Negative Control Kit | D129: ='Cobas MTB and MTB-RIF-INH'!kit_ordered -> 0
B130: ='Cobas MTB and MTB-RIF-INH'!B31 -> 0 | C130: ='Cobas MTB and MTB-RIF-INH'!C31 -> Cobas® Microbial Inactivation Solution | D130: ='Cobas MTB and MTB-RIF-INH'!kit_ordered -> 0
B131: ='Cobas MTB and MTB-RIF-INH'!B32 -> 0 | C131: ='Cobas MTB and MTB-RIF-INH'!C32 -> Cobas® MTB-RIF/INH | D131: ='Cobas MTB and MTB-RIF-INH'!kit_ordered -> 0
B132: ='Cobas MTB and MTB-RIF-INH'!B33 -> 0 | C132: ='Cobas MTB and MTB-RIF-INH'!C33 -> Cobas® MTB-RIF/INH Positive Control Kit | D132: ='Cobas MTB and MTB-RIF-INH'!kit_ordered -> 0
B133: ='Cobas MTB and MTB-RIF-INH'!B34 -> 0 | C133: ='Cobas MTB and MTB-RIF-INH'!C34 -> Cobas® 6800/8800 Buffer Negative Control Kit | D133: ='Cobas MTB and MTB-RIF-INH'!kit_ordered -> 0
B134: ='Cobas MTB and MTB-RIF-INH'!B35 -> 0 | C134: ='Cobas MTB and MTB-RIF-INH'!C35 -> Cobas Microbial Inactivation Solution | D134: ='Cobas MTB and MTB-RIF-INH'!kit_ordered -> 0
B135: ='Cobas MTB and MTB-RIF-INH'!B36 -> 106384 | C135: ='Cobas MTB and MTB-RIF-INH'!C36 -> Sterile plastic centrifuge tubes, 15 mL | D135: ='Cobas MTB and MTB-RIF-INH'!kit_ordered -> 0
B136: ='Cobas MTB and MTB-RIF-INH'!B37 -> 106422 | C136: ='Cobas MTB and MTB-RIF-INH'!C37 -> Microcentrifuge tubes, 2 mL | D136: ='Cobas MTB and MTB-RIF-INH'!kit_ordered -> 0
B137: ='Cobas MTB and MTB-RIF-INH'!B38 -> 106554 | C137: ='Cobas MTB and MTB-RIF-INH'!C38 -> Sterile filter tips, 0.1–10 µL | D137: ='Cobas MTB and MTB-RIF-INH'!kit_ordered -> 0
B138: ='Cobas MTB and MTB-RIF-INH'!B39 -> 106389 | C138: ='Cobas MTB and MTB-RIF-INH'!C39 -> Sterile filter tips, 20–200 µL | D138: ='Cobas MTB and MTB-RIF-INH'!kit_ordered -> 0
B139: ='Cobas MTB and MTB-RIF-INH'!B40 -> 106390 | C139: ='Cobas MTB and MTB-RIF-INH'!C40 -> Sterile filter tips, 100–1000 µL | D139: ='Cobas MTB and MTB-RIF-INH'!kit_ordered -> 0
B140: ='Cobas MTB and MTB-RIF-INH'!B41 -> 106444 | C140: ='Cobas MTB and MTB-RIF-INH'!C41 -> Plastic bags, 30 L | D140: ='Cobas MTB and MTB-RIF-INH'!kit_ordered -> 0
B141: ='Cobas MTB and MTB-RIF-INH'!B42 -> 106415 | C141: ='Cobas MTB and MTB-RIF-INH'!C42 -> Square filter paper, 580 mm | D141: ='Cobas MTB and MTB-RIF-INH'!kit_ordered -> 0
B142: ='Cobas MTB and MTB-RIF-INH'!B43 -> 106755 | C142: ='Cobas MTB and MTB-RIF-INH'!C43 -> Paper towels | D142: ='Cobas MTB and MTB-RIF-INH'!kit_ordered -> 0
B143: ='Cobas MTB and MTB-RIF-INH'!B44 -> 106333 | C143: ='Cobas MTB and MTB-RIF-INH'!C44 -> Ethanol / isopropanol, 5 L | D143: ='Cobas MTB and MTB-RIF-INH'!kit_ordered -> 0
B144: Abbott RT MTB and MTB RIF-INH
B145: ='Abbott RT MTB and MTB RIF-INH'!B28 -> 0 | C145: ='Abbott RT MTB and MTB RIF-INH'!C28 -> Inactivation reagent | D145: ='Abbott RT MTB and MTB RIF-INH'!E28 -> 0
B146: ='Abbott RT MTB and MTB RIF-INH'!B29 -> 0 | C146: ='Abbott RT MTB and MTB RIF-INH'!C29 -> Abbott Sample Preparation System DNA kit | D146: ='Abbott RT MTB and MTB RIF-INH'!E29 -> 0
B147: ='Abbott RT MTB and MTB RIF-INH'!B30 -> 0 | C147: ='Abbott RT MTB and MTB RIF-INH'!C30 -> Abbott Real Time MTB Amplification Reagent Kit | D147: ='Abbott RT MTB and MTB RIF-INH'!E30 -> 0
B148: ='Abbott RT MTB and MTB RIF-INH'!B31 -> 0 | C148: ='Abbott RT MTB and MTB RIF-INH'!C31 -> Abbott Real Time MTB Control Kit | D148: ='Abbott RT MTB and MTB RIF-INH'!E31 -> 0
B149: ='Abbott RT MTB and MTB RIF-INH'!B32 -> 0 | C149: ='Abbott RT MTB and MTB RIF-INH'!C32 -> Abbott Real Time MTB RIF/INH Resistance Amplification Reagent Kit | D149: ='Abbott RT MTB and MTB RIF-INH'!E32 -> 0
B150: ='Abbott RT MTB and MTB RIF-INH'!B33 -> 0 | C150: ='Abbott RT MTB and MTB RIF-INH'!C33 -> Abbott Real Time MTB RIF/INH Resistance Control Kit | D150: ='Abbott RT MTB and MTB RIF-INH'!E33 -> 0
B151: ='Abbott RT MTB and MTB RIF-INH'!B34 -> 0 | C151: ='Abbott RT MTB and MTB RIF-INH'!C34 -> Abbott 96-Well Optical Reaction Plates | D151: ='Abbott RT MTB and MTB RIF-INH'!E34 -> 0
B152: ='Abbott RT MTB and MTB RIF-INH'!B35 -> 0 | C152: ='Abbott RT MTB and MTB RIF-INH'!C35 -> Abbott 96-Deep-Well Plates and plate holder | D152: ='Abbott RT MTB and MTB RIF-INH'!E35 -> 0
B153: ='Abbott RT MTB and MTB RIF-INH'!B36 -> 106384 | C153: ='Abbott RT MTB and MTB RIF-INH'!C36 -> Sterile plastic centrifuge tubes, 15 mL | D153: ='Abbott RT MTB and MTB RIF-INH'!E36 -> 0
B154: ='Abbott RT MTB and MTB RIF-INH'!B37 -> 106422 | C154: ='Abbott RT MTB and MTB RIF-INH'!C37 -> Microcentrifuge tubes, 2 mL | D154: ='Abbott RT MTB and MTB RIF-INH'!E37 -> 0
B155: ='Abbott RT MTB and MTB RIF-INH'!B38 -> 106554 | C155: ='Abbott RT MTB and MTB RIF-INH'!C38 -> Sterile filter tips, 0.1–10 µL | D155: ='Abbott RT MTB and MTB RIF-INH'!E38 -> 0
B156: ='Abbott RT MTB and MTB RIF-INH'!B39 -> 106389 | C156: ='Abbott RT MTB and MTB RIF-INH'!C39 -> Sterile filter tips, 20–200 µL | D156: ='Abbott RT MTB and MTB RIF-INH'!E39 -> 0
B157: ='Abbott RT MTB and MTB RIF-INH'!B40 -> 106390 | C157: ='Abbott RT MTB and MTB RIF-INH'!C40 -> Sterile filter tips, 100–1000 µL | D157: ='Abbott RT MTB and MTB RIF-INH'!E40 -> 0
B158: ='Abbott RT MTB and MTB RIF-INH'!B41 -> 106444 | C158: ='Abbott RT MTB and MTB RIF-INH'!C41 -> Plastic bags, 30 L | D158: ='Abbott RT MTB and MTB RIF-INH'!E41 -> 0
B159: ='Abbott RT MTB and MTB RIF-INH'!B42 -> 106415 | C159: ='Abbott RT MTB and MTB RIF-INH'!C42 -> Square filter paper, 580 mm | D159: ='Abbott RT MTB and MTB RIF-INH'!E42 -> 0
B160: ='Abbott RT MTB and MTB RIF-INH'!B43 -> 106755 | C160: ='Abbott RT MTB and MTB RIF-INH'!C43 -> Paper towels | D160: ='Abbott RT MTB and MTB RIF-INH'!E43 -> 53
B161: ='Abbott RT MTB and MTB RIF-INH'!B44 -> 106333 | C161: ='Abbott RT MTB and MTB RIF-INH'!C44 -> Ethanol / isopropanol, 5 L | D161: ='Abbott RT MTB and MTB RIF-INH'!E44 -> 0
B162: Solid culture
B163: ='Processing&solid-liquid culture'!C36 -> 106259 | C163: ='Processing&solid-liquid culture'!D36 -> TB medium LJ, 500 g | D163: ='Processing&solid-liquid culture'!E36 -> 1
B164: ='Processing&solid-liquid culture'!C37 -> 106268 | C164: ='Processing&solid-liquid culture'!D37 -> Glycerol 99.5, 1 L | D164: ='Processing&solid-liquid culture'!E37 -> 1
B165: ='Processing&solid-liquid culture'!C39 -> 106263 | C165: ='Processing&solid-liquid culture'!D39 -> Potassium dihydrogen phosphate, MW: 136.09, 1 kg | D165: ='Processing&solid-liquid culture'!E39 -> 1
B166: ='Processing&solid-liquid culture'!C40 -> 106264 | C166: ='Processing&solid-liquid culture'!D40 -> Magnesium sulfate-heptahydrate • 7H2O, MW: 246.48. 500 g | D166: ='Processing&solid-liquid culture'!E40 -> 0.5
B167: ='Processing&solid-liquid culture'!C41 -> 106265 | C167: ='Processing&solid-liquid culture'!D41 -> L-Asparagine-monohydrate • H2O, MW: 150.13, 250 g | D167: ='Processing&solid-liquid culture'!E41 -> 0.1
B168: ='Processing&solid-liquid culture'!C42 -> 106266 | C168: ='Processing&solid-liquid culture'!D42 -> Tri-magnesium di-citrate nonahydrate • 9 H2O, 500 g | D168: ='Processing&solid-liquid culture'!E42 -> 0.1
B169: ='Processing&solid-liquid culture'!C43 -> 106267 | C169: ='Processing&solid-liquid culture'!D43 -> Malachite green oxalate, 100 g | D169: ='Processing&solid-liquid culture'!E43 -> 0.1
B170: ='Processing&solid-liquid culture'!C44 -> 106268 | C170: ='Processing&solid-liquid culture'!D44 -> Glycerol 99.5, 1 L | D170: ='Processing&solid-liquid culture'!E44 -> 1
B171: Liquid culture
B172: ='Processing&solid-liquid culture'!C49 -> 106026 | C172: ='Processing&solid-liquid culture'!D49 -> BBL MGIT tubes for use in Bactec MGIT 960 (7mL) - 100 tubes/pack | D172: ='Processing&solid-liquid culture'!F49 -> 0
B173: ='Processing&solid-liquid culture'!C50 -> 106027 | C173: ='Processing&solid-liquid culture'!D50 -> BACTEC MGIT 960 Supplement Kit (100 tests, PANTA and OADC combined) | D173: ='Processing&solid-liquid culture'!F50 -> 0
B174: ='Processing&solid-liquid culture'!C51 -> 106098 | C174: ='Processing&solid-liquid culture'!D51 -> Lime-glass culture tubes, 12 mL, screw caps | D174: ='Processing&solid-liquid culture'!F51 -> 0
B175: ='Processing&solid-liquid culture'!C52 -> 106340 | C175: ='Processing&solid-liquid culture'!D52 -> Sterile plastic centrifuge tubes, 50 mL | D175: ='Processing&solid-liquid culture'!F52 -> 0
B176: ='Processing&solid-liquid culture'!C53 -> 106394 | C176: ='Processing&solid-liquid culture'!D53 -> Single-use plastic Pasteur-pipettes, sterile, individually packed | D176: ='Processing&solid-liquid culture'!F53 -> 0
B177: ='Processing&solid-liquid culture'!C54 -> 106714 | C177: ='Processing&solid-liquid culture'!D54 -> Disposable loops, 10 µL | D177: ='Processing&solid-liquid culture'!F54 -> 0
B178: ='Processing&solid-liquid culture'!C55 -> 106344 | C178: ='Processing&solid-liquid culture'!D55 -> Sterile cryovials, 2 mL | D178: ='Processing&solid-liquid culture'!F55 -> 0
B179: ='Processing&solid-liquid culture'!C56 -> 106052 | C179: ='Processing&solid-liquid culture'!D56 -> Cardboard storage box for sterile cryovials, 2 mL | D179: ='Processing&solid-liquid culture'!F56 -> 0
B180: ='Processing&solid-liquid culture'!C57 -> 106823 | C180: ='Processing&solid-liquid culture'!D57 -> Plastic Petri dishes | D180: ='Processing&solid-liquid culture'!F57 -> 0
B181: ='Processing&solid-liquid culture'!C58 -> 106390/106398 | C181: ='Processing&solid-liquid culture'!D58 -> Sterile, DNA-/RNAse-free tips, 100 - 1000 µl | D181: ='Processing&solid-liquid culture'!F58 -> 0
B182: ='Processing&solid-liquid culture'!C59 -> 106407 | C182: ='Processing&solid-liquid culture'!D59 -> Brain-heart infusion agar | D182: ='Processing&solid-liquid culture'!F59 -> 0
B183: ='Processing&solid-liquid culture'!C60 -> 106362 | C183: ='Processing&solid-liquid culture'!D60 -> Plastic foil | D183: ='Processing&solid-liquid culture'!F60 -> 0
B184: Sample processing
B185: ='Processing&solid-liquid culture'!C65 -> 106278 | C185: ='Processing&solid-liquid culture'!D65 -> Di-sodium hydrogen phosphate anhydrous, MW: 141.96, 1 kg | D185: ='Processing&solid-liquid culture'!F65 -> 0
B186: ='Processing&solid-liquid culture'!C66 -> 106263 | C186: ='Processing&solid-liquid culture'!D66 -> Potassium dihydrogen phosphate MW: 136.09, 1 kg | D186: ='Processing&solid-liquid culture'!F66 -> 0
B187: ='Processing&solid-liquid culture'!C68 -> 106281 | C187: ='Processing&solid-liquid culture'!D68 -> Sodium hydroxide, MW 40.00, purity ≥ 98%, pellets, 1 kg | D187: ='Processing&solid-liquid culture'!F68 -> 0
B188: ='Processing&solid-liquid culture'!C70 -> 106283 | C188: ='Processing&solid-liquid culture'!D70 -> N-Acetyl-L-cysteine, MW: 163.19, purity ≥ 99%, 100 g | D188: ='Processing&solid-liquid culture'!F70 -> 0
B189: ='Processing&solid-liquid culture'!C71 -> 106284 | C189: ='Processing&solid-liquid culture'!D71 -> Tri-sodium citrate dihydrate · 2H2O, MW: 294.10, 1 kg | D189: ='Processing&solid-liquid culture'!F71 -> 0
B190: ='Processing&solid-liquid culture'!C72 -> 106281 | C190: ='Processing&solid-liquid culture'!D72 -> Sodium hydroxide, MW 40.00, purity ≥ 98%, pellets, 1 kg | D190: ='Processing&solid-liquid culture'!F72 -> 0
B191: ='Processing&solid-liquid culture'!C74 -> 106340 | C191: ='Processing&solid-liquid culture'!D74 -> Sterile plastic centrifuge tubes, 50 mL | D191: ='Processing&solid-liquid culture'!F74 -> 0
B192: ='Processing&solid-liquid culture'!C75 -> 106434 | C192: ='Processing&solid-liquid culture'!D75 -> Disposable Pasteur pipettes, graduated, non-sterile, 155 mm | D192: ='Processing&solid-liquid culture'!F75 -> 0
B193: LJ DST
B194: ='LJ 1st line DST'!A23 -> 106268 | C194: ='LJ 1st line DST'!B23 -> Glycerol 99.5 | D194: ='LJ 1st line DST'!F23 -> 0
B195: ='LJ 1st line DST'!A24 -> 106259 | C195: ='LJ 1st line DST'!B24 -> TB medium LJ, 500 g | D195: ='LJ 1st line DST'!F24 -> 0
B196: ='LJ 1st line DST'!A25 -> 106308 | C196: ='LJ 1st line DST'!B25 -> Isoniazid (INH) - for laboratory use | D196: ='LJ 1st line DST'!F25 -> 0
B197: ='LJ 1st line DST'!A26 -> 106309 | C197: ='LJ 1st line DST'!B26 -> Rifampicin (RMP) - for laboratory use | D197: ='LJ 1st line DST'!F26 -> 0
B198: ='LJ 1st line DST'!A27 -> 106311 | C198: ='LJ 1st line DST'!B27 -> Dihydro-streptomycin (DHSM) - for laboratory use | D198: ='LJ 1st line DST'!F27 -> 0
B199: ='LJ 1st line DST'!A28 -> 106310 | C199: ='LJ 1st line DST'!B28 -> Ethambutol - for laboratory use | D199: ='LJ 1st line DST'!F28 -> 0
B200: ='LJ 1st line DST'!A29 -> 106394 | C200: ='LJ 1st line DST'!B29 -> Single-use, sterile, plastic Pasteur-pipettes, individually packed | D200: ='LJ 1st line DST'!F29 -> 0
B201: ='LJ 1st line DST'!A30 -> 106344 | C201: ='LJ 1st line DST'!B30 -> Sterile cryovials, 2 mL | D201: ='LJ 1st line DST'!F30 -> 0
B202: ='LJ 2nd line DST'!A21 -> 106268 | C202: ='LJ 2nd line DST'!B21 -> Glycerol 99.5 | D202: ='LJ 2nd line DST'!F21 -> 0
... 81 more rows

Sheet Sheet1

Sheet LPA and Tips (hidden)
E3: P10 | F3: P20 | G3: P200 | H3: P1000 | I3: P1000 Long | J3: Pasteur pipette
D4: DNA Extraction
C5: A1 | D5: 500μl decontaminated specimen | I5: 1 per sample for adding and one per sample for discard supernatent
C6: A2 | D6: A-LYS - 100μl lysis buffer | G6: 1 per sample
C7: A4 | D7: Add A-NB - 100μl neutralisation buffer | G7: 1 per sample
C8: A5 | D8: 5μl Supernatent for PCR tube | E8: 1 per sample
D9: AMPLIFICATION
D10: Master mix - Reagent A (AM-A) | G10: 1 per batch
D11: Mastemix - Reagent AM-B | H11: 1 per batch
D12: To aliquote into PCR tubes | G12: 1 per batch
C13: PCR ROOM | D13: n x 5 μl DNA | E13: 1 per sample
D14: HYBRIDISATION
C15: To add | D15: DEN | G15: 1 per batch
D16: DNA/amplicon | G16: 1 per sample
D17: HYBRIDISATION | I17: 1 per sample | K17: Not needed for GT Blot 48 ?
D18: STR | I18: 1 per sample
D19: RINS | I19: 3 per batch
D20: WATER | I20: 3 per batch
D21: SUB (dilution / Fill) | G21: 1 per batch | I21: 1 per batch
D22: CONJ (Dilution / Fill) | G22: 1 per batch | I22: 1 per batch
C23: to remove | D23: HYBRIDISATION | J23: 1 per sample
D24: STR | J24: 1 per batch
D25: RINS | J25: 2 per batch
D26: WATER | J26: 1 per batch
D27: SUB | J27: 1 per batch
D28: CONJ | J28: 1 per batch
D30: Sample | E30: 2 | G30: 3 | I30: 4 | J30: 1
D31: Batch | G31: 5 | H31: 1 | I31: 8 | J31: 6
D39: Injectible water for LPA DST from specimen coming from liquid culture 0.1 ml / solid culture 0.3 ml

Sheet Lab items list (hidden)
A1: List of laboratories items | C1: Back to Lab
A3: Equipment | C3: Chemicals | E3: Consumables
B4: Microscopy laboratory | C4: Microscopy laboratory | E4: MIcroscopy laboratory
B5: Culture laboratory | C5: Culture laboratory | E5: Culture laboratory
B6: DST laboratory | C6: DST laboratory | E6: DST laboratory
B7: Molecular tests | C7: Molecular tests | E7: Molecular tests
C9: Number | D9: Unit cost (US$) | E9: Possible alternatives
B10: All prices indicated below are "free on board" (FOB) i.e. do not include shipping, insurance, import duties, local distributor margin for service and support, installation and maintenance. | E10: This column provides alternatives of equipment. If you wish to include them in your cost please copy the cells into the previous columns (B to D), so that the inputs (quantities and prices) are taken into account in the cost of the lab package.
A11: EQUIPMENT
A13: Ù Home
A16: Culture laboratory
B17: Indicated quantities are based on experience and estimated for a laboratory performing approximately 12,000 cultures. Quantities should be adjusted according to the actual workload and methods used.
B19: ITEMS (solid media) | C19: Number | D19: Unit cost (US$) | E19: Possible alternatives | F19: Number | G19: Unit cost (US$)
B20: Base Support for Laminar Air Flow Cabinet | C20: 2 | D20: 1024.725
B21: BSC, class I or II | C21: 2 | D21: 17761.9
B22: UPS for BSC | C22: 2 | D22: 1639.56
B23: Minishaker or Vortex | C23: 3 | D23: 478.205
B24: Optional : overhead stirrer, for at least 10 tubes (50 ml) | C24: 2 | D24: 1639.56
B25: Test tube rack 18/8 stainless steel, diameter 16 mm | C25: 5 | D25: 38.2564
B26: Test tube rack 18/8 stainless steel, diameter 35 mm | C26: 5 | D26: 31.4249
B27: Safety gas burner with glass chimney, footswitch for temporary ignition | C27: 2 | D27: 573.846 | E27: Electric micro incinerator for loops | F27: 1 | G27: 245.934
B28: Safety gas tubing with safety clamps on both ends, inner diameter 9mm | C28: 2 | D28: 40.989
B29: Inoculation loops, Platinum/Iridium wire, closed, 10 µl | C29: 6 | D29: 122.967 | E29: Disposable loops,100 x 10 pieces per pack | F29: 15 | G29: 81.978
B30: Loop holder | C30: 12 | D30: 9.5641
B31: Racks for loop holder | C31: 4 | D31: 16.3956
B32: Stainless steel bucket with lid, capacity 10L | C32: 5 | D32: 150.293
B33: Discard bottle, stainless steel or thick walled glass with screw cap | C33: 5 | D33: 4.0989
B34: Funnel, stainless steel 18/8, top diameter 120 mm | C34: 3 | D34: 18.44505
B35: Safety box, PP, approx 3 L, for all sharps | C35: 25 | D35: 4.23553
B36: Laboratory chair, disinfectable, 5 wheels, no arm rests | C36: 2 | D36: 245.934
B37: Incubator | C37: 2 | D37: 9290.84
B38: Centrifuge | C38: 1 | D38: 8880.95
B39: Centrifuge rotor | C39: 1 | D39: 1229.67
B40: Centrifuge rotor buckets | C40: 4 | D40: 409.89
B41: Aerosol tight lids for rotor buckets | C41: 4 | D41: 136.63
B42: Reducing adapter for 50 ml centrifuge tubes | C42: 4 | D42: 109.304
B43: Reducing adapter for 15 ml/12 ml centrifuge tubes | C43: 4 | D43: 109.304
B44: Autoclave | C44: 2 | D44: 15029.3
B45: Autoclave control unit for fully automated process control | C45: 2 | D45: 3005.86
B46: Exhaust air filtration system for autoclave | C46: 1 | D46: 3552.38
B47: Autoclave control unit for sterilization of liquids, including temperature probe | C47: 1 | D47: 3361.098
B48: Autoclave recooling system to shorten the time of liquid sterilization | C48: 1 | D48: 3415.75
B49: Wire baskets or stainless steel buckets for autoclave | C49: 2 | D49: 245.934
B50: Wire baskets with drip tray for autoclave | C50: 2 | D50: 478.205
B51: Hot-air oven | C51: 1 | D51: 3825.64
B52: Optional Ion exchanger cartridge, flow rate approx. 950 L/h | C52: 2 | D52: 1093.04
B53: Conductivity measuring device for laboratory grade water, digital | C53: 2 | D53: 437.216
B54: Ion exchanger resin for laboratory grade water, pack of 5x10 L resin | C54: 5 | D54: 81.978
B55: Water distiller | C55: 1 | D55: 1776.19
B56: Balloon high-density poyethylene (HDPE) with discharge cock, 30 liters | C56: 1 | D56: 81.978
B57: Balloon high-density poyethylene (HDPE) with discharge cock, 10 liters | C57: 4 | D57: 54.652
B58: Stop cock, winding for HDPE balloon | C58: 10 | D58: 4.440475
B59: Racks for test tubes, PP, autoclavable, 60 positions | C59: 12 | D59: 10.9304 | E59: Racks for 28 ml universal vials, PP, autoclavable, 48 positions | F59: 150 | G59: 10.9304
B60: Alarm clock / digital timer, 4 digits | C60: 1 | D60: 27.326
B61: Safety-Pipetting Ball, standard | C61: 10 | D61: 3.41575
B62: Automated pipetting aid, battery capacity for 8 h work, 200 g weight | C62: 2 | D62: 478.205 | E62: Set of mechanical pipetting aids: up to 0.2 ml; up to 2 ml and up to 10 ml | F62: 2 | G62: 68.315
B63: Pipette washer | C63: 1 | D63: 170.7875
B64: Transport boxes for specimens meeting WHO requirements of P650 package | C64: 10 | D64: 20.4945
B65: Electronic maxima-minima-thermometers, two channels, thin cable with sensor, battery, measuring range -50°C/+60°C | C65: 10 | D65: 27.326
B66: Electronic maxima-minima-thermometers, two channels, battery, measuring range -10°C/+50°C | C66: 10 | D66: 27.326
B67: Dispenser for 1000 ml bottle for liquid soap, for wall mounting, 1 per sink | C67: 2 | D67: 68.315
B68: Dispenser for hand towels, for wall mounting, 1 per sink | C68: 2 | D68: 47.8205
B69: Goggles, according to EN 166 and EN 170, frame adjustable, integrated side and top protection, total weight <40 g | C69: 5 | D69: 8.1978
B70: Emergency spill-kit | C70: 1 | D70: 34.1575
B71: First aid kit | C71: 1 | D71: 327.912
B72: Anemometer | C72: 1 | D72: 2049.45
B73: Analytical balance | C73: 1 | D73: 4782.05
B74: pH meter | C74: 1 | D74: 819.78
B75: Bunsen burner with fine tuning | C75: 1 | D75: 143.4615
B76: Tripod stand | C76: 1 | D76: 16.3956
B77: Water bath, capacity approximately 20 L | C77: 1 | D77: 1502.93
B78: Magnetic stirrer | C78: 1 | D78: 580.6775
B79: Magnetic stirring bars, round-shaped, polytetrafluorethylen (PTFE) coated. Set of 10: 1x 15 mm, 2X 20 mm, 2x 25 mm, 1x 30 mm, 2x 40 mm, 2x 50 mm length. | C79: 1 | D79: 68.315
B80: Sterile filling station of culture media, consisting of 1000 ml Squibb sedimentation funnels or cylindric dropping funnels, with tube for pressure exchange, stopcocks made of glass and Teflon stopper, outlet diameter 4 mm | C80: 3 | D80: 68.315
B81: Stative for Squibb sedimentation funnels consisting of plate, rod and clamp | C81: 3 | D81: 136.63
B82: Inspissator for coagulation of egg-based culture media | C82: 1 | D82: 8197.8
B83: Refrigerator with freezing department | C83: 1 | D83: 819.78
B84: Refrigerator | C84: 2 | D84: 409.89
B85: Stainless steel funnel, short wide stem with air drain, diameter 150 mm on top | C85: 5 | D85: 13.663
B86: Swan neck bottles (PE flask, narrow neck with screw cap and water dispenser) set of one each 250, 500, 1000ml | C86: 5 | D86: 16.3956
B87: Bowl, plastic, 500 x 350 mm | C87: 5 | D87: 2.7326
B88: Erlenmeyer flasks, borosilicate 3.3, wide neck, graduated, autoclavable, 2000 ml | C88: 2 | D88: 34.1575
B89: Erlenmeyer flasks, borosilicate 3.3, wide neck, graduated, autoclavable, 1000 ml | C89: 10 | D89: 163.956
B90: Erlenmeyer flasks, borosilicate 3.3, wide neck, autoclavable, 500 ml | C90: 10 | D90: 81.978
B91: Erlenmeyer flasks, borosilicate 3.3, wide neck, graduated, autoclavable, 250 ml | C91: 10 | D91: 61.4835
B92: Erlenmeyer flasks, borosilicate 3.3, wide neck, graduated, 100 ml, pack. unit 10 | C92: 20 | D92: 54.652
B93: Erlenmeyer flasks, borosilicate 3.3, wide neck, graduated, autoclavable, 50 ml | C93: 20 | D93: 54.652
B94: Measuring cylinder, class A; TPX, autoclavable, 1000 ml, graduated 10.0 ml | C94: 5 | D94: 22.27069
B95: Measuring cylinder, class A; TPX, autoclavable, 500 ml, graduated 5.0 ml | C95: 5 | D95: 14.34615
B96: Measuring cylinder, class A; TPX, autoclavable, 250 ml, graduated 2.0 ml | C96: 5 | D96: 9.495785
B97: Measuring cylinder, class A; TPX, autoclavable, 100 ml, graduated 1.0 ml | C97: 5 | D97: 6.14835
B98: Measuring cylinder, class A; TPX, autoclavable, 50 ml, graduated 1.0 ml | C98: 5 | D98: 4.64542
B99: Thick-walled glass flask for preparation of culture medium; with flanged rim; 2500 ml | C99: 6 | D99: 58.7509
B100: Thick walled bottles, borosilicate 3.3, graduated, transparent, PP ring and cap, 2000 ml | C100: 3 | D100: 24.5934
B101: Thick walled bottles, borosilicate 3.3, graduated, transparent, PP ring and cap, 1000 ml | C101: 10 | D101: 14.34615
B102: Thick walled bottles, borosilicate 3.3, graduated, transparent, PP ring and cap, 500 ml; | C102: 5 | D102: 9.29084
B103: Thick walled bottles, borosilicate 3.3, graduated, amber, PP ring and cap, 11000 ml | C103: 3 | D103: 16.3956
B104: Thick walled bottles, borosilicate 3.3, graduated, amber, PP ring and cap, 1, 2000 ml | C104: 2 | D104: 27.326
B105: Screw caps with weld in PFTE membrane, 0.2 µm pore size, autoclavable to 140 °C | C105: 10 | D105: 3.00586
B106: Laboratory beaker, EFTE, low form with graduation and spout, 2000 ml | C106: 3 | D106: 136.63
B107: Laboratory beaker, EFTE, low form with graduation and spout, 1000 ml | C107: 3 | D107: 68.315
B108: Laboratory beaker, EFTE, low form with graduation and spout, 600 ml | C108: 10 | D108: 54.652
B109: Laboratory beaker, EFTE, low form with graduation and spout, 250 ml | C109: 10 | D109: 24.5934
B110: Laboratory beaker, EFTE, low form with graduation and spout, 100 ml | C110: 10 | D110: 15.0293
B111: Laboratory glassware drying rack, wall mounted; polystyrene; minimum 24 pegs | C111: 1 | D111: 184.4505
B112: Funnel, soda lime glass, plain, short stem, d = 75 mm | C112: 5 | D112: 6.8315
B113: Funnel, soda lime glass, plain, short stem, d = 125 mm | C113: 5 | D113: 10.9304
B114: Powder funnel , diameter 100mm | C114: 5 | D114: 10.9304
B115: Glass beads, massive glass, 5 mm diameter | C115: 2 | D115: 34.1575
B116: Glass beads, massive glass, 3 mm diameter | C116: 1 | D116: 34.1575
B117: Thick walled Pyrex tubes with ISO winding and autoclavable screw cap with tight gasket, 16x100 mm; package of 100 | C117: 10 | D117: 109.304
B118: Strainer, stainless steel, 1 grip, 2 eyes, diameter 20 cm | C118: 1 | D118: 21.8608
B119: Forceps; pointed; straight; 18/8 stainless steel, polished | C119: 5 | D119: 9.386481
B120: Optional: Laboratory washer-disinfector for laboratory glass, 2 baskets | C120: 1 | D120: 5055.31
B121: Separate water supply for deionised water with conductivity measure R 3/4" with digital display and hose-set for in-and outflow | C121: 1 | D121: 929.084
B122: Aqua purificator cabinet for two de-mineralising cartridges | C122: 1 | D122: 409.89
B123: Cost of equipment for culture laboratories (solid media) | D123: =SUMPRODUCT(C20:C122,D20:D122) -> 177698.382
B125: Additional equipment for liquid culture and/or DST
B126: ITEMS | C126: Number | D126: Unit cost (US$) | E126: Possible alternatives | F126: Number | G126: Unit cost (US$) | H126: Notes
B127: Automated analyser for liquid culture media with growth detection based on a fluorescent signal, 960 vials | C127: 2 | D127: 79655.29 | E127: Automated analyser for liquid culture media with growth detection based on a fluorescent signal, 120 vials | F127: 12 | G127: 36535
B128: Automated analyser for liquid culture media with growth detection based on a fluorescent signal, 960 vials | C128: 2 | D128: 38950 | H128: This is a FIND negotiated price for, please find the countries that can access to this special price in: http://www.finddiagnostics.org/about/what_we_do/successes/find-negotiated-prices/bactec-mgit.html
B129: Cost of additional equipment for culture and DST laboratories (liquid media) | D129: =SUMPRODUCT(D127:D128) -> 118605.29
A132: Drug-susceptibility testing (DST)
B133: Indicated quantities are based on experience and estimated for a laboratory performing 1000 first-line DST (and possibly 100 second-line DST) in addition to cultures. Quantities should be adjusted according to the actual workload and strategy used.
B135: ITEMS (solid media) | C135: Number | D135: Unit cost (US$)
B136: Desiccator, borosilicate glass, inner diameter 150-200 mm, lid with thread GL 32 | C136: 2 | D136: 273.26
B137: Membrane vacuum pump for desiccator, pressure endpoint < 20 mbar | C137: 1 | D137: 1093.04
B138: Woulff flask consisting of borosilicate glass, 1000 ml with thread GL 45 screw cap | C138: 1 | D138: 47.8205
B139: Vacuum tube, 3m | C139: 1 | D139: 27.326
B140: Precision balance | C140: 1 | D140: 1366.3
B141: Sterile filling station of culture media, consisting of 250 ml Squibb sedimentation funnels or cylindric dropping funnels, with tube for pressure exchange, stopcocks made of glass and Teflon stopper, outlet diameter 4 mm | C141: 7 | D141: 40.989
B142: Refrigerator with freezing department | C142: 1 | D142: 819.78
B143: Refrigerator | C143: 1 | D143: 409.89
B144: Optional: Chest freezer, 70 litres, temperature range: -18 °C to - 28 °C, complete with cassettes and racks | C144: 1 | D144: 1366.3
B145: Pipettes 1 ml, glass, graduated 0,01 ml, conformity certified, pack of 10 pieces | C145: 3 | D145: 27.326
B146: Pipettes 2 ml, glass, graduated 0,02 ml, conformity certified, pack of 10 pieces | C146: 3 | D146: 28.6923
B147: Pipettes 10 ml, glass, graduated 0,05 ml, conformity certified, pack of 10 pieces | C147: 3 | D147: 30.0586
B148: Pipettes 5 ml, glass, graduated 0,1 ml, conformity certified, pack of 10 pieces | C148: 3 | D148: 31.4249
B149: Pipette box aluminium with lid, autoclavable, suitable for 35 cm long pipettes | C149: 10 | D149: 136.63
B150: Cost of equipment for DST (solid media) | D150: =SUMPRODUCT(C136:C149,D136:D149) -> 7682.7049
A153: Molecular laboratory
A154: Line-Probe Assays
B155: Indicated quantities are based on experience and estimated for a laboratory performing approximately 1000 line-probe assays. Quantities should be adjusted according to the actual workload and strategy used.
B157: ITEMS | C157: Number | D157: Unit cost (US$) | E157: Possible alternatives | F157: Number | G157: Unit cost (US$)
B158: PCR-Workstation UV | C158: 1 | D158: 3142.49
B159: Thermocycler | C159: 1 | D159: 4782.05
B160: Ultrasonic bath | C160: 1 | D160: 1639.56
B161: Thermoshaker for hybridization | C161: 1 | D161: 3005.86 | E161: Automate for hybridization, for 48 strips | F161: 1 | G161: 19674.72
B162: Optional 8-channel pipette, 5 - 50 µl | C162: 1 | D162: 587.509
B163: Optional 8-channel pipette, 50 - 300 µl | C163: 1 | D163: 587.509
B164: Optional Electrophoresis, horizontal mini gel system | C164: 1 | D164: 409.89
B165: Optional Power supply for electrophoresis | C165: 1 | D165: 478.205
B166: Optional UV-light illuminator at least 200 x 200 mm window | C166: 1 | D166: 1639.56
B167: Optional Microwave oven, approx. 900 W, inner volume minimum 20 litres | C167: 1 | D167: 819.78
B168: Racks, for tubes 1.5 - 2 ml, 10 mm diameter, at least 20 positions | C168: 10 | D168: 6.8315
B169: Centrifuge for standard reaction tubes | C169: 1 | D169: 2459.34
B170: Floating rack for 20 seats, diameter 10 mm, 2ml, for ultrasonic bath | C170: 2 | D170: 9.5641
B171: Deep freeze storage box with lid for 2 ml cryovials , autoclavable PP | C171: 10 | D171: 10.9304
B172: Deep freeze storage box with lid for 0.2ml PCR tubes, autoclavable PP. | C172: 10 | D172: 11.06703
B173: 1-channel pipette, variable from 0.5 - 10 µl, | C173: 3 | D173: 273.26
B174: 1-channel pipette, variable from 10 - 100 µl | C174: 4 | D174: 273.26
B175: 1-channel pipette, variable from 100 - 1000 µl, | C175: 4 | D175: 273.26
B176: Racks suitable for pipettes offered, at least 4 positions | C176: 4 | D176: 109.304
B177: Refrigerator with freezing department | C177: 1 | D177: 409.89
B178: Freezer | C178: 1 | D178: 546.52
B179: Stand for multichannel pipettes | C179: 1 | D179: 122.967
B180: Hand-dispenser pipette, 5 dosage steps, suited for combitips | C180: 2 | D180: 218.608
B181: Tripod stand for waste bags of 2 litres | C181: 5 | D181: 10.24725
B182: Cost of equipment for Molecular tests | D182: =SUMPRODUCT(C158:C181,D158:D181) -> 24870.07575
A184: Xpert
B185: ITEMS | C185: Number | D185: Unit cost (US$)
B186: Cost of one GeneXpert 4-module unit with laptop | C186: 1 | D186: 17500
B187: Shipment, per machine | D187: 1000
B188: Uninterruptible power source | D188: 500
B190: Printer | C190: 1 | D190: 200
D191: =+SUM(D186:D190) -> 19200
B193: Cartridge and maintenance for XPERT | C193: Number | D193: Unit cost (US$)
B194: The average number of tests per machine per day is 15. So, the maximum number of cartridges per year is 3750 (=15*250 working days). Add 10% more due to losses because of damage or incorrect use.
B195: Cartridge, cost per one cartridge | D195: 16.86
B196: Cost of equipment maintenance per GeneXpert machine per year (range US$ 500-1800) | D196: 1800
B198: For further information on Xpert please look at:
B199: http://whqlibdoc.who.int/hq/2011/WHO_HTM_TB_2011.12_eng.pdf
A202: CHEMICALS
A205: Culture laboratory, chemicals
B206: According to the SoP, prepare a batch of 1600 ml and adjust according to the workload
B208: ITEMS | C208: Number | D208: Unit cost (US$) | E208: Possible alternatives | F208: Number | G208: Unit cost (US$)
B209: Loewenstein-Jensen medium** | E209: Lowenstein-Jensen medium from components
B210: Ready-to-use mix, 500g | C210: 7 | D210: 134 | E210: Potassium dihydrogen phosphate, KH2PO4, MW: 136,09, 1 kg | F210: 1 | G210: 44
B211: Fresh eggs fed without growth factors (antibiotics), 25 per 1600 ml medium final volume | C211: 2000 | D211: local cost | E211: Magnesium sulfate-heptahydrate, MgSO4 • 7H2O, MW: 246,48. 500g | F211: 1 | G211: 21
B212: Glycerol >99% purity, 1 litre | C212: 2 | D212: 38 | E212: L-Asparagine-momohydrate, C4H8N2O3 • H2O, MW: 150.13, 250g | F212: 2 | G212: 86
E213: tri-Magnesium di-citrate nonahydrate, Mg3(C6H5O7)2 • 9 H2O, 500g | F213: 1 | G213: 36
B214: ** Prepare a batch of 1600 ml according to the SoP, to be dispensed in 6–8 ml volumes into sterile McCartney bottles or 16 x 125 mm screw-capped tubes. Estimate the number of tubes per batch (+/-260 tubes). | E214: Malachite green oxalate, 100 g | F214: 1 | G214: 21
E215: glycerol >99% purity, 1 litre | F215: 2 | G215: 38
E216: fresh eggs fed without growth factors (antibiotics), 25 per 1600 ml medium final volume | F216: 2000 | G216: local cost
B218: ITEMS | C218: Number | D218: Unit cost (US$)
B219: Modified Ogawa medium
B220: Sodium-L-Glutamate-monohydrate, C5H8NNaO4 · H2O, 1 kg | C220: 1 | D220: 45
B221: Potassium dihydrogen phosphate, KH2PO4, MW: 136,09, 1 kg | C221: 1 | D221: 44
B222: Malachite green oxalate, 100 g | C222: 1 | D222: 21
B223: Magnesium sulfate-heptahydrate, MgSO4 • 7H2O, MW: 246,48. 500g | C223: 1 | D223: 21
... 163 more rows
